Body Name,Date Paid,Transaction Number,Amount,Supplier Name,Supplier Type,Expense Area,Cost Centre Description,Expense Type
Cambridgeshire County Council,20-Feb-17,22456270-14855992,-48117.55,Wcl Uk Ltd,Trade Supplier,LRNG,ICT Service Procurement,Materials for resale
Cambridgeshire County Council,20-Feb-17,22456269-14855991,-46168.8,Wcl Uk Ltd,Trade Supplier,LRNG,ICT Service Procurement,Materials for resale
Cambridgeshire County Council,17-Feb-17,22592707-14853041,-19320,Thomas Telford Limited,Trade Supplier,Assets & Commissioning,"Eastern Highways Alliance	",Staff Training & Development
Cambridgeshire County Council,23-Feb-17,22397232-14869990,-12793.05,Cambridgeshire And Peterborough Nhs Foundation Trust,Trust (Other),E&P,YOS - MST Problem Sexual Behaviour,Other Hired Contract Services
Cambridgeshire County Council,01-Feb-17,22386685-14750987,-10785.6,Glennfield Healthcare,Care Establishment,4 - Commissioning - Mental Health & Supporting People,Cambridge Mental Health team,Nursing Independent Sector
Cambridgeshire County Council,21-Feb-17,22359802-14862625,-10023.43,Softcat Ltd,Trade Supplier,LRNG,ICT Service Procurement,Materials for resale
Cambridgeshire County Council,17-Feb-17,22604647-14853044,-9966.6,Wyg Engineering Ltd,Trade Supplier,Director of Growth & Infrastructure,City Deal - Chisholm Trail,Capital WIP - other  -  Expenditure / Payments
Cambridgeshire County Council,08-Feb-17,22490861-14803084,-8233.33,Redacted Personal Data,Care Establishment,S&C,Placements - Education,Independent School Placements
Cambridgeshire County Council,17-Feb-17,22604644-14853043,-5011.2,Wyg Engineering Ltd,Trade Supplier,Director of Growth & Infrastructure,City Deal - Chisholm Trail,Capital WIP - other  -  Expenditure / Payments
Cambridgeshire County Council,02-Feb-17,22459942-14755953,-4655,Brookdale Healthcare Limited,Care Establishment,2 - Operations - Learning Disability,LDP Huntingdonshire Locality - Care,Respite Independent Sector
Cambridgeshire County Council,02-Feb-17,22459943-14755954,-4655,Brookdale Healthcare Limited,Care Establishment,2 - Operations - Learning Disability,LDP Huntingdonshire Locality - Care,Respite Independent Sector
Cambridgeshire County Council,02-Feb-17,22459944-14755955,-4655,Brookdale Healthcare Limited,Care Establishment,2 - Operations - Learning Disability,LDP Hunts special needs,Respite Independent Sector
Cambridgeshire County Council,02-Feb-17,22459945-14755956,-4655,Brookdale Healthcare Limited,Care Establishment,2 - Operations - Learning Disability,LDP Hunts special needs,Respite Independent Sector
Cambridgeshire County Council,02-Feb-17,22459949-14755960,-4655,Brookdale Healthcare Limited,Care Establishment,2 - Operations - Learning Disability,LDP Hunts special needs,Respite Independent Sector
Cambridgeshire County Council,02-Feb-17,22456987-14755963,-4655,Brookdale Healthcare Limited,Care Establishment,2 - Operations - Learning Disability,LDP Huntingdonshire Locality - Care,Respite Independent Sector
Cambridgeshire County Council,02-Feb-17,22456988-14755964,-4655,Brookdale Healthcare Limited,Care Establishment,2 - Operations - Learning Disability,LDP Hunts special needs,Respite Independent Sector
Cambridgeshire County Council,02-Feb-17,22456991-14755967,-4655,Brookdale Healthcare Limited,Care Establishment,2 - Operations - Learning Disability,LDP Hunts special needs,Respite Independent Sector
Cambridgeshire County Council,02-Feb-17,22456997-14755971,-4655,Brookdale Healthcare Limited,Care Establishment,2 - Operations - Learning Disability,LDP Huntingdonshire Locality - Care,Respite Independent Sector
Cambridgeshire County Council,02-Feb-17,22414069-14755974,-4655,Brookdale Healthcare Limited,Care Establishment,2 - Operations - Learning Disability,LDP Huntingdonshire Locality - Care,Respite Independent Sector
Cambridgeshire County Council,02-Feb-17,22414070-14755975,-4655,Brookdale Healthcare Limited,Care Establishment,2 - Operations - Learning Disability,LDP Huntingdonshire Locality - Care,Respite Independent Sector
Cambridgeshire County Council,02-Feb-17,22414072-14755977,-4655,Brookdale Healthcare Limited,Care Establishment,2 - Operations - Learning Disability,LDP Huntingdonshire Locality - Care,Respite Independent Sector
Cambridgeshire County Council,02-Feb-17,22414074-14755979,-4655,Brookdale Healthcare Limited,Care Establishment,2 - Operations - Learning Disability,LDP Huntingdonshire Locality - Care,Respite Independent Sector
Cambridgeshire County Council,02-Feb-17,22414057-14755982,-4655,Brookdale Healthcare Limited,Care Establishment,2 - Operations - Learning Disability,LDP Hunts special needs,Respite Independent Sector
Cambridgeshire County Council,02-Feb-17,22414059-14755984,-4655,Brookdale Healthcare Limited,Care Establishment,2 - Operations - Learning Disability,LDP Huntingdonshire Locality - Care,Respite Independent Sector
Cambridgeshire County Council,02-Feb-17,22414062-14755987,-4655,Brookdale Healthcare Limited,Care Establishment,2 - Operations - Learning Disability,LDP Huntingdonshire Locality - Care,Respite Independent Sector
Cambridgeshire County Council,02-Feb-17,22414063-14755988,-4655,Brookdale Healthcare Limited,Care Establishment,2 - Operations - Learning Disability,LDP Hunts special needs,Respite Independent Sector
Cambridgeshire County Council,02-Feb-17,22414064-14755989,-4655,Brookdale Healthcare Limited,Care Establishment,2 - Operations - Learning Disability,LDP Huntingdonshire Locality - Care,Respite Independent Sector
Cambridgeshire County Council,02-Feb-17,22501546-14755996,-4655,Brookdale Healthcare Limited,Care Establishment,2 - Operations - Learning Disability,LDP Hunts special needs,Respite Independent Sector
Cambridgeshire County Council,02-Feb-17,22501548-14755998,-4655,Brookdale Healthcare Limited,Care Establishment,2 - Operations - Learning Disability,LDP Hunts special needs,Respite Independent Sector
Cambridgeshire County Council,02-Feb-17,22501549-14755999,-4655,Brookdale Healthcare Limited,Care Establishment,2 - Operations - Learning Disability,LDP Huntingdonshire Locality - Care,Respite Independent Sector
Cambridgeshire County Council,02-Feb-17,22501550-14756000,-4655,Brookdale Healthcare Limited,Care Establishment,2 - Operations - Learning Disability,LDP Hunts special needs,Respite Independent Sector
Cambridgeshire County Council,02-Feb-17,22501555-14756005,-4655,Brookdale Healthcare Limited,Care Establishment,2 - Operations - Learning Disability,LDP Huntingdonshire Locality - Care,Respite Independent Sector
Cambridgeshire County Council,02-Feb-17,22501556-14756006,-4655,Brookdale Healthcare Limited,Care Establishment,2 - Operations - Learning Disability,LDP Huntingdonshire Locality - Care,Respite Independent Sector
Cambridgeshire County Council,02-Feb-17,22501561-14756011,-4655,Brookdale Healthcare Limited,Care Establishment,2 - Operations - Learning Disability,LDP Huntingdonshire Locality - Care,Respite Independent Sector
Cambridgeshire County Council,02-Feb-17,22501563-14756013,-4655,Brookdale Healthcare Limited,Care Establishment,2 - Operations - Learning Disability,LDP Hunts special needs,Respite Independent Sector
Cambridgeshire County Council,02-Feb-17,22501566-14756016,-4655,Brookdale Healthcare Limited,Care Establishment,2 - Operations - Learning Disability,LDP Huntingdonshire Locality - Care,Respite Independent Sector
Cambridgeshire County Council,09-Feb-17,22537215-14813467,-4655,Brookdale Healthcare Limited,Care Establishment,2 - Operations - Learning Disability,LDP Huntingdonshire Locality - Care,Respite Independent Sector
Cambridgeshire County Council,09-Feb-17,22536110-14813468,-4655,Brookdale Healthcare Limited,Care Establishment,2 - Operations - Learning Disability,LDP Hunts special needs,Respite Independent Sector
Cambridgeshire County Council,09-Feb-17,22536113-14813470,-4655,Brookdale Healthcare Limited,Care Establishment,2 - Operations - Learning Disability,LDP Huntingdonshire Locality - Care,Respite Independent Sector
Cambridgeshire County Council,09-Feb-17,22536114-14813471,-4655,Brookdale Healthcare Limited,Care Establishment,2 - Operations - Learning Disability,LDP Hunts special needs,Respite Independent Sector
Cambridgeshire County Council,09-Feb-17,22536117-14813474,-4655,Brookdale Healthcare Limited,Care Establishment,2 - Operations - Learning Disability,LDP Huntingdonshire Locality - Care,Respite Independent Sector
Cambridgeshire County Council,09-Feb-17,22536120-14813476,-4655,Brookdale Healthcare Limited,Care Establishment,2 - Operations - Learning Disability,LDP Huntingdonshire Locality - Care,Respite Independent Sector
Cambridgeshire County Council,09-Feb-17,22536124-14813479,-4655,Brookdale Healthcare Limited,Care Establishment,2 - Operations - Learning Disability,LDP Huntingdonshire Locality - Care,Respite Independent Sector
Cambridgeshire County Council,09-Feb-17,22536127-14813482,-4655,Brookdale Healthcare Limited,Care Establishment,2 - Operations - Learning Disability,LDP Huntingdonshire Locality - Care,Respite Independent Sector
Cambridgeshire County Council,09-Feb-17,22536131-14813486,-4655,Brookdale Healthcare Limited,Care Establishment,2 - Operations - Learning Disability,LDP Huntingdonshire Locality - Care,Respite Independent Sector
Cambridgeshire County Council,07-Feb-17,22100198-14793888,-4466.94,Primrose Healthcare,Care Establishment,5 - Commissioning - Mental Health & Supporting People,OP Blocks - Care Placements,Respite Independent Sector
Cambridgeshire County Council,07-Feb-17,22100200-14793889,-4466.94,Primrose Healthcare,Care Establishment,5 - Commissioning - Mental Health & Supporting People,OP Blocks - Care Placements,Respite Independent Sector
Cambridgeshire County Council,07-Feb-17,22100201-14793890,-4466.94,Primrose Healthcare,Care Establishment,5 - Commissioning - Mental Health & Supporting People,OP Blocks - Care Placements,Respite Independent Sector
Cambridgeshire County Council,07-Feb-17,22100202-14793891,-4466.94,Primrose Healthcare,Care Establishment,5 - Commissioning - Mental Health & Supporting People,OP Blocks - Care Placements,Respite Independent Sector
Cambridgeshire County Council,01-Feb-17,22460834-14750989,-3556.01,Foster Care Associates Ltd (Fca),Care Establishment,S&C,Placements - Social Care,Agency Placements - Out County
Cambridgeshire County Council,01-Feb-17,22460836-14750990,-3556.01,Foster Care Associates Ltd (Fca),Care Establishment,S&C,Placements - Social Care,Agency Placements - Out County
Cambridgeshire County Council,13-Feb-17,22418160-14830519,-3556.01,Foster Care Associates Ltd (Fca),Care Establishment,S&C,Placements - Social Care,Agency Placements - Out County
Cambridgeshire County Council,13-Feb-17,22418164-14830523,-3556.01,Foster Care Associates Ltd (Fca),Care Establishment,S&C,Placements - Social Care,Agency Placements - Out County
Cambridgeshire County Council,20-Feb-17,22461820-14856283,-3556.01,Foster Care Associates Ltd (Fca),Care Establishment,S&C,Placements - Social Care,Agency Placements - Out County
Cambridgeshire County Council,20-Feb-17,22460842-14856275,-3555.7,Foster Care Associates Ltd (Fca),Care Establishment,S&C,Placements - Social Care,Agency Placements - In Cambs
Cambridgeshire County Council,20-Feb-17,22461818-14856281,-3555.7,Foster Care Associates Ltd (Fca),Care Establishment,S&C,Placements - Social Care,Agency Placements - In Cambs
Cambridgeshire County Council,22-Feb-17,22621666-14866142,-3448.78,Box It East,Trade Supplier,Corporate Services,Information Management,Document Storage
Cambridgeshire County Council,01-Feb-17,22461810-14750991,-3441.3,Foster Care Associates Ltd (Fca),Care Establishment,S&C,Placements - Social Care,Agency Placements - Out County
Cambridgeshire County Council,13-Feb-17,22418158-14830517,-3441.3,Foster Care Associates Ltd (Fca),Care Establishment,S&C,Placements - Social Care,Agency Placements - Out County
Cambridgeshire County Council,13-Feb-17,22418162-14830521,-3441.3,Foster Care Associates Ltd (Fca),Care Establishment,S&C,Placements - Social Care,Agency Placements - Out County
Cambridgeshire County Council,20-Feb-17,22460833-14856271,-3441.3,Foster Care Associates Ltd (Fca),Care Establishment,S&C,Placements - Social Care,Agency Placements - Out County
Cambridgeshire County Council,20-Feb-17,22461814-14856279,-3441.3,Foster Care Associates Ltd (Fca),Care Establishment,S&C,Placements - Social Care,Agency Placements - Out County
Cambridgeshire County Council,20-Feb-17,22460838-14856273,-3441,Foster Care Associates Ltd (Fca),Care Establishment,S&C,Placements - Social Care,Agency Placements - In Cambs
Cambridgeshire County Council,20-Feb-17,22461812-14856277,-3441,Foster Care Associates Ltd (Fca),Care Establishment,S&C,Placements - Social Care,Agency Placements - In Cambs
Cambridgeshire County Council,14-Feb-17,22447325-14834654,-3333,The Mary Hare Primary School,Education,S&C,Placements - Education,Independent School Placements
Cambridgeshire County Council,02-Feb-17,22459948-14755959,-3325,Brookdale Healthcare Limited,Care Establishment,2 - Operations - Learning Disability,LDP Huntingdonshire Locality - Care,Respite Independent Sector
Cambridgeshire County Council,02-Feb-17,22414061-14755986,-3325,Brookdale Healthcare Limited,Care Establishment,2 - Operations - Learning Disability,LDP Hunts special needs,Respite Independent Sector
Cambridgeshire County Council,02-Feb-17,22501559-14756009,-3325,Brookdale Healthcare Limited,Care Establishment,2 - Operations - Learning Disability,LDP Hunts special needs,Respite Independent Sector
Cambridgeshire County Council,09-Feb-17,22536121-14813477,-3325,Brookdale Healthcare Limited,Care Establishment,2 - Operations - Learning Disability,LDP Hunts special needs,Respite Independent Sector
Cambridgeshire County Council,02-Feb-17,22490196-14757370,-2481.63,The Edmund Trust,Care Establishment,2 - Operations - Learning Disability,LDP South Cambs Locality - Care,Supported Living
Cambridgeshire County Council,06-Feb-17,22518819-14789588,-2373.13,Athena Care Homes Limited,Care Establishment,2 - Commissioning - Older people Pool,Older People - Fenland,Nursing Independent Sector
Cambridgeshire County Council,02-Feb-17,22412159-14756570,-2337.29,Dimensions (Uk) Ltd,Care Establishment,2 - Operations - Learning Disability,LDP Cambs City - Special Needs,Supported Living
Cambridgeshire County Council,02-Feb-17,22412161-14756572,-2337.29,Dimensions (Uk) Ltd,Care Establishment,2 - Operations - Learning Disability,LDP South Cambs - Special Needs,Supported Living
Cambridgeshire County Council,02-Feb-17,22412164-14756575,-2337.29,Dimensions (Uk) Ltd,Care Establishment,2 - Operations - Learning Disability,LDP Cambs City - Special Needs,Supported Living
Cambridgeshire County Council,02-Feb-17,22412167-14756578,-2337.29,Dimensions (Uk) Ltd,Care Establishment,2 - Operations - Learning Disability,LDP Cambs City - Special Needs,Supported Living
Cambridgeshire County Council,02-Feb-17,22412169-14756580,-2337.29,Dimensions (Uk) Ltd,Care Establishment,2 - Operations - Learning Disability,LDP Cambs City - Special Needs,Supported Living
Cambridgeshire County Council,02-Feb-17,22412171-14756582,-2337.29,Dimensions (Uk) Ltd,Care Establishment,2 - Operations - Learning Disability,LDP South Cambs - Special Needs,Supported Living
Cambridgeshire County Council,02-Feb-17,22412172-14756583,-2337.29,Dimensions (Uk) Ltd,Care Establishment,2 - Operations - Learning Disability,LDP Cambs City - Special Needs,Supported Living
Cambridgeshire County Council,02-Feb-17,22412173-14756584,-2337.29,Dimensions (Uk) Ltd,Care Establishment,2 - Operations - Learning Disability,LDP Cambs City - Special Needs,Supported Living
Cambridgeshire County Council,02-Feb-17,22388498-14756602,-2337.29,Dimensions (Uk) Ltd,Care Establishment,2 - Operations - Learning Disability,LDP Cambs City - Special Needs,Supported Living
Cambridgeshire County Council,02-Feb-17,22388499-14756603,-2337.29,Dimensions (Uk) Ltd,Care Establishment,2 - Operations - Learning Disability,LDP South Cambs - Special Needs,Supported Living
Cambridgeshire County Council,02-Feb-17,22388500-14756604,-2337.29,Dimensions (Uk) Ltd,Care Establishment,2 - Operations - Learning Disability,LDP Cambs City - Special Needs,Supported Living
Cambridgeshire County Council,02-Feb-17,22388501-14756605,-2337.29,Dimensions (Uk) Ltd,Care Establishment,2 - Operations - Learning Disability,LDP South Cambs - Special Needs,Supported Living
Cambridgeshire County Council,02-Feb-17,22388502-14756606,-2337.29,Dimensions (Uk) Ltd,Care Establishment,2 - Operations - Learning Disability,LDP South Cambs - Special Needs,Supported Living
Cambridgeshire County Council,02-Feb-17,22388504-14756608,-2337.29,Dimensions (Uk) Ltd,Care Establishment,2 - Operations - Learning Disability,LDP South Cambs - Special Needs,Supported Living
Cambridgeshire County Council,02-Feb-17,22388512-14756616,-2337.29,Dimensions (Uk) Ltd,Care Establishment,2 - Operations - Learning Disability,LDP South Cambs - Special Needs,Supported Living
Cambridgeshire County Council,02-Feb-17,22388514-14756618,-2337.29,Dimensions (Uk) Ltd,Care Establishment,2 - Operations - Learning Disability,LDP Cambs City - Special Needs,Supported Living
Cambridgeshire County Council,02-Feb-17,22457978-14756529,-2337.29,Dimensions (Uk) Ltd,Care Establishment,2 - Operations - Learning Disability,LDP South Cambs - Special Needs,Supported Living
Cambridgeshire County Council,02-Feb-17,22457980-14756531,-2337.29,Dimensions (Uk) Ltd,Care Establishment,2 - Operations - Learning Disability,LDP South Cambs - Special Needs,Supported Living
Cambridgeshire County Council,02-Feb-17,22457982-14756533,-2337.29,Dimensions (Uk) Ltd,Care Establishment,2 - Operations - Learning Disability,LDP South Cambs - Special Needs,Supported Living
Cambridgeshire County Council,02-Feb-17,22457983-14756534,-2337.29,Dimensions (Uk) Ltd,Care Establishment,2 - Operations - Learning Disability,LDP Cambs City - Special Needs,Supported Living
Cambridgeshire County Council,02-Feb-17,22457986-14756537,-2337.29,Dimensions (Uk) Ltd,Care Establishment,2 - Operations - Learning Disability,LDP South Cambs - Special Needs,Supported Living
Cambridgeshire County Council,02-Feb-17,22457989-14756540,-2337.29,Dimensions (Uk) Ltd,Care Establishment,2 - Operations - Learning Disability,LDP South Cambs - Special Needs,Supported Living
Cambridgeshire County Council,02-Feb-17,22499568-14756437,-2337.29,Dimensions (Uk) Ltd,Care Establishment,2 - Operations - Learning Disability,LDP Cambs City - Special Needs,Supported Living
Cambridgeshire County Council,02-Feb-17,22499570-14756439,-2337.29,Dimensions (Uk) Ltd,Care Establishment,2 - Operations - Learning Disability,LDP South Cambs - Special Needs,Supported Living
Cambridgeshire County Council,02-Feb-17,22499575-14756444,-2337.29,Dimensions (Uk) Ltd,Care Establishment,2 - Operations - Learning Disability,LDP South Cambs - Special Needs,Supported Living
Cambridgeshire County Council,02-Feb-17,22499578-14756447,-2337.29,Dimensions (Uk) Ltd,Care Establishment,2 - Operations - Learning Disability,LDP South Cambs - Special Needs,Supported Living
Cambridgeshire County Council,02-Feb-17,22499580-14756449,-2337.29,Dimensions (Uk) Ltd,Care Establishment,2 - Operations - Learning Disability,LDP South Cambs - Special Needs,Supported Living
Cambridgeshire County Council,02-Feb-17,22499581-14756450,-2337.29,Dimensions (Uk) Ltd,Care Establishment,2 - Operations - Learning Disability,LDP South Cambs - Special Needs,Supported Living
Cambridgeshire County Council,02-Feb-17,22499584-14756453,-2337.29,Dimensions (Uk) Ltd,Care Establishment,2 - Operations - Learning Disability,LDP South Cambs - Special Needs,Supported Living
Cambridgeshire County Council,02-Feb-17,22499588-14756457,-2337.29,Dimensions (Uk) Ltd,Care Establishment,2 - Operations - Learning Disability,LDP Cambs City - Special Needs,Supported Living
Cambridgeshire County Council,02-Feb-17,22457973-14756524,-2337.29,Dimensions (Uk) Ltd,Care Establishment,2 - Operations - Learning Disability,LDP South Cambs - Special Needs,Supported Living
Cambridgeshire County Council,02-Feb-17,22457974-14756525,-2337.29,Dimensions (Uk) Ltd,Care Establishment,2 - Operations - Learning Disability,LDP South Cambs - Special Needs,Supported Living
Cambridgeshire County Council,27-Feb-17,22356787-14886796,-2336.35,T C Harrison Group Ltd,Trade Supplier,LGSS Managed,LGSS Property Trading Recharges,Leased Vehicle Costs
Cambridgeshire County Council,24-Feb-17,22644409-14880889,-2331.75,Etheldred House,Care Establishment,5 - Commissioning - Mental Health & Supporting People,OP Blocks - Care Placements,Nursing Independent Sector
Cambridgeshire County Council,24-Feb-17,22644413-14880890,-2331.75,Etheldred House,Care Establishment,5 - Commissioning - Mental Health & Supporting People,OP Blocks - Care Placements,Nursing Independent Sector
Cambridgeshire County Council,24-Feb-17,22644379-14880892,-2331.75,Etheldred House,Care Establishment,5 - Commissioning - Mental Health & Supporting People,OP Blocks - Care Placements,Nursing Independent Sector
Cambridgeshire County Council,24-Feb-17,22644392-14880895,-2331.75,Etheldred House,Care Establishment,5 - Commissioning - Mental Health & Supporting People,OP Blocks - Care Placements,Nursing Independent Sector
Cambridgeshire County Council,24-Feb-17,22648264-14880908,-2331.75,Etheldred House,Care Establishment,5 - Commissioning - Mental Health & Supporting People,OP Blocks - Care Placements,Nursing Independent Sector
Cambridgeshire County Council,24-Feb-17,22646459-14880916,-2331.75,Etheldred House,Care Establishment,5 - Commissioning - Mental Health & Supporting People,OP Blocks - Care Placements,Nursing Independent Sector
Cambridgeshire County Council,24-Feb-17,22646466-14880919,-2331.75,Etheldred House,Care Establishment,5 - Commissioning - Mental Health & Supporting People,OP Blocks - Care Placements,Nursing Independent Sector
Cambridgeshire County Council,24-Feb-17,22646476-14880924,-2331.75,Etheldred House,Care Establishment,5 - Commissioning - Mental Health & Supporting People,OP Blocks - Care Placements,Nursing Independent Sector
Cambridgeshire County Council,24-Feb-17,22646480-14880927,-2331.75,Etheldred House,Care Establishment,5 - Commissioning - Mental Health & Supporting People,OP Blocks - Care Placements,Nursing Independent Sector
Cambridgeshire County Council,02-Feb-17,22413638-14762937,-2181,Turning Point Services Ltd,Care Establishment,2 - Operations - Learning Disability,LDP Fenland Locality - Care,Day and Domicillary Care Independent Sector
Cambridgeshire County Council,02-Feb-17,22413639-14762938,-2181,Turning Point Services Ltd,Care Establishment,2 - Operations - Learning Disability,LDP Fenland Locality - Care,Day and Domicillary Care Independent Sector
Cambridgeshire County Council,02-Feb-17,22413640-14762939,-2181,Turning Point Services Ltd,Care Establishment,2 - Operations - Learning Disability,LDP Fenland Locality - Care,Day and Domicillary Care Independent Sector
Cambridgeshire County Council,02-Feb-17,22413641-14762940,-2181,Turning Point Services Ltd,Care Establishment,2 - Operations - Learning Disability,LDP Fenland Locality - Care,Day and Domicillary Care Independent Sector
Cambridgeshire County Council,02-Feb-17,22413643-14762942,-2181,Turning Point Services Ltd,Care Establishment,2 - Operations - Learning Disability,LDP Fenland Locality - Care,Day and Domicillary Care Independent Sector
Cambridgeshire County Council,02-Feb-17,22413644-14762943,-2181,Turning Point Services Ltd,Care Establishment,2 - Operations - Learning Disability,LDP Fenland Locality - Care,Day and Domicillary Care Independent Sector
Cambridgeshire County Council,02-Feb-17,22413648-14762947,-2181,Turning Point Services Ltd,Care Establishment,2 - Operations - Learning Disability,LDP Fenland Locality - Care,Day and Domicillary Care Independent Sector
Cambridgeshire County Council,02-Feb-17,22413649-14762948,-2181,Turning Point Services Ltd,Care Establishment,2 - Operations - Learning Disability,LDP Fenland Locality - Care,Day and Domicillary Care Independent Sector
Cambridgeshire County Council,02-Feb-17,22413650-14762949,-2181,Turning Point Services Ltd,Care Establishment,2 - Operations - Learning Disability,LDP Fenland Locality - Care,Day and Domicillary Care Independent Sector
Cambridgeshire County Council,02-Feb-17,22413652-14762951,-2181,Turning Point Services Ltd,Care Establishment,2 - Operations - Learning Disability,LDP Fenland Locality - Care,Day and Domicillary Care Independent Sector
Cambridgeshire County Council,02-Feb-17,22413655-14762954,-2181,Turning Point Services Ltd,Care Establishment,2 - Operations - Learning Disability,LDP Fenland Locality - Care,Day and Domicillary Care Independent Sector
Cambridgeshire County Council,02-Feb-17,22413656-14762955,-2181,Turning Point Services Ltd,Care Establishment,2 - Operations - Learning Disability,LDP Fenland Locality - Care,Day and Domicillary Care Independent Sector
Cambridgeshire County Council,02-Feb-17,22413658-14762957,-2181,Turning Point Services Ltd,Care Establishment,2 - Operations - Learning Disability,LDP Fenland Locality - Care,Day and Domicillary Care Independent Sector
Cambridgeshire County Council,02-Feb-17,22413660-14762959,-2181,Turning Point Services Ltd,Care Establishment,2 - Operations - Learning Disability,LDP Fenland Locality - Care,Day and Domicillary Care Independent Sector
Cambridgeshire County Council,02-Feb-17,22413663-14762962,-2181,Turning Point Services Ltd,Care Establishment,2 - Operations - Learning Disability,LDP Fenland Locality - Care,Day and Domicillary Care Independent Sector
Cambridgeshire County Council,02-Feb-17,22413664-14762963,-2181,Turning Point Services Ltd,Care Establishment,2 - Operations - Learning Disability,LDP Fenland Locality - Care,Day and Domicillary Care Independent Sector
Cambridgeshire County Council,02-Feb-17,22413665-14762964,-2181,Turning Point Services Ltd,Care Establishment,2 - Operations - Learning Disability,LDP Fenland Locality - Care,Day and Domicillary Care Independent Sector
Cambridgeshire County Council,02-Feb-17,22413667-14762966,-2181,Turning Point Services Ltd,Care Establishment,2 - Operations - Learning Disability,LDP Fenland Locality - Care,Day and Domicillary Care Independent Sector
Cambridgeshire County Council,02-Feb-17,22413092-14762967,-2181,Turning Point Services Ltd,Care Establishment,2 - Operations - Learning Disability,LDP Fenland Locality - Care,Day and Domicillary Care Independent Sector
Cambridgeshire County Council,02-Feb-17,22413094-14762969,-2181,Turning Point Services Ltd,Care Establishment,2 - Operations - Learning Disability,LDP Fenland Locality - Care,Day and Domicillary Care Independent Sector
Cambridgeshire County Council,02-Feb-17,22413095-14762970,-2181,Turning Point Services Ltd,Care Establishment,2 - Operations - Learning Disability,LDP Fenland Locality - Care,Day and Domicillary Care Independent Sector
Cambridgeshire County Council,02-Feb-17,22413096-14762971,-2181,Turning Point Services Ltd,Care Establishment,2 - Operations - Learning Disability,LDP Fenland Locality - Care,Day and Domicillary Care Independent Sector
Cambridgeshire County Council,02-Feb-17,22413101-14762976,-2181,Turning Point Services Ltd,Care Establishment,2 - Operations - Learning Disability,LDP Fenland Locality - Care,Day and Domicillary Care Independent Sector
Cambridgeshire County Council,02-Feb-17,22413103-14762978,-2181,Turning Point Services Ltd,Care Establishment,2 - Operations - Learning Disability,LDP Fenland Locality - Care,Day and Domicillary Care Independent Sector
Cambridgeshire County Council,02-Feb-17,22413105-14762980,-2181,Turning Point Services Ltd,Care Establishment,2 - Operations - Learning Disability,LDP Fenland Locality - Care,Day and Domicillary Care Independent Sector
Cambridgeshire County Council,02-Feb-17,22413106-14762981,-2181,Turning Point Services Ltd,Care Establishment,2 - Operations - Learning Disability,LDP Fenland Locality - Care,Day and Domicillary Care Independent Sector
Cambridgeshire County Council,02-Feb-17,22413108-14762983,-2181,Turning Point Services Ltd,Care Establishment,2 - Operations - Learning Disability,LDP Fenland Locality - Care,Day and Domicillary Care Independent Sector
Cambridgeshire County Council,02-Feb-17,22413109-14762984,-2181,Turning Point Services Ltd,Care Establishment,2 - Operations - Learning Disability,LDP Fenland Locality - Care,Day and Domicillary Care Independent Sector
Cambridgeshire County Council,02-Feb-17,22413111-14762986,-2181,Turning Point Services Ltd,Care Establishment,2 - Operations - Learning Disability,LDP Fenland Locality - Care,Day and Domicillary Care Independent Sector
Cambridgeshire County Council,02-Feb-17,22413117-14762992,-2181,Turning Point Services Ltd,Care Establishment,2 - Operations - Learning Disability,LDP Fenland Locality - Care,Day and Domicillary Care Independent Sector
Cambridgeshire County Council,02-Feb-17,22413118-14762993,-2181,Turning Point Services Ltd,Care Establishment,2 - Operations - Learning Disability,LDP Fenland Locality - Care,Day and Domicillary Care Independent Sector
Cambridgeshire County Council,02-Feb-17,22413119-14762994,-2181,Turning Point Services Ltd,Care Establishment,2 - Operations - Learning Disability,LDP Fenland Locality - Care,Day and Domicillary Care Independent Sector
Cambridgeshire County Council,02-Feb-17,22413123-14762998,-2181,Turning Point Services Ltd,Care Establishment,2 - Operations - Learning Disability,LDP Fenland Locality - Care,Day and Domicillary Care Independent Sector
Cambridgeshire County Council,02-Feb-17,22413125-14763000,-2181,Turning Point Services Ltd,Care Establishment,2 - Operations - Learning Disability,LDP Fenland Locality - Care,Day and Domicillary Care Independent Sector
Cambridgeshire County Council,02-Feb-17,22413129-14763004,-2181,Turning Point Services Ltd,Care Establishment,2 - Operations - Learning Disability,LDP Fenland Locality - Care,Day and Domicillary Care Independent Sector
Cambridgeshire County Council,02-Feb-17,22413130-14763005,-2181,Turning Point Services Ltd,Care Establishment,2 - Operations - Learning Disability,LDP Fenland Locality - Care,Day and Domicillary Care Independent Sector
Cambridgeshire County Council,02-Feb-17,22413131-14763006,-2181,Turning Point Services Ltd,Care Establishment,2 - Operations - Learning Disability,LDP Fenland Locality - Care,Day and Domicillary Care Independent Sector
Cambridgeshire County Council,02-Feb-17,22413136-14763011,-2181,Turning Point Services Ltd,Care Establishment,2 - Operations - Learning Disability,LDP Fenland Locality - Care,Day and Domicillary Care Independent Sector
Cambridgeshire County Council,02-Feb-17,22413138-14763013,-2181,Turning Point Services Ltd,Care Establishment,2 - Operations - Learning Disability,LDP Fenland Locality - Care,Day and Domicillary Care Independent Sector
Cambridgeshire County Council,02-Feb-17,22413140-14763015,-2181,Turning Point Services Ltd,Care Establishment,2 - Operations - Learning Disability,LDP Fenland Locality - Care,Day and Domicillary Care Independent Sector
Cambridgeshire County Council,02-Feb-17,22413141-14763016,-2181,Turning Point Services Ltd,Care Establishment,2 - Operations - Learning Disability,LDP Fenland Locality - Care,Day and Domicillary Care Independent Sector
Cambridgeshire County Council,02-Feb-17,22413142-14763017,-2181,Turning Point Services Ltd,Care Establishment,2 - Operations - Learning Disability,LDP Fenland Locality - Care,Day and Domicillary Care Independent Sector
Cambridgeshire County Council,02-Feb-17,22413144-14763019,-2181,Turning Point Services Ltd,Care Establishment,2 - Operations - Learning Disability,LDP Fenland Locality - Care,Day and Domicillary Care Independent Sector
Cambridgeshire County Council,02-Feb-17,22413146-14763021,-2181,Turning Point Services Ltd,Care Establishment,2 - Operations - Learning Disability,LDP Fenland Locality - Care,Day and Domicillary Care Independent Sector
Cambridgeshire County Council,02-Feb-17,22413147-14763022,-2181,Turning Point Services Ltd,Care Establishment,2 - Operations - Learning Disability,LDP Fenland Locality - Care,Day and Domicillary Care Independent Sector
Cambridgeshire County Council,02-Feb-17,22413148-14763023,-2181,Turning Point Services Ltd,Care Establishment,2 - Operations - Learning Disability,LDP Fenland Locality - Care,Day and Domicillary Care Independent Sector
Cambridgeshire County Council,02-Feb-17,22413150-14763025,-2181,Turning Point Services Ltd,Care Establishment,2 - Operations - Learning Disability,LDP Fenland Locality - Care,Day and Domicillary Care Independent Sector
Cambridgeshire County Council,02-Feb-17,22413152-14763027,-2181,Turning Point Services Ltd,Care Establishment,2 - Operations - Learning Disability,LDP Fenland Locality - Care,Day and Domicillary Care Independent Sector
Cambridgeshire County Council,02-Feb-17,22413153-14763028,-2181,Turning Point Services Ltd,Care Establishment,2 - Operations - Learning Disability,LDP Fenland Locality - Care,Day and Domicillary Care Independent Sector
Cambridgeshire County Council,02-Feb-17,22413154-14763029,-2181,Turning Point Services Ltd,Care Establishment,2 - Operations - Learning Disability,LDP Fenland Locality - Care,Day and Domicillary Care Independent Sector
Cambridgeshire County Council,02-Feb-17,22413155-14763030,-2181,Turning Point Services Ltd,Care Establishment,2 - Operations - Learning Disability,LDP Fenland Locality - Care,Day and Domicillary Care Independent Sector
Cambridgeshire County Council,02-Feb-17,22413156-14763031,-2181,Turning Point Services Ltd,Care Establishment,2 - Operations - Learning Disability,LDP Fenland Locality - Care,Day and Domicillary Care Independent Sector
Cambridgeshire County Council,02-Feb-17,22413159-14763034,-2181,Turning Point Services Ltd,Care Establishment,2 - Operations - Learning Disability,LDP Fenland Locality - Care,Day and Domicillary Care Independent Sector
Cambridgeshire County Council,02-Feb-17,22413161-14763036,-2181,Turning Point Services Ltd,Care Establishment,2 - Operations - Learning Disability,LDP Fenland Locality - Care,Day and Domicillary Care Independent Sector
Cambridgeshire County Council,02-Feb-17,22413163-14763038,-2181,Turning Point Services Ltd,Care Establishment,2 - Operations - Learning Disability,LDP Fenland Locality - Care,Day and Domicillary Care Independent Sector
Cambridgeshire County Council,02-Feb-17,22413166-14763041,-2181,Turning Point Services Ltd,Care Establishment,2 - Operations - Learning Disability,LDP Fenland Locality - Care,Day and Domicillary Care Independent Sector
Cambridgeshire County Council,02-Feb-17,22413167-14763042,-2181,Turning Point Services Ltd,Care Establishment,2 - Operations - Learning Disability,LDP Fenland Locality - Care,Day and Domicillary Care Independent Sector
Cambridgeshire County Council,02-Feb-17,22413168-14763043,-2181,Turning Point Services Ltd,Care Establishment,2 - Operations - Learning Disability,LDP Fenland Locality - Care,Day and Domicillary Care Independent Sector
Cambridgeshire County Council,02-Feb-17,22410717-14763048,-2181,Turning Point Services Ltd,Care Establishment,2 - Operations - Learning Disability,LDP Fenland Locality - Care,Day and Domicillary Care Independent Sector
Cambridgeshire County Council,02-Feb-17,22410718-14763049,-2181,Turning Point Services Ltd,Care Establishment,2 - Operations - Learning Disability,LDP Fenland Locality - Care,Day and Domicillary Care Independent Sector
Cambridgeshire County Council,02-Feb-17,22411615-14763055,-2181,Turning Point Services Ltd,Care Establishment,2 - Operations - Learning Disability,LDP Fenland Locality - Care,Day and Domicillary Care Independent Sector
Cambridgeshire County Council,02-Feb-17,22411616-14763056,-2181,Turning Point Services Ltd,Care Establishment,2 - Operations - Learning Disability,LDP Fenland Locality - Care,Day and Domicillary Care Independent Sector
Cambridgeshire County Council,02-Feb-17,22411617-14763057,-2181,Turning Point Services Ltd,Care Establishment,2 - Operations - Learning Disability,LDP Fenland Locality - Care,Day and Domicillary Care Independent Sector
Cambridgeshire County Council,02-Feb-17,22411618-14763058,-2181,Turning Point Services Ltd,Care Establishment,2 - Operations - Learning Disability,LDP Fenland Locality - Care,Day and Domicillary Care Independent Sector
Cambridgeshire County Council,02-Feb-17,22411620-14763059,-2181,Turning Point Services Ltd,Care Establishment,2 - Operations - Learning Disability,LDP Fenland Locality - Care,Day and Domicillary Care Independent Sector
Cambridgeshire County Council,02-Feb-17,22411621-14763060,-2181,Turning Point Services Ltd,Care Establishment,2 - Operations - Learning Disability,LDP Fenland Locality - Care,Day and Domicillary Care Independent Sector
Cambridgeshire County Council,02-Feb-17,22411624-14763063,-2181,Turning Point Services Ltd,Care Establishment,2 - Operations - Learning Disability,LDP Fenland Locality - Care,Day and Domicillary Care Independent Sector
Cambridgeshire County Council,02-Feb-17,22410686-14763065,-2181,Turning Point Services Ltd,Care Establishment,2 - Operations - Learning Disability,LDP Fenland Locality - Care,Day and Domicillary Care Independent Sector
Cambridgeshire County Council,02-Feb-17,22410690-14763069,-2181,Turning Point Services Ltd,Care Establishment,2 - Operations - Learning Disability,LDP Fenland Locality - Care,Day and Domicillary Care Independent Sector
Cambridgeshire County Council,02-Feb-17,22410692-14763071,-2181,Turning Point Services Ltd,Care Establishment,2 - Operations - Learning Disability,LDP Fenland Locality - Care,Day and Domicillary Care Independent Sector
Cambridgeshire County Council,02-Feb-17,22410695-14763074,-2181,Turning Point Services Ltd,Care Establishment,2 - Operations - Learning Disability,LDP Fenland Locality - Care,Day and Domicillary Care Independent Sector
Cambridgeshire County Council,02-Feb-17,22410696-14763075,-2181,Turning Point Services Ltd,Care Establishment,2 - Operations - Learning Disability,LDP Fenland Locality - Care,Day and Domicillary Care Independent Sector
Cambridgeshire County Council,02-Feb-17,22410697-14763076,-2181,Turning Point Services Ltd,Care Establishment,2 - Operations - Learning Disability,LDP Fenland Locality - Care,Day and Domicillary Care Independent Sector
Cambridgeshire County Council,02-Feb-17,22410702-14763081,-2181,Turning Point Services Ltd,Care Establishment,2 - Operations - Learning Disability,LDP Fenland Locality - Care,Day and Domicillary Care Independent Sector
Cambridgeshire County Council,02-Feb-17,22410703-14763082,-2181,Turning Point Services Ltd,Care Establishment,2 - Operations - Learning Disability,LDP Fenland Locality - Care,Day and Domicillary Care Independent Sector
Cambridgeshire County Council,02-Feb-17,22410705-14763084,-2181,Turning Point Services Ltd,Care Establishment,2 - Operations - Learning Disability,LDP Fenland Locality - Care,Day and Domicillary Care Independent Sector
Cambridgeshire County Council,02-Feb-17,22410709-14763088,-2181,Turning Point Services Ltd,Care Establishment,2 - Operations - Learning Disability,LDP Fenland Locality - Care,Day and Domicillary Care Independent Sector
Cambridgeshire County Council,02-Feb-17,22410711-14763090,-2181,Turning Point Services Ltd,Care Establishment,2 - Operations - Learning Disability,LDP Fenland Locality - Care,Day and Domicillary Care Independent Sector
Cambridgeshire County Council,02-Feb-17,22410714-14763093,-2181,Turning Point Services Ltd,Care Establishment,2 - Operations - Learning Disability,LDP Fenland Locality - Care,Day and Domicillary Care Independent Sector
Cambridgeshire County Council,02-Feb-17,22413636-14762935,-2181,Turning Point Services Ltd,Care Establishment,2 - Operations - Learning Disability,LDP Fenland Locality - Care,Day and Domicillary Care Independent Sector
Cambridgeshire County Council,02-Feb-17,22492823-14758300,-2169.67,Centra Support,Care Establishment,2 - Operations - Learning Disability,LDP City Locality - Care,Supported Living
Cambridgeshire County Council,02-Feb-17,22492825-14758302,-2169.67,Centra Support,Care Establishment,2 - Operations - Learning Disability,LDP City Locality - Care,Supported Living
Cambridgeshire County Council,02-Feb-17,22492830-14758304,-2169.67,Centra Support,Care Establishment,2 - Operations - Learning Disability,LDP City Locality - Care,Supported Living
Cambridgeshire County Council,02-Feb-17,22492836-14758308,-2169.67,Centra Support,Care Establishment,2 - Operations - Learning Disability,LDP City Locality - Care,Supported Living
Cambridgeshire County Council,02-Feb-17,22492837-14758309,-2169.67,Centra Support,Care Establishment,2 - Operations - Learning Disability,LDP City Locality - Care,Supported Living
Cambridgeshire County Council,02-Feb-17,22492838-14758310,-2169.67,Centra Support,Care Establishment,2 - Operations - Learning Disability,LDP City Locality - Care,Supported Living
Cambridgeshire County Council,02-Feb-17,22492843-14758312,-2169.67,Centra Support,Care Establishment,2 - Operations - Learning Disability,LDP City Locality - Care,Supported Living
Cambridgeshire County Council,02-Feb-17,22492852-14758317,-2169.67,Centra Support,Care Establishment,2 - Operations - Learning Disability,LDP City Locality - Care,Supported Living
Cambridgeshire County Council,02-Feb-17,22492856-14758318,-2169.67,Centra Support,Care Establishment,2 - Operations - Learning Disability,LDP City Locality - Care,Supported Living
Cambridgeshire County Council,02-Feb-17,22492857-14758319,-2169.67,Centra Support,Care Establishment,2 - Operations - Learning Disability,LDP City Locality - Care,Supported Living
Cambridgeshire County Council,02-Feb-17,22492858-14758320,-2169.67,Centra Support,Care Establishment,2 - Operations - Learning Disability,LDP City Locality - Care,Supported Living
Cambridgeshire County Council,02-Feb-17,22492861-14758323,-2169.67,Centra Support,Care Establishment,2 - Operations - Learning Disability,LDP City Locality - Care,Supported Living
Cambridgeshire County Council,02-Feb-17,22492862-14758324,-2169.67,Centra Support,Care Establishment,2 - Operations - Learning Disability,LDP City Locality - Care,Supported Living
Cambridgeshire County Council,02-Feb-17,22492871-14758325,-2169.67,Centra Support,Care Establishment,2 - Operations - Learning Disability,LDP City Locality - Care,Supported Living
Cambridgeshire County Council,02-Feb-17,22492872-14758326,-2169.67,Centra Support,Care Establishment,2 - Operations - Learning Disability,LDP City Locality - Care,Supported Living
Cambridgeshire County Council,02-Feb-17,22492873-14758327,-2169.67,Centra Support,Care Establishment,2 - Operations - Learning Disability,LDP City Locality - Care,Supported Living
Cambridgeshire County Council,02-Feb-17,22492875-14758329,-2169.67,Centra Support,Care Establishment,2 - Operations - Learning Disability,LDP City Locality - Care,Supported Living
Cambridgeshire County Council,02-Feb-17,22492883-14758330,-2169.67,Centra Support,Care Establishment,2 - Operations - Learning Disability,LDP City Locality - Care,Supported Living
Cambridgeshire County Council,02-Feb-17,22492884-14758331,-2169.67,Centra Support,Care Establishment,2 - Operations - Learning Disability,LDP City Locality - Care,Supported Living
Cambridgeshire County Council,02-Feb-17,22492893-14758336,-2169.67,Centra Support,Care Establishment,2 - Operations - Learning Disability,LDP City Locality - Care,Supported Living
Cambridgeshire County Council,02-Feb-17,22492894-14758337,-2169.67,Centra Support,Care Establishment,2 - Operations - Learning Disability,LDP City Locality - Care,Supported Living
Cambridgeshire County Council,02-Feb-17,22492905-14758340,-2169.67,Centra Support,Care Establishment,2 - Operations - Learning Disability,LDP City Locality - Care,Supported Living
Cambridgeshire County Council,02-Feb-17,22492906-14758341,-2169.67,Centra Support,Care Establishment,2 - Operations - Learning Disability,LDP City Locality - Care,Supported Living
Cambridgeshire County Council,02-Feb-17,22492759-14758342,-2169.67,Centra Support,Care Establishment,2 - Operations - Learning Disability,LDP City Locality - Care,Supported Living
Cambridgeshire County Council,02-Feb-17,22492777-14758346,-2169.67,Centra Support,Care Establishment,2 - Operations - Learning Disability,LDP City Locality - Care,Supported Living
Cambridgeshire County Council,02-Feb-17,22492779-14758348,-2169.67,Centra Support,Care Establishment,2 - Operations - Learning Disability,LDP City Locality - Care,Supported Living
Cambridgeshire County Council,02-Feb-17,22492781-14758350,-2169.67,Centra Support,Care Establishment,2 - Operations - Learning Disability,LDP City Locality - Care,Supported Living
Cambridgeshire County Council,02-Feb-17,22492788-14758353,-2169.67,Centra Support,Care Establishment,2 - Operations - Learning Disability,LDP City Locality - Care,Supported Living
Cambridgeshire County Council,02-Feb-17,22492789-14758354,-2169.67,Centra Support,Care Establishment,2 - Operations - Learning Disability,LDP City Locality - Care,Supported Living
Cambridgeshire County Council,02-Feb-17,22492790-14758355,-2169.67,Centra Support,Care Establishment,2 - Operations - Learning Disability,LDP City Locality - Care,Supported Living
Cambridgeshire County Council,02-Feb-17,22492805-14758361,-2169.67,Centra Support,Care Establishment,2 - Operations - Learning Disability,LDP City Locality - Care,Supported Living
Cambridgeshire County Council,02-Feb-17,22492806-14758362,-2169.67,Centra Support,Care Establishment,2 - Operations - Learning Disability,LDP City Locality - Care,Supported Living
Cambridgeshire County Council,02-Feb-17,22492807-14758363,-2169.67,Centra Support,Care Establishment,2 - Operations - Learning Disability,LDP City Locality - Care,Supported Living
Cambridgeshire County Council,02-Feb-17,22498876-14758365,-2169.67,Centra Support,Care Establishment,2 - Operations - Learning Disability,LDP City Locality - Care,Supported Living
Cambridgeshire County Council,02-Feb-17,22498878-14758367,-2169.67,Centra Support,Care Establishment,2 - Operations - Learning Disability,LDP City Locality - Care,Supported Living
Cambridgeshire County Council,02-Feb-17,22498886-14758370,-2169.67,Centra Support,Care Establishment,2 - Operations - Learning Disability,LDP City Locality - Care,Supported Living
Cambridgeshire County Council,02-Feb-17,22498887-14758371,-2169.67,Centra Support,Care Establishment,2 - Operations - Learning Disability,LDP City Locality - Care,Supported Living
Cambridgeshire County Council,02-Feb-17,22498890-14758374,-2169.67,Centra Support,Care Establishment,2 - Operations - Learning Disability,LDP City Locality - Care,Supported Living
Cambridgeshire County Council,02-Feb-17,22498912-14758379,-2169.67,Centra Support,Care Establishment,2 - Operations - Learning Disability,LDP City Locality - Care,Supported Living
Cambridgeshire County Council,02-Feb-17,22498933-14758386,-2169.67,Centra Support,Care Establishment,2 - Operations - Learning Disability,LDP City Locality - Care,Supported Living
Cambridgeshire County Council,23-Feb-17,22408429-14870055,-2059.2,Softcat Ltd,Trade Supplier,LRNG,ICT Service Procurement,Materials for resale
Cambridgeshire County Council,24-Feb-17,22646463-14880917,-1998.64,Etheldred House,Care Establishment,5 - Commissioning - Mental Health & Supporting People,OP Blocks - Care Placements,Nursing Independent Sector
Cambridgeshire County Council,10-Feb-17,22073732-14825119,-1800,Peterborough Regional College,Education,S&C,H to S Transport - Secondary,Home to School - Contract
Cambridgeshire County Council,24-Feb-17,22604654-14879196,-1668,The Trinity Centre Conference Centre & Health Club,Trade Supplier,LRNG,Eslac,Assistance to School Students
Cambridgeshire County Council,16-Feb-17,22582271-14842073,-1568.5,The Cambridge Nursing Centre,Care Establishment,5 - Commissioning - Mental Health & Supporting People,OP Blocks - Care Placements,Nursing Independent Sector
Cambridgeshire County Council,16-Feb-17,22585232-14842091,-1568.5,The Cambridge Nursing Centre,Care Establishment,5 - Commissioning - Mental Health & Supporting People,OP Blocks - Care Placements,Nursing Independent Sector
Cambridgeshire County Council,16-Feb-17,22585238-14842094,-1568.5,The Cambridge Nursing Centre,Care Establishment,5 - Commissioning - Mental Health & Supporting People,OP Blocks - Care Placements,Nursing Independent Sector
Cambridgeshire County Council,16-Feb-17,22585246-14842098,-1568.5,The Cambridge Nursing Centre,Care Establishment,5 - Commissioning - Mental Health & Supporting People,OP Blocks - Care Placements,Nursing Independent Sector
Cambridgeshire County Council,16-Feb-17,22585247-14842099,-1568.5,The Cambridge Nursing Centre,Care Establishment,5 - Commissioning - Mental Health & Supporting People,OP Blocks - Care Placements,Nursing Independent Sector
Cambridgeshire County Council,16-Feb-17,22584218-14842117,-1568.5,The Cambridge Nursing Centre,Care Establishment,5 - Commissioning - Mental Health & Supporting People,OP Blocks - Care Placements,Nursing Independent Sector
Cambridgeshire County Council,16-Feb-17,22584219-14842118,-1568.5,The Cambridge Nursing Centre,Care Establishment,5 - Commissioning - Mental Health & Supporting People,OP Blocks - Care Placements,Nursing Independent Sector
Cambridgeshire County Council,16-Feb-17,22584220-14842119,-1568.5,The Cambridge Nursing Centre,Care Establishment,5 - Commissioning - Mental Health & Supporting People,OP Blocks - Care Placements,Nursing Independent Sector
Cambridgeshire County Council,16-Feb-17,22584225-14842122,-1568.5,The Cambridge Nursing Centre,Care Establishment,5 - Commissioning - Mental Health & Supporting People,OP Blocks - Care Placements,Nursing Independent Sector
Cambridgeshire County Council,16-Feb-17,22584239-14842127,-1568.5,The Cambridge Nursing Centre,Care Establishment,5 - Commissioning - Mental Health & Supporting People,OP Blocks - Care Placements,Nursing Independent Sector
Cambridgeshire County Council,16-Feb-17,22584240-14842128,-1568.5,The Cambridge Nursing Centre,Care Establishment,5 - Commissioning - Mental Health & Supporting People,OP Blocks - Care Placements,Nursing Independent Sector
Cambridgeshire County Council,16-Feb-17,22584212-14842156,-1568.5,The Cambridge Nursing Centre,Care Establishment,5 - Commissioning - Mental Health & Supporting People,OP Blocks - Care Placements,Nursing Independent Sector
Cambridgeshire County Council,24-Feb-17,22644388-14880894,-1539,Etheldred House,Care Establishment,5 - Commissioning - Mental Health & Supporting People,OP Blocks - Care Placements,Residential Independent Sector
Cambridgeshire County Council,24-Feb-17,22644408-14880901,-1539,Etheldred House,Care Establishment,5 - Commissioning - Mental Health & Supporting People,OP Blocks - Care Placements,Residential Independent Sector
Cambridgeshire County Council,24-Feb-17,22648279-14880905,-1539,Etheldred House,Care Establishment,5 - Commissioning - Mental Health & Supporting People,OP Blocks - Care Placements,Residential Independent Sector
Cambridgeshire County Council,24-Feb-17,22648268-14880910,-1539,Etheldred House,Care Establishment,5 - Commissioning - Mental Health & Supporting People,OP Blocks - Care Placements,Residential Independent Sector
Cambridgeshire County Council,24-Feb-17,22646452-14880913,-1539,Etheldred House,Care Establishment,5 - Commissioning - Mental Health & Supporting People,OP Blocks - Care Placements,Residential Independent Sector
Cambridgeshire County Council,24-Feb-17,22646464-14880918,-1539,Etheldred House,Care Establishment,5 - Commissioning - Mental Health & Supporting People,OP Blocks - Care Placements,Residential Independent Sector
Cambridgeshire County Council,24-Feb-17,22646467-14880920,-1539,Etheldred House,Care Establishment,5 - Commissioning - Mental Health & Supporting People,OP Blocks - Care Placements,Residential Independent Sector
Cambridgeshire County Council,24-Feb-17,22646475-14880923,-1539,Etheldred House,Care Establishment,5 - Commissioning - Mental Health & Supporting People,OP Blocks - Care Placements,Residential Independent Sector
Cambridgeshire County Council,24-Feb-17,22646481-14880928,-1539,Etheldred House,Care Establishment,5 - Commissioning - Mental Health & Supporting People,OP Blocks - Care Placements,Residential Independent Sector
Cambridgeshire County Council,02-Feb-17,22498549-14765088,-1529.79,23 Lions Cross (Voyage),Care Establishment,2 - Operations - Learning Disability,LDP Huntingdonshire Locality - Care,Supported Living
Cambridgeshire County Council,02-Feb-17,22498550-14765089,-1529.79,23 Lions Cross (Voyage),Care Establishment,2 - Operations - Learning Disability,LDP Huntingdonshire Locality - Care,Supported Living
Cambridgeshire County Council,02-Feb-17,22498555-14765094,-1529.79,23 Lions Cross (Voyage),Care Establishment,2 - Operations - Learning Disability,LDP Huntingdonshire Locality - Care,Supported Living
Cambridgeshire County Council,02-Feb-17,22498543-14765082,-1529.79,23 Lions Cross (Voyage),Care Establishment,2 - Operations - Learning Disability,LDP Huntingdonshire Locality - Care,Supported Living
Cambridgeshire County Council,02-Feb-17,22498545-14765084,-1529.79,23 Lions Cross (Voyage),Care Establishment,2 - Operations - Learning Disability,LDP Huntingdonshire Locality - Care,Supported Living
Cambridgeshire County Council,14-Feb-17,22564671-14834464,-1412.69,Imtech Aqua Maintenance Ltd,Company,LGSS Managed,Building Maintenance,Building Maintenance - Structural Maintenance - Planned
Cambridgeshire County Council,27-Feb-17,22461829-14886305,-1400.16,Heales Medical Ltd T/A H M Partnership Llp,Care Establishment,ED,HR - Health Checks,Staff health and welfare - Medical Costs
Cambridgeshire County Council,02-Feb-17,22413776-14756653,-1399.34,Rnid Leopold Muller Care Home,Care Establishment,2 - Commissioning - Older people Pool,Older People - City & South,Nursing Independent Sector
Cambridgeshire County Council,02-Feb-17,22413778-14756655,-1399.34,Rnid Leopold Muller Care Home,Care Establishment,2 - Commissioning - Older people Pool,Older People - City & South,Nursing Independent Sector
Cambridgeshire County Council,02-Feb-17,22413781-14756658,-1399.34,Rnid Leopold Muller Care Home,Care Establishment,2 - Commissioning - Older people Pool,Older People - City & South,Nursing Independent Sector
Cambridgeshire County Council,02-Feb-17,22413782-14756659,-1399.34,Rnid Leopold Muller Care Home,Care Establishment,2 - Commissioning - Older people Pool,Older People - City & South,Nursing Independent Sector
Cambridgeshire County Council,02-Feb-17,22413784-14756661,-1399.34,Rnid Leopold Muller Care Home,Care Establishment,2 - Commissioning - Older people Pool,Older People - City & South,Nursing Independent Sector
Cambridgeshire County Council,02-Feb-17,22413785-14756662,-1399.34,Rnid Leopold Muller Care Home,Care Establishment,2 - Commissioning - Older people Pool,Older People - City & South,Nursing Independent Sector
Cambridgeshire County Council,02-Feb-17,22413786-14756663,-1399.34,Rnid Leopold Muller Care Home,Care Establishment,2 - Commissioning - Older people Pool,Older People - City & South,Nursing Independent Sector
Cambridgeshire County Council,02-Feb-17,22413788-14756665,-1399.34,Rnid Leopold Muller Care Home,Care Establishment,2 - Commissioning - Older people Pool,Older People - City & South,Nursing Independent Sector
Cambridgeshire County Council,02-Feb-17,22413790-14756667,-1399.34,Rnid Leopold Muller Care Home,Care Establishment,2 - Commissioning - Older people Pool,Older People - City & South,Nursing Independent Sector
Cambridgeshire County Council,02-Feb-17,22413791-14756668,-1399.34,Rnid Leopold Muller Care Home,Care Establishment,2 - Commissioning - Older people Pool,Older People - City & South,Nursing Independent Sector
Cambridgeshire County Council,02-Feb-17,22413793-14756670,-1399.34,Rnid Leopold Muller Care Home,Care Establishment,2 - Commissioning - Older people Pool,Older People - City & South,Nursing Independent Sector
Cambridgeshire County Council,02-Feb-17,22413794-14756671,-1399.34,Rnid Leopold Muller Care Home,Care Establishment,2 - Commissioning - Older people Pool,Older People - City & South,Nursing Independent Sector
Cambridgeshire County Council,02-Feb-17,22413797-14756674,-1399.34,Rnid Leopold Muller Care Home,Care Establishment,2 - Commissioning - Older people Pool,Older People - City & South,Nursing Independent Sector
Cambridgeshire County Council,02-Feb-17,22413800-14756677,-1399.34,Rnid Leopold Muller Care Home,Care Establishment,2 - Commissioning - Older people Pool,Older People - City & South,Nursing Independent Sector
Cambridgeshire County Council,02-Feb-17,22413804-14756681,-1399.34,Rnid Leopold Muller Care Home,Care Establishment,2 - Commissioning - Older people Pool,Older People - City & South,Nursing Independent Sector
Cambridgeshire County Council,02-Feb-17,22413806-14756683,-1399.34,Rnid Leopold Muller Care Home,Care Establishment,2 - Commissioning - Older people Pool,Older People - City & South,Nursing Independent Sector
Cambridgeshire County Council,02-Feb-17,22413807-14756684,-1399.34,Rnid Leopold Muller Care Home,Care Establishment,2 - Commissioning - Older people Pool,Older People - City & South,Nursing Independent Sector
Cambridgeshire County Council,02-Feb-17,22413810-14756687,-1399.34,Rnid Leopold Muller Care Home,Care Establishment,2 - Commissioning - Older people Pool,Older People - City & South,Nursing Independent Sector
Cambridgeshire County Council,02-Feb-17,22510384-14772420,-1394.62,Renton Court (Voyage),Care Establishment,2 - Operations - Learning Disability,LDP Huntingdonshire Locality - Care,Supported Living
Cambridgeshire County Council,02-Feb-17,22510385-14772421,-1394.62,Renton Court (Voyage),Care Establishment,2 - Operations - Learning Disability,LDP Huntingdonshire Locality - Care,Supported Living
Cambridgeshire County Council,02-Feb-17,22510388-14772424,-1394.62,Renton Court (Voyage),Care Establishment,2 - Operations - Learning Disability,LDP Huntingdonshire Locality - Care,Supported Living
Cambridgeshire County Council,02-Feb-17,22500379-14772482,-1394.62,Renton Court (Voyage),Care Establishment,2 - Operations - Learning Disability,LDP Huntingdonshire Locality - Care,Supported Living
Cambridgeshire County Council,02-Feb-17,22500376-14772512,-1394.62,Renton Court (Voyage),Care Establishment,2 - Operations - Learning Disability,LDP Huntingdonshire Locality - Care,Supported Living
Cambridgeshire County Council,02-Feb-17,22500541-14765153,-1382.7,23 Lions Cross (Voyage),Care Establishment,2 - Operations - Learning Disability,LDP Huntingdonshire Locality - Care,Supported Living
Cambridgeshire County Council,02-Feb-17,22500553-14765158,-1382.7,23 Lions Cross (Voyage),Care Establishment,2 - Operations - Learning Disability,LDP Huntingdonshire Locality - Care,Supported Living
Cambridgeshire County Council,02-Feb-17,22500516-14765161,-1382.7,23 Lions Cross (Voyage),Care Establishment,2 - Operations - Learning Disability,LDP Huntingdonshire Locality - Care,Supported Living
Cambridgeshire County Council,02-Feb-17,22500517-14765162,-1382.7,23 Lions Cross (Voyage),Care Establishment,2 - Operations - Learning Disability,LDP Huntingdonshire Locality - Care,Supported Living
Cambridgeshire County Council,02-Feb-17,22500520-14765165,-1382.7,23 Lions Cross (Voyage),Care Establishment,2 - Operations - Learning Disability,LDP Huntingdonshire Locality - Care,Supported Living
Cambridgeshire County Council,02-Feb-17,22494016-14772497,-1380.9,Renton Court (Voyage),Care Establishment,2 - Operations - Learning Disability,LDP Hunts special needs,Supported Living
Cambridgeshire County Council,02-Feb-17,22494017-14772498,-1380.9,Renton Court (Voyage),Care Establishment,2 - Operations - Learning Disability,LDP Hunts special needs,Supported Living
Cambridgeshire County Council,02-Feb-17,22500062-14772530,-1380.9,Renton Court (Voyage),Care Establishment,2 - Operations - Learning Disability,LDP Hunts special needs,Supported Living
Cambridgeshire County Council,02-Feb-17,22500063-14772531,-1380.9,Renton Court (Voyage),Care Establishment,2 - Operations - Learning Disability,LDP Hunts special needs,Supported Living
Cambridgeshire County Council,02-Feb-17,22500067-14772534,-1380.9,Renton Court (Voyage),Care Establishment,2 - Operations - Learning Disability,LDP Hunts special needs,Supported Living
Cambridgeshire County Council,02-Feb-17,22498964-14765067,-1377.29,23 Lions Cross (Voyage),Care Establishment,2 - Operations - Learning Disability,LDP Huntingdonshire Locality - Care,Supported Living
Cambridgeshire County Council,02-Feb-17,22498969-14765072,-1377.29,23 Lions Cross (Voyage),Care Establishment,2 - Operations - Learning Disability,LDP Huntingdonshire Locality - Care,Supported Living
Cambridgeshire County Council,02-Feb-17,22498972-14765075,-1377.29,23 Lions Cross (Voyage),Care Establishment,2 - Operations - Learning Disability,LDP Huntingdonshire Locality - Care,Supported Living
Cambridgeshire County Council,02-Feb-17,22498956-14765076,-1377.29,23 Lions Cross (Voyage),Care Establishment,2 - Operations - Learning Disability,LDP Huntingdonshire Locality - Care,Supported Living
Cambridgeshire County Council,02-Feb-17,22498957-14765077,-1377.29,23 Lions Cross (Voyage),Care Establishment,2 - Operations - Learning Disability,LDP Huntingdonshire Locality - Care,Supported Living
Cambridgeshire County Council,02-Feb-17,22509240-14772445,-1371.75,Renton Court (Voyage),Care Establishment,2 - Operations - Learning Disability,LDP Huntingdonshire Locality - Care,Supported Living
Cambridgeshire County Council,02-Feb-17,22509246-14772451,-1371.75,Renton Court (Voyage),Care Establishment,2 - Operations - Learning Disability,LDP Huntingdonshire Locality - Care,Supported Living
Cambridgeshire County Council,02-Feb-17,22509248-14772453,-1371.75,Renton Court (Voyage),Care Establishment,2 - Operations - Learning Disability,LDP Huntingdonshire Locality - Care,Supported Living
Cambridgeshire County Council,02-Feb-17,22509250-14772455,-1371.75,Renton Court (Voyage),Care Establishment,2 - Operations - Learning Disability,LDP Huntingdonshire Locality - Care,Supported Living
Cambridgeshire County Council,02-Feb-17,22509251-14772456,-1371.75,Renton Court (Voyage),Care Establishment,2 - Operations - Learning Disability,LDP Huntingdonshire Locality - Care,Supported Living
Cambridgeshire County Council,02-Feb-17,22499944-14772515,-1371.75,Renton Court (Voyage),Care Establishment,2 - Operations - Learning Disability,LDP Huntingdonshire Locality - Care,Supported Living
Cambridgeshire County Council,02-Feb-17,22499946-14772516,-1371.75,Renton Court (Voyage),Care Establishment,2 - Operations - Learning Disability,LDP Huntingdonshire Locality - Care,Supported Living
Cambridgeshire County Council,02-Feb-17,22499962-14772524,-1371.75,Renton Court (Voyage),Care Establishment,2 - Operations - Learning Disability,LDP Huntingdonshire Locality - Care,Supported Living
Cambridgeshire County Council,02-Feb-17,22499967-14772526,-1371.75,Renton Court (Voyage),Care Establishment,2 - Operations - Learning Disability,LDP Huntingdonshire Locality - Care,Supported Living
Cambridgeshire County Council,02-Feb-17,22499974-14772528,-1371.75,Renton Court (Voyage),Care Establishment,2 - Operations - Learning Disability,LDP Huntingdonshire Locality - Care,Supported Living
Cambridgeshire County Council,02-Feb-17,22494338-14765129,-1370.08,23 Lions Cross (Voyage),Care Establishment,2 - Operations - Learning Disability,LDP Huntingdonshire Locality - Care,Supported Living
Cambridgeshire County Council,02-Feb-17,22494341-14765132,-1370.08,23 Lions Cross (Voyage),Care Establishment,2 - Operations - Learning Disability,LDP Huntingdonshire Locality - Care,Supported Living
Cambridgeshire County Council,02-Feb-17,22494342-14765133,-1370.08,23 Lions Cross (Voyage),Care Establishment,2 - Operations - Learning Disability,LDP Huntingdonshire Locality - Care,Supported Living
Cambridgeshire County Council,02-Feb-17,22494347-14765136,-1370.08,23 Lions Cross (Voyage),Care Establishment,2 - Operations - Learning Disability,LDP Huntingdonshire Locality - Care,Supported Living
Cambridgeshire County Council,02-Feb-17,22493882-14765146,-1370.08,23 Lions Cross (Voyage),Care Establishment,2 - Operations - Learning Disability,LDP Huntingdonshire Locality - Care,Supported Living
Cambridgeshire County Council,02-Feb-17,22496702-14772594,-1367.26,2 Cheveril Lane (Voyage),Care Establishment,2 - Operations - Learning Disability,LDP Huntingdonshire Locality - Care,Supported Living
Cambridgeshire County Council,02-Feb-17,22496703-14772595,-1367.26,2 Cheveril Lane (Voyage),Care Establishment,2 - Operations - Learning Disability,LDP Huntingdonshire Locality - Care,Supported Living
Cambridgeshire County Council,02-Feb-17,22496704-14772596,-1367.26,2 Cheveril Lane (Voyage),Care Establishment,2 - Operations - Learning Disability,LDP Huntingdonshire Locality - Care,Supported Living
Cambridgeshire County Council,02-Feb-17,22496709-14772601,-1367.26,2 Cheveril Lane (Voyage),Care Establishment,2 - Operations - Learning Disability,LDP Huntingdonshire Locality - Care,Supported Living
Cambridgeshire County Council,02-Feb-17,22496710-14772602,-1367.26,2 Cheveril Lane (Voyage),Care Establishment,2 - Operations - Learning Disability,LDP Huntingdonshire Locality - Care,Supported Living
Cambridgeshire County Council,02-Feb-17,22496620-14772585,-1342.86,2 Cheveril Lane (Voyage),Care Establishment,2 - Operations - Learning Disability,LDP Huntingdonshire Locality - Care,Supported Living
Cambridgeshire County Council,02-Feb-17,22496627-14772587,-1342.86,2 Cheveril Lane (Voyage),Care Establishment,2 - Operations - Learning Disability,LDP Huntingdonshire Locality - Care,Supported Living
Cambridgeshire County Council,02-Feb-17,22496594-14772607,-1342.86,2 Cheveril Lane (Voyage),Care Establishment,2 - Operations - Learning Disability,LDP Huntingdonshire Locality - Care,Supported Living
Cambridgeshire County Council,02-Feb-17,22496597-14772608,-1342.86,2 Cheveril Lane (Voyage),Care Establishment,2 - Operations - Learning Disability,LDP Huntingdonshire Locality - Care,Supported Living
Cambridgeshire County Council,02-Feb-17,22496600-14772609,-1342.86,2 Cheveril Lane (Voyage),Care Establishment,2 - Operations - Learning Disability,LDP Huntingdonshire Locality - Care,Supported Living
Cambridgeshire County Council,02-Feb-17,22496930-14772425,-1326.01,Renton Court (Voyage),Care Establishment,2 - Operations - Learning Disability,LDP Huntingdonshire Locality - Care,Supported Living
Cambridgeshire County Council,02-Feb-17,22496932-14772427,-1326.01,Renton Court (Voyage),Care Establishment,2 - Operations - Learning Disability,LDP Huntingdonshire Locality - Care,Supported Living
Cambridgeshire County Council,02-Feb-17,22496936-14772431,-1326.01,Renton Court (Voyage),Care Establishment,2 - Operations - Learning Disability,LDP Huntingdonshire Locality - Care,Supported Living
Cambridgeshire County Council,02-Feb-17,22496937-14772432,-1326.01,Renton Court (Voyage),Care Establishment,2 - Operations - Learning Disability,LDP Huntingdonshire Locality - Care,Supported Living
Cambridgeshire County Council,02-Feb-17,22496944-14772439,-1326.01,Renton Court (Voyage),Care Establishment,2 - Operations - Learning Disability,LDP Huntingdonshire Locality - Care,Supported Living
Cambridgeshire County Council,02-Feb-17,22501235-14772473,-1303.16,Renton Court (Voyage),Care Establishment,2 - Operations - Learning Disability,LDP Huntingdonshire Locality - Care,Supported Living
Cambridgeshire County Council,02-Feb-17,22501240-14772478,-1303.16,Renton Court (Voyage),Care Establishment,2 - Operations - Learning Disability,LDP Huntingdonshire Locality - Care,Supported Living
Cambridgeshire County Council,02-Feb-17,22500793-14772492,-1303.16,Renton Court (Voyage),Care Establishment,2 - Operations - Learning Disability,LDP Huntingdonshire Locality - Care,Supported Living
Cambridgeshire County Council,02-Feb-17,22500796-14772495,-1303.16,Renton Court (Voyage),Care Establishment,2 - Operations - Learning Disability,LDP Huntingdonshire Locality - Care,Supported Living
Cambridgeshire County Council,02-Feb-17,22500797-14772496,-1303.16,Renton Court (Voyage),Care Establishment,2 - Operations - Learning Disability,LDP Huntingdonshire Locality - Care,Supported Living
Cambridgeshire County Council,02-Feb-17,22511696-14772386,-1303.14,Renton Court (Voyage),Care Establishment,2 - Operations - Learning Disability,LDP Huntingdonshire Locality - Care,Supported Living
Cambridgeshire County Council,02-Feb-17,22511705-14772394,-1303.14,Renton Court (Voyage),Care Establishment,2 - Operations - Learning Disability,LDP Huntingdonshire Locality - Care,Supported Living
Cambridgeshire County Council,02-Feb-17,22511708-14772395,-1303.14,Renton Court (Voyage),Care Establishment,2 - Operations - Learning Disability,LDP Huntingdonshire Locality - Care,Supported Living
Cambridgeshire County Council,02-Feb-17,22511710-14772396,-1303.14,Renton Court (Voyage),Care Establishment,2 - Operations - Learning Disability,LDP Huntingdonshire Locality - Care,Supported Living
Cambridgeshire County Council,02-Feb-17,22511715-14772399,-1303.14,Renton Court (Voyage),Care Establishment,2 - Operations - Learning Disability,LDP Huntingdonshire Locality - Care,Supported Living
Cambridgeshire County Council,13-Feb-17,22513829-14830364,-1289,Imperial College Healthcare Nhs Trust,Trust (Other),PH,SH STI testing & treatment - Prescribed,Other Hired Contract Services
Cambridgeshire County Council,28-Feb-17,22662712-14891202,-1217.05,Gold Care Homes (Martins House) Ltd,Care Establishment,2 - Commissioning - Older people Pool,Older People Mental Health Fenland,Residential Independent Sector
Cambridgeshire County Council,02-Feb-17,22507940-14769111,-1198.04,Caretech Community Services,Care Establishment,2 - Operations - Learning Disability,LDP South Cambs Locality - Care,Residential Independent Sector
Cambridgeshire County Council,02-Feb-17,22507943-14769114,-1198.04,Caretech Community Services,Care Establishment,2 - Operations - Learning Disability,LDP South Cambs - Special Needs,Residential Independent Sector
Cambridgeshire County Council,02-Feb-17,22507944-14769115,-1198.04,Caretech Community Services,Care Establishment,2 - Operations - Learning Disability,LDP South Cambs Locality - Care,Residential Independent Sector
Cambridgeshire County Council,02-Feb-17,22507948-14769119,-1198.04,Caretech Community Services,Care Establishment,2 - Operations - Learning Disability,LDP South Cambs - Special Needs,Residential Independent Sector
Cambridgeshire County Council,02-Feb-17,22507949-14769120,-1198.04,Caretech Community Services,Care Establishment,2 - Operations - Learning Disability,LDP South Cambs - Special Needs,Residential Independent Sector
Cambridgeshire County Council,02-Feb-17,22507951-14769122,-1198.04,Caretech Community Services,Care Establishment,2 - Operations - Learning Disability,LDP South Cambs - Special Needs,Residential Independent Sector
Cambridgeshire County Council,02-Feb-17,22507952-14769123,-1198.04,Caretech Community Services,Care Establishment,2 - Operations - Learning Disability,LDP South Cambs Locality - Care,Residential Independent Sector
Cambridgeshire County Council,02-Feb-17,22507955-14769126,-1198.04,Caretech Community Services,Care Establishment,2 - Operations - Learning Disability,LDP South Cambs - Special Needs,Residential Independent Sector
Cambridgeshire County Council,02-Feb-17,22507957-14769128,-1198.04,Caretech Community Services,Care Establishment,2 - Operations - Learning Disability,LDP South Cambs Locality - Care,Residential Independent Sector
Cambridgeshire County Council,02-Feb-17,22506942-14769143,-1198.04,Caretech Community Services,Care Establishment,2 - Operations - Learning Disability,LDP South Cambs Locality - Care,Residential Independent Sector
Cambridgeshire County Council,02-Feb-17,22506943-14769144,-1198.04,Caretech Community Services,Care Establishment,2 - Operations - Learning Disability,LDP South Cambs Locality - Care,Residential Independent Sector
Cambridgeshire County Council,02-Feb-17,22506945-14769146,-1198.04,Caretech Community Services,Care Establishment,2 - Operations - Learning Disability,LDP South Cambs Locality - Care,Residential Independent Sector
Cambridgeshire County Council,02-Feb-17,22506946-14769147,-1198.04,Caretech Community Services,Care Establishment,2 - Operations - Learning Disability,LDP South Cambs - Special Needs,Residential Independent Sector
Cambridgeshire County Council,02-Feb-17,22506949-14769150,-1198.04,Caretech Community Services,Care Establishment,2 - Operations - Learning Disability,LDP South Cambs - Special Needs,Residential Independent Sector
Cambridgeshire County Council,02-Feb-17,22506951-14769152,-1198.04,Caretech Community Services,Care Establishment,2 - Operations - Learning Disability,LDP South Cambs - Special Needs,Residential Independent Sector
Cambridgeshire County Council,02-Feb-17,22506916-14769161,-1198.04,Caretech Community Services,Care Establishment,2 - Operations - Learning Disability,LDP South Cambs - Special Needs,Residential Independent Sector
Cambridgeshire County Council,02-Feb-17,22506918-14769163,-1198.04,Caretech Community Services,Care Establishment,2 - Operations - Learning Disability,LDP South Cambs Locality - Care,Residential Independent Sector
Cambridgeshire County Council,02-Feb-17,22506920-14769165,-1198.04,Caretech Community Services,Care Establishment,2 - Operations - Learning Disability,LDP South Cambs - Special Needs,Residential Independent Sector
Cambridgeshire County Council,02-Feb-17,22506922-14769167,-1198.04,Caretech Community Services,Care Establishment,2 - Operations - Learning Disability,LDP South Cambs Locality - Care,Residential Independent Sector
Cambridgeshire County Council,02-Feb-17,22506926-14769171,-1198.04,Caretech Community Services,Care Establishment,2 - Operations - Learning Disability,LDP South Cambs Locality - Care,Residential Independent Sector
Cambridgeshire County Council,02-Feb-17,22506927-14769172,-1198.04,Caretech Community Services,Care Establishment,2 - Operations - Learning Disability,LDP South Cambs Locality - Care,Residential Independent Sector
Cambridgeshire County Council,02-Feb-17,22506932-14769177,-1198.04,Caretech Community Services,Care Establishment,2 - Operations - Learning Disability,LDP South Cambs Locality - Care,Residential Independent Sector
Cambridgeshire County Council,02-Feb-17,22506933-14769178,-1198.04,Caretech Community Services,Care Establishment,2 - Operations - Learning Disability,LDP South Cambs - Special Needs,Residential Independent Sector
Cambridgeshire County Council,02-Feb-17,22506935-14769180,-1198.04,Caretech Community Services,Care Establishment,2 - Operations - Learning Disability,LDP South Cambs Locality - Care,Residential Independent Sector
Cambridgeshire County Council,02-Feb-17,22506936-14769181,-1198.04,Caretech Community Services,Care Establishment,2 - Operations - Learning Disability,LDP South Cambs Locality - Care,Residential Independent Sector
Cambridgeshire County Council,02-Feb-17,22506938-14769183,-1198.04,Caretech Community Services,Care Establishment,2 - Operations - Learning Disability,LDP South Cambs Locality - Care,Residential Independent Sector
Cambridgeshire County Council,02-Feb-17,22506940-14769185,-1198.04,Caretech Community Services,Care Establishment,2 - Operations - Learning Disability,LDP South Cambs - Special Needs,Residential Independent Sector
Cambridgeshire County Council,16-Feb-17,22585900-14844937,-1198.04,Caretech Community Services,Care Establishment,2 - Operations - Learning Disability,LDP South Cambs Locality - Care,Residential Independent Sector
Cambridgeshire County Council,16-Feb-17,22585901-14844938,-1198.04,Caretech Community Services,Care Establishment,2 - Operations - Learning Disability,LDP South Cambs - Special Needs,Residential Independent Sector
Cambridgeshire County Council,16-Feb-17,22585902-14844939,-1198.04,Caretech Community Services,Care Establishment,2 - Operations - Learning Disability,LDP South Cambs Locality - Care,Residential Independent Sector
Cambridgeshire County Council,16-Feb-17,22585904-14844941,-1198.04,Caretech Community Services,Care Establishment,2 - Operations - Learning Disability,LDP South Cambs Locality - Care,Residential Independent Sector
Cambridgeshire County Council,16-Feb-17,22585906-14844943,-1198.04,Caretech Community Services,Care Establishment,2 - Operations - Learning Disability,LDP South Cambs Locality - Care,Residential Independent Sector
Cambridgeshire County Council,16-Feb-17,22585907-14844944,-1198.04,Caretech Community Services,Care Establishment,2 - Operations - Learning Disability,LDP South Cambs Locality - Care,Residential Independent Sector
Cambridgeshire County Council,16-Feb-17,22585908-14844945,-1198.04,Caretech Community Services,Care Establishment,2 - Operations - Learning Disability,LDP South Cambs - Special Needs,Residential Independent Sector
Cambridgeshire County Council,16-Feb-17,22585909-14844946,-1198.04,Caretech Community Services,Care Establishment,2 - Operations - Learning Disability,LDP South Cambs Locality - Care,Residential Independent Sector
Cambridgeshire County Council,16-Feb-17,22585914-14844951,-1198.04,Caretech Community Services,Care Establishment,2 - Operations - Learning Disability,LDP South Cambs - Special Needs,Residential Independent Sector
Cambridgeshire County Council,16-Feb-17,22585915-14844952,-1198.04,Caretech Community Services,Care Establishment,2 - Operations - Learning Disability,LDP South Cambs - Special Needs,Residential Independent Sector
Cambridgeshire County Council,16-Feb-17,22585919-14844956,-1198.04,Caretech Community Services,Care Establishment,2 - Operations - Learning Disability,LDP South Cambs - Special Needs,Residential Independent Sector
Cambridgeshire County Council,16-Feb-17,22536163-14844835,-1198.04,Caretech Community Services,Care Establishment,2 - Operations - Learning Disability,LDP South Cambs Locality - Care,Residential Independent Sector
Cambridgeshire County Council,16-Feb-17,22536170-14844842,-1198.04,Caretech Community Services,Care Establishment,2 - Operations - Learning Disability,LDP South Cambs Locality - Care,Residential Independent Sector
Cambridgeshire County Council,16-Feb-17,22536173-14844845,-1198.04,Caretech Community Services,Care Establishment,2 - Operations - Learning Disability,LDP South Cambs Locality - Care,Residential Independent Sector
Cambridgeshire County Council,16-Feb-17,22536174-14844846,-1198.04,Caretech Community Services,Care Establishment,2 - Operations - Learning Disability,LDP South Cambs - Special Needs,Residential Independent Sector
Cambridgeshire County Council,16-Feb-17,22536176-14844848,-1198.04,Caretech Community Services,Care Establishment,2 - Operations - Learning Disability,LDP South Cambs Locality - Care,Residential Independent Sector
Cambridgeshire County Council,16-Feb-17,22536177-14844849,-1198.04,Caretech Community Services,Care Establishment,2 - Operations - Learning Disability,LDP South Cambs Locality - Care,Residential Independent Sector
Cambridgeshire County Council,16-Feb-17,22536178-14844850,-1198.04,Caretech Community Services,Care Establishment,2 - Operations - Learning Disability,LDP South Cambs Locality - Care,Residential Independent Sector
Cambridgeshire County Council,16-Feb-17,22536179-14844851,-1198.04,Caretech Community Services,Care Establishment,2 - Operations - Learning Disability,LDP South Cambs Locality - Care,Residential Independent Sector
Cambridgeshire County Council,16-Feb-17,22536181-14844853,-1198.04,Caretech Community Services,Care Establishment,2 - Operations - Learning Disability,LDP South Cambs - Special Needs,Residential Independent Sector
Cambridgeshire County Council,16-Feb-17,22536184-14844856,-1198.04,Caretech Community Services,Care Establishment,2 - Operations - Learning Disability,LDP South Cambs - Special Needs,Residential Independent Sector
Cambridgeshire County Council,16-Feb-17,22536185-14844857,-1198.04,Caretech Community Services,Care Establishment,2 - Operations - Learning Disability,LDP South Cambs - Special Needs,Residential Independent Sector
Cambridgeshire County Council,16-Feb-17,22536186-14844858,-1198.04,Caretech Community Services,Care Establishment,2 - Operations - Learning Disability,LDP South Cambs - Special Needs,Residential Independent Sector
Cambridgeshire County Council,16-Feb-17,22536189-14844861,-1198.04,Caretech Community Services,Care Establishment,2 - Operations - Learning Disability,LDP South Cambs - Special Needs,Residential Independent Sector
Cambridgeshire County Council,16-Feb-17,22536193-14844865,-1198.04,Caretech Community Services,Care Establishment,2 - Operations - Learning Disability,LDP South Cambs - Special Needs,Residential Independent Sector
Cambridgeshire County Council,16-Feb-17,22536195-14844867,-1198.04,Caretech Community Services,Care Establishment,2 - Operations - Learning Disability,LDP South Cambs Locality - Care,Residential Independent Sector
Cambridgeshire County Council,16-Feb-17,22536197-14844869,-1198.04,Caretech Community Services,Care Establishment,2 - Operations - Learning Disability,LDP South Cambs - Special Needs,Residential Independent Sector
Cambridgeshire County Council,16-Feb-17,22536198-14844870,-1198.04,Caretech Community Services,Care Establishment,2 - Operations - Learning Disability,LDP South Cambs - Special Needs,Residential Independent Sector
Cambridgeshire County Council,16-Feb-17,22536200-14844872,-1198.04,Caretech Community Services,Care Establishment,2 - Operations - Learning Disability,LDP South Cambs - Special Needs,Residential Independent Sector
Cambridgeshire County Council,16-Feb-17,22536202-14844874,-1198.04,Caretech Community Services,Care Establishment,2 - Operations - Learning Disability,LDP South Cambs - Special Needs,Residential Independent Sector
Cambridgeshire County Council,16-Feb-17,22536205-14844877,-1198.04,Caretech Community Services,Care Establishment,2 - Operations - Learning Disability,LDP South Cambs - Special Needs,Residential Independent Sector
Cambridgeshire County Council,16-Feb-17,22536207-14844879,-1198.04,Caretech Community Services,Care Establishment,2 - Operations - Learning Disability,LDP South Cambs - Special Needs,Residential Independent Sector
Cambridgeshire County Council,16-Feb-17,22536208-14844880,-1198.04,Caretech Community Services,Care Establishment,2 - Operations - Learning Disability,LDP South Cambs - Special Needs,Residential Independent Sector
Cambridgeshire County Council,16-Feb-17,22536209-14844881,-1198.04,Caretech Community Services,Care Establishment,2 - Operations - Learning Disability,LDP South Cambs - Special Needs,Residential Independent Sector
Cambridgeshire County Council,16-Feb-17,22536210-14844882,-1198.04,Caretech Community Services,Care Establishment,2 - Operations - Learning Disability,LDP South Cambs Locality - Care,Residential Independent Sector
Cambridgeshire County Council,16-Feb-17,22536212-14844884,-1198.04,Caretech Community Services,Care Establishment,2 - Operations - Learning Disability,LDP South Cambs - Special Needs,Residential Independent Sector
Cambridgeshire County Council,16-Feb-17,22536213-14844885,-1198.04,Caretech Community Services,Care Establishment,2 - Operations - Learning Disability,LDP South Cambs - Special Needs,Residential Independent Sector
Cambridgeshire County Council,16-Feb-17,22536216-14844888,-1198.04,Caretech Community Services,Care Establishment,2 - Operations - Learning Disability,LDP South Cambs - Special Needs,Residential Independent Sector
Cambridgeshire County Council,16-Feb-17,22586160-14844901,-1198.04,Caretech Community Services,Care Establishment,2 - Operations - Learning Disability,LDP South Cambs - Special Needs,Residential Independent Sector
Cambridgeshire County Council,16-Feb-17,22585921-14844903,-1198.04,Caretech Community Services,Care Establishment,2 - Operations - Learning Disability,LDP South Cambs - Special Needs,Residential Independent Sector
Cambridgeshire County Council,16-Feb-17,22585923-14844905,-1198.04,Caretech Community Services,Care Establishment,2 - Operations - Learning Disability,LDP South Cambs - Special Needs,Residential Independent Sector
Cambridgeshire County Council,16-Feb-17,22585924-14844906,-1198.04,Caretech Community Services,Care Establishment,2 - Operations - Learning Disability,LDP South Cambs - Special Needs,Residential Independent Sector
Cambridgeshire County Council,16-Feb-17,22585928-14844910,-1198.04,Caretech Community Services,Care Establishment,2 - Operations - Learning Disability,LDP South Cambs Locality - Care,Residential Independent Sector
Cambridgeshire County Council,16-Feb-17,22585931-14844913,-1198.04,Caretech Community Services,Care Establishment,2 - Operations - Learning Disability,LDP South Cambs Locality - Care,Residential Independent Sector
Cambridgeshire County Council,16-Feb-17,22585932-14844914,-1198.04,Caretech Community Services,Care Establishment,2 - Operations - Learning Disability,LDP South Cambs - Special Needs,Residential Independent Sector
Cambridgeshire County Council,16-Feb-17,22585935-14844917,-1198.04,Caretech Community Services,Care Establishment,2 - Operations - Learning Disability,LDP South Cambs Locality - Care,Residential Independent Sector
Cambridgeshire County Council,16-Feb-17,22585936-14844918,-1198.04,Caretech Community Services,Care Establishment,2 - Operations - Learning Disability,LDP South Cambs Locality - Care,Residential Independent Sector
Cambridgeshire County Council,16-Feb-17,22585939-14844921,-1198.04,Caretech Community Services,Care Establishment,2 - Operations - Learning Disability,LDP South Cambs - Special Needs,Residential Independent Sector
Cambridgeshire County Council,16-Feb-17,22585940-14844922,-1198.04,Caretech Community Services,Care Establishment,2 - Operations - Learning Disability,LDP South Cambs Locality - Care,Residential Independent Sector
Cambridgeshire County Council,16-Feb-17,22585943-14844925,-1198.04,Caretech Community Services,Care Establishment,2 - Operations - Learning Disability,LDP South Cambs Locality - Care,Residential Independent Sector
Cambridgeshire County Council,16-Feb-17,22585945-14844927,-1198.04,Caretech Community Services,Care Establishment,2 - Operations - Learning Disability,LDP South Cambs - Special Needs,Residential Independent Sector
Cambridgeshire County Council,16-Feb-17,22585891-14844928,-1198.04,Caretech Community Services,Care Establishment,2 - Operations - Learning Disability,LDP South Cambs - Special Needs,Residential Independent Sector
Cambridgeshire County Council,16-Feb-17,22585893-14844930,-1198.04,Caretech Community Services,Care Establishment,2 - Operations - Learning Disability,LDP South Cambs - Special Needs,Residential Independent Sector
Cambridgeshire County Council,16-Feb-17,22585895-14844932,-1198.04,Caretech Community Services,Care Establishment,2 - Operations - Learning Disability,LDP South Cambs Locality - Care,Residential Independent Sector
Cambridgeshire County Council,24-Feb-17,22647327-14880252,-1198.04,Caretech Community Services,Care Establishment,2 - Operations - Learning Disability,LDP South Cambs Locality - Care,Residential Independent Sector
Cambridgeshire County Council,24-Feb-17,22647333-14880258,-1198.04,Caretech Community Services,Care Establishment,2 - Operations - Learning Disability,LDP South Cambs - Special Needs,Residential Independent Sector
Cambridgeshire County Council,24-Feb-17,22647335-14880260,-1198.04,Caretech Community Services,Care Establishment,2 - Operations - Learning Disability,LDP South Cambs - Special Needs,Residential Independent Sector
Cambridgeshire County Council,24-Feb-17,22647336-14880261,-1198.04,Caretech Community Services,Care Establishment,2 - Operations - Learning Disability,LDP South Cambs - Special Needs,Residential Independent Sector
Cambridgeshire County Council,24-Feb-17,22648358-14880144,-1198.04,Caretech Community Services,Care Establishment,2 - Operations - Learning Disability,LDP South Cambs - Special Needs,Residential Independent Sector
Cambridgeshire County Council,24-Feb-17,22648362-14880148,-1198.04,Caretech Community Services,Care Establishment,2 - Operations - Learning Disability,LDP South Cambs - Special Needs,Residential Independent Sector
Cambridgeshire County Council,24-Feb-17,22648363-14880149,-1198.04,Caretech Community Services,Care Establishment,2 - Operations - Learning Disability,LDP South Cambs - Special Needs,Residential Independent Sector
Cambridgeshire County Council,24-Feb-17,22648364-14880150,-1198.04,Caretech Community Services,Care Establishment,2 - Operations - Learning Disability,LDP South Cambs Locality - Care,Residential Independent Sector
Cambridgeshire County Council,24-Feb-17,22648365-14880151,-1198.04,Caretech Community Services,Care Establishment,2 - Operations - Learning Disability,LDP South Cambs Locality - Care,Residential Independent Sector
Cambridgeshire County Council,24-Feb-17,22648368-14880154,-1198.04,Caretech Community Services,Care Establishment,2 - Operations - Learning Disability,LDP South Cambs - Special Needs,Residential Independent Sector
Cambridgeshire County Council,24-Feb-17,22648369-14880155,-1198.04,Caretech Community Services,Care Establishment,2 - Operations - Learning Disability,LDP South Cambs Locality - Care,Residential Independent Sector
Cambridgeshire County Council,24-Feb-17,22648371-14880157,-1198.04,Caretech Community Services,Care Establishment,2 - Operations - Learning Disability,LDP South Cambs - Special Needs,Residential Independent Sector
Cambridgeshire County Council,24-Feb-17,22648374-14880160,-1198.04,Caretech Community Services,Care Establishment,2 - Operations - Learning Disability,LDP South Cambs - Special Needs,Residential Independent Sector
Cambridgeshire County Council,24-Feb-17,22647341-14880205,-1198.04,Caretech Community Services,Care Establishment,2 - Operations - Learning Disability,LDP South Cambs - Special Needs,Residential Independent Sector
Cambridgeshire County Council,24-Feb-17,22647344-14880208,-1198.04,Caretech Community Services,Care Establishment,2 - Operations - Learning Disability,LDP South Cambs - Special Needs,Residential Independent Sector
Cambridgeshire County Council,24-Feb-17,22647347-14880211,-1198.04,Caretech Community Services,Care Establishment,2 - Operations - Learning Disability,LDP South Cambs Locality - Care,Residential Independent Sector
Cambridgeshire County Council,24-Feb-17,22647349-14880213,-1198.04,Caretech Community Services,Care Establishment,2 - Operations - Learning Disability,LDP South Cambs - Special Needs,Residential Independent Sector
Cambridgeshire County Council,24-Feb-17,22647350-14880214,-1198.04,Caretech Community Services,Care Establishment,2 - Operations - Learning Disability,LDP South Cambs - Special Needs,Residential Independent Sector
Cambridgeshire County Council,24-Feb-17,22647351-14880215,-1198.04,Caretech Community Services,Care Establishment,2 - Operations - Learning Disability,LDP South Cambs - Special Needs,Residential Independent Sector
Cambridgeshire County Council,24-Feb-17,22647354-14880218,-1198.04,Caretech Community Services,Care Establishment,2 - Operations - Learning Disability,LDP South Cambs Locality - Care,Residential Independent Sector
Cambridgeshire County Council,24-Feb-17,22647358-14880222,-1198.04,Caretech Community Services,Care Establishment,2 - Operations - Learning Disability,LDP South Cambs Locality - Care,Residential Independent Sector
Cambridgeshire County Council,24-Feb-17,22647360-14880224,-1198.04,Caretech Community Services,Care Establishment,2 - Operations - Learning Disability,LDP South Cambs - Special Needs,Residential Independent Sector
Cambridgeshire County Council,24-Feb-17,22647361-14880225,-1198.04,Caretech Community Services,Care Establishment,2 - Operations - Learning Disability,LDP South Cambs Locality - Care,Residential Independent Sector
Cambridgeshire County Council,24-Feb-17,22647317-14880242,-1198.04,Caretech Community Services,Care Establishment,2 - Operations - Learning Disability,LDP South Cambs - Special Needs,Residential Independent Sector
Cambridgeshire County Council,24-Feb-17,22647320-14880245,-1198.04,Caretech Community Services,Care Establishment,2 - Operations - Learning Disability,LDP South Cambs Locality - Care,Residential Independent Sector
Cambridgeshire County Council,24-Feb-17,22647322-14880247,-1198.04,Caretech Community Services,Care Establishment,2 - Operations - Learning Disability,LDP South Cambs Locality - Care,Residential Independent Sector
Cambridgeshire County Council,24-Feb-17,22647325-14880250,-1198.04,Caretech Community Services,Care Establishment,2 - Operations - Learning Disability,LDP South Cambs Locality - Care,Residential Independent Sector
Cambridgeshire County Council,02-Feb-17,22390732-14769221,-1190,Hester Adrian Centre,Care Establishment,2 - Operations - Learning Disability,LDP South Cambs Locality - Care,Daycare
Cambridgeshire County Council,02-Feb-17,22497075-14772656,-1173.37,17 Hamlett Close (Voyage),Care Establishment,2 - Operations - Learning Disability,LDP Huntingdonshire Locality - Care,Supported Living
Cambridgeshire County Council,02-Feb-17,22497065-14772646,-1173.37,17 Hamlett Close (Voyage),Care Establishment,2 - Operations - Learning Disability,LDP Huntingdonshire Locality - Care,Supported Living
Cambridgeshire County Council,02-Feb-17,22497066-14772647,-1173.37,17 Hamlett Close (Voyage),Care Establishment,2 - Operations - Learning Disability,LDP Huntingdonshire Locality - Care,Supported Living
Cambridgeshire County Council,02-Feb-17,22497069-14772650,-1173.37,17 Hamlett Close (Voyage),Care Establishment,2 - Operations - Learning Disability,LDP Huntingdonshire Locality - Care,Supported Living
Cambridgeshire County Council,02-Feb-17,22497073-14772654,-1173.37,17 Hamlett Close (Voyage),Care Establishment,2 - Operations - Learning Disability,LDP Huntingdonshire Locality - Care,Supported Living
Cambridgeshire County Council,02-Feb-17,22503534-14772554,-1171.93,2 Cheveril Lane (Voyage),Care Establishment,2 - Operations - Learning Disability,LDP Huntingdonshire Locality - Care,Supported Living
Cambridgeshire County Council,02-Feb-17,22503536-14772556,-1171.93,2 Cheveril Lane (Voyage),Care Establishment,2 - Operations - Learning Disability,LDP Huntingdonshire Locality - Care,Supported Living
Cambridgeshire County Council,02-Feb-17,22503546-14772560,-1171.93,2 Cheveril Lane (Voyage),Care Establishment,2 - Operations - Learning Disability,LDP Huntingdonshire Locality - Care,Supported Living
Cambridgeshire County Council,02-Feb-17,22503551-14772563,-1171.93,2 Cheveril Lane (Voyage),Care Establishment,2 - Operations - Learning Disability,LDP Huntingdonshire Locality - Care,Supported Living
Cambridgeshire County Council,02-Feb-17,22503558-14772567,-1171.93,2 Cheveril Lane (Voyage),Care Establishment,2 - Operations - Learning Disability,LDP Huntingdonshire Locality - Care,Supported Living
Cambridgeshire County Council,02-Feb-17,22497024-14772572,-1171.93,2 Cheveril Lane (Voyage),Care Establishment,2 - Operations - Learning Disability,LDP Huntingdonshire Locality - Care,Supported Living
Cambridgeshire County Council,02-Feb-17,22497027-14772574,-1171.93,2 Cheveril Lane (Voyage),Care Establishment,2 - Operations - Learning Disability,LDP Huntingdonshire Locality - Care,Supported Living
Cambridgeshire County Council,02-Feb-17,22497030-14772577,-1171.93,2 Cheveril Lane (Voyage),Care Establishment,2 - Operations - Learning Disability,LDP Huntingdonshire Locality - Care,Supported Living
Cambridgeshire County Council,02-Feb-17,22497036-14772580,-1171.93,2 Cheveril Lane (Voyage),Care Establishment,2 - Operations - Learning Disability,LDP Huntingdonshire Locality - Care,Supported Living
Cambridgeshire County Council,02-Feb-17,22497039-14772583,-1171.93,2 Cheveril Lane (Voyage),Care Establishment,2 - Operations - Learning Disability,LDP Huntingdonshire Locality - Care,Supported Living
Cambridgeshire County Council,02-Feb-17,22501971-14772463,-1143.13,Renton Court (Voyage),Care Establishment,2 - Operations - Learning Disability,LDP Huntingdonshire Locality - Care,Supported Living
Cambridgeshire County Council,02-Feb-17,22501977-14772466,-1143.13,Renton Court (Voyage),Care Establishment,2 - Operations - Learning Disability,LDP Huntingdonshire Locality - Care,Supported Living
Cambridgeshire County Council,02-Feb-17,22501982-14772468,-1143.13,Renton Court (Voyage),Care Establishment,2 - Operations - Learning Disability,LDP Huntingdonshire Locality - Care,Supported Living
Cambridgeshire County Council,02-Feb-17,22501986-14772470,-1143.13,Renton Court (Voyage),Care Establishment,2 - Operations - Learning Disability,LDP Huntingdonshire Locality - Care,Supported Living
Cambridgeshire County Council,02-Feb-17,22501987-14772471,-1143.13,Renton Court (Voyage),Care Establishment,2 - Operations - Learning Disability,LDP Huntingdonshire Locality - Care,Supported Living
Cambridgeshire County Council,02-Feb-17,22502874-14772664,-1132.54,17 Hamlett Close (Voyage),Care Establishment,2 - Operations - Learning Disability,LDP Huntingdonshire Locality - Care,Supported Living
Cambridgeshire County Council,02-Feb-17,22502875-14772665,-1132.54,17 Hamlett Close (Voyage),Care Establishment,2 - Operations - Learning Disability,LDP Huntingdonshire Locality - Care,Supported Living
Cambridgeshire County Council,02-Feb-17,22502876-14772666,-1132.54,17 Hamlett Close (Voyage),Care Establishment,2 - Operations - Learning Disability,LDP Huntingdonshire Locality - Care,Supported Living
Cambridgeshire County Council,02-Feb-17,22497732-14772622,-1132.54,17 Hamlett Close (Voyage),Care Establishment,2 - Operations - Learning Disability,LDP Huntingdonshire Locality - Care,Supported Living
Cambridgeshire County Council,02-Feb-17,22497741-14772625,-1132.54,17 Hamlett Close (Voyage),Care Establishment,2 - Operations - Learning Disability,LDP Huntingdonshire Locality - Care,Supported Living
Cambridgeshire County Council,02-Feb-17,22508998-14772678,-1132.52,17 Hamlett Close (Voyage),Care Establishment,2 - Operations - Learning Disability,LDP Huntingdonshire Locality - Care,Supported Living
Cambridgeshire County Council,02-Feb-17,22509001-14772681,-1132.52,17 Hamlett Close (Voyage),Care Establishment,2 - Operations - Learning Disability,LDP Huntingdonshire Locality - Care,Supported Living
Cambridgeshire County Council,02-Feb-17,22509004-14772684,-1132.52,17 Hamlett Close (Voyage),Care Establishment,2 - Operations - Learning Disability,LDP Huntingdonshire Locality - Care,Supported Living
Cambridgeshire County Council,02-Feb-17,22493087-14772616,-1132.52,17 Hamlett Close (Voyage),Care Establishment,2 - Operations - Learning Disability,LDP Huntingdonshire Locality - Care,Supported Living
Cambridgeshire County Council,02-Feb-17,22493091-14772620,-1132.52,17 Hamlett Close (Voyage),Care Establishment,2 - Operations - Learning Disability,LDP Huntingdonshire Locality - Care,Supported Living
Cambridgeshire County Council,16-Feb-17,22584224-14842121,-1120.36,The Cambridge Nursing Centre,Care Establishment,5 - Commissioning - Mental Health & Supporting People,OP Blocks - Care Placements,Nursing Independent Sector
Cambridgeshire County Council,24-Feb-17,22646451-14880912,-1099.29,Etheldred House,Care Establishment,5 - Commissioning - Mental Health & Supporting People,OP Blocks - Care Placements,Residential Independent Sector
Cambridgeshire County Council,09-Feb-17,22533146-14813380,-1091.65,Guyatt House Care Ltd,Care Establishment,2 - Operations - Learning Disability,LDP E Cambs Special Needs,Day and Domicillary Care Independent Sector
Cambridgeshire County Council,16-Feb-17,22582918-14842801,-1091.65,Guyatt House Care Ltd,Care Establishment,2 - Operations - Learning Disability,LDP E Cambs Locality - Care,Day and Domicillary Care Independent Sector
Cambridgeshire County Council,02-Feb-17,22503093-14760999,-1062.28,The Edmund Trust,Care Establishment,2 - Commissioning - Older people Pool,Older People - City & South,Residential Independent Sector
Cambridgeshire County Council,02-Feb-17,22507945-14769116,-1026.89,Caretech Community Services,Care Establishment,2 - Operations - Learning Disability,LDP South Cambs Locality - Care,Residential Independent Sector
Cambridgeshire County Council,16-Feb-17,22585899-14844936,-1026.89,Caretech Community Services,Care Establishment,2 - Operations - Learning Disability,LDP South Cambs Locality - Care,Residential Independent Sector
Cambridgeshire County Council,16-Feb-17,22536182-14844854,-1026.89,Caretech Community Services,Care Establishment,2 - Operations - Learning Disability,LDP South Cambs - Special Needs,Residential Independent Sector
Cambridgeshire County Council,24-Feb-17,22647357-14880221,-1026.89,Caretech Community Services,Care Establishment,2 - Operations - Learning Disability,LDP South Cambs - Special Needs,Residential Independent Sector
Cambridgeshire County Council,13-Feb-17,22528912-14830443,-1020,Bill Ibbotts Catering Equipment Services Ltd,Trade Supplier,S&C,Catering - Witchford VC; Ely (4055),Purchase of canteen equipment
Cambridgeshire County Council,02-Feb-17,22492388-14772541,-1001.03,2 Cheveril Lane (Voyage),Care Establishment,2 - Operations - Learning Disability,LDP Huntingdonshire Locality - Care,Supported Living
Cambridgeshire County Council,02-Feb-17,22492389-14772542,-1001.03,2 Cheveril Lane (Voyage),Care Establishment,2 - Operations - Learning Disability,LDP Huntingdonshire Locality - Care,Supported Living
Cambridgeshire County Council,02-Feb-17,22492377-14772547,-1001.03,2 Cheveril Lane (Voyage),Care Establishment,2 - Operations - Learning Disability,LDP Huntingdonshire Locality - Care,Supported Living
Cambridgeshire County Council,02-Feb-17,22492378-14772548,-1001.03,2 Cheveril Lane (Voyage),Care Establishment,2 - Operations - Learning Disability,LDP Huntingdonshire Locality - Care,Supported Living
Cambridgeshire County Council,02-Feb-17,22492381-14772551,-1001.03,2 Cheveril Lane (Voyage),Care Establishment,2 - Operations - Learning Disability,LDP Huntingdonshire Locality - Care,Supported Living
Cambridgeshire County Council,02-Feb-17,22500511-14761136,-1000.42,The Edmund Trust,Care Establishment,2 - Commissioning - Older people Pool,Older People - City & South,Residential Independent Sector
Cambridgeshire County Council,20-Feb-17,22566199-14856058,-999.81,Guidant Group,Trade Supplier,4 - Operations - Providers services,8b Wagstaff Close,Pay - Agency Staff
Cambridgeshire County Council,21-Feb-17,22570368-14863139,-980.64,Fostering Solutions Ltd,Care Establishment,S&C,Placements - Social Care,Agency Placements - Out County
Cambridgeshire County Council,02-Feb-17,22497639-14772629,-969.14,17 Hamlett Close (Voyage),Care Establishment,2 - Operations - Learning Disability,LDP Huntingdonshire Locality - Care,Supported Living
Cambridgeshire County Council,02-Feb-17,22497643-14772633,-969.14,17 Hamlett Close (Voyage),Care Establishment,2 - Operations - Learning Disability,LDP Huntingdonshire Locality - Care,Supported Living
Cambridgeshire County Council,02-Feb-17,22497648-14772638,-969.14,17 Hamlett Close (Voyage),Care Establishment,2 - Operations - Learning Disability,LDP Huntingdonshire Locality - Care,Supported Living
Cambridgeshire County Council,02-Feb-17,22497649-14772639,-969.14,17 Hamlett Close (Voyage),Care Establishment,2 - Operations - Learning Disability,LDP Huntingdonshire Locality - Care,Supported Living
Cambridgeshire County Council,02-Feb-17,22497654-14772644,-969.14,17 Hamlett Close (Voyage),Care Establishment,2 - Operations - Learning Disability,LDP Huntingdonshire Locality - Care,Supported Living
Cambridgeshire County Council,16-Feb-17,22583042-14845117,-950.28,The Avenues Trust Ltd,Trust (Other),2 - Operations - Learning Disability,LDP South Cambs Locality - Care,Residential Independent Sector
Cambridgeshire County Council,16-Feb-17,22583045-14845120,-950.28,The Avenues Trust Ltd,Trust (Other),2 - Operations - Learning Disability,LDP South Cambs Locality - Care,Residential Independent Sector
Cambridgeshire County Council,16-Feb-17,22583049-14845124,-950.28,The Avenues Trust Ltd,Trust (Other),2 - Operations - Learning Disability,LDP South Cambs Locality - Care,Residential Independent Sector
Cambridgeshire County Council,16-Feb-17,22583050-14845125,-950.28,The Avenues Trust Ltd,Trust (Other),2 - Operations - Learning Disability,LDP South Cambs Locality - Care,Residential Independent Sector
Cambridgeshire County Council,16-Feb-17,22582211-14845127,-950.28,The Avenues Trust Ltd,Trust (Other),2 - Operations - Learning Disability,LDP South Cambs Locality - Care,Residential Independent Sector
Cambridgeshire County Council,16-Feb-17,22582215-14845131,-950.28,The Avenues Trust Ltd,Trust (Other),2 - Operations - Learning Disability,LDP South Cambs Locality - Care,Residential Independent Sector
Cambridgeshire County Council,16-Feb-17,22582217-14845133,-950.28,The Avenues Trust Ltd,Trust (Other),2 - Operations - Learning Disability,LDP South Cambs Locality - Care,Residential Independent Sector
Cambridgeshire County Council,16-Feb-17,22582240-14845138,-950.28,The Avenues Trust Ltd,Trust (Other),2 - Operations - Learning Disability,LDP South Cambs Locality - Care,Residential Independent Sector
Cambridgeshire County Council,16-Feb-17,22582244-14845142,-950.28,The Avenues Trust Ltd,Trust (Other),2 - Operations - Learning Disability,LDP South Cambs Locality - Care,Residential Independent Sector
Cambridgeshire County Council,16-Feb-17,22582219-14845144,-950.28,The Avenues Trust Ltd,Trust (Other),2 - Operations - Learning Disability,LDP South Cambs Locality - Care,Residential Independent Sector
Cambridgeshire County Council,16-Feb-17,22582226-14845151,-950.28,The Avenues Trust Ltd,Trust (Other),2 - Operations - Learning Disability,LDP South Cambs Locality - Care,Residential Independent Sector
Cambridgeshire County Council,16-Feb-17,22582228-14845153,-950.28,The Avenues Trust Ltd,Trust (Other),2 - Operations - Learning Disability,LDP South Cambs Locality - Care,Residential Independent Sector
Cambridgeshire County Council,16-Feb-17,22582231-14845156,-950.28,The Avenues Trust Ltd,Trust (Other),2 - Operations - Learning Disability,LDP South Cambs Locality - Care,Residential Independent Sector
Cambridgeshire County Council,16-Feb-17,22582234-14845159,-950.28,The Avenues Trust Ltd,Trust (Other),2 - Operations - Learning Disability,LDP South Cambs Locality - Care,Residential Independent Sector
Cambridgeshire County Council,16-Feb-17,22583013-14845088,-950.28,The Avenues Trust Ltd,Trust (Other),2 - Operations - Learning Disability,LDP South Cambs Locality - Care,Residential Independent Sector
Cambridgeshire County Council,16-Feb-17,22583017-14845092,-950.28,The Avenues Trust Ltd,Trust (Other),2 - Operations - Learning Disability,LDP South Cambs Locality - Care,Residential Independent Sector
Cambridgeshire County Council,16-Feb-17,22583022-14845097,-950.28,The Avenues Trust Ltd,Trust (Other),2 - Operations - Learning Disability,LDP South Cambs Locality - Care,Residential Independent Sector
Cambridgeshire County Council,16-Feb-17,22583023-14845098,-950.28,The Avenues Trust Ltd,Trust (Other),2 - Operations - Learning Disability,LDP South Cambs Locality - Care,Residential Independent Sector
Cambridgeshire County Council,16-Feb-17,22583024-14845099,-950.28,The Avenues Trust Ltd,Trust (Other),2 - Operations - Learning Disability,LDP South Cambs Locality - Care,Residential Independent Sector
Cambridgeshire County Council,16-Feb-17,22583035-14845110,-950.28,The Avenues Trust Ltd,Trust (Other),2 - Operations - Learning Disability,LDP South Cambs Locality - Care,Residential Independent Sector
Cambridgeshire County Council,16-Feb-17,22583039-14845114,-950.28,The Avenues Trust Ltd,Trust (Other),2 - Operations - Learning Disability,LDP South Cambs Locality - Care,Residential Independent Sector
Cambridgeshire County Council,02-Feb-17,22495562-14764184,-950.2,Florida Avenue (Voyage),Care Establishment,2 - Operations - Learning Disability,LDP Huntingdonshire Locality - Care,Supported Living
Cambridgeshire County Council,02-Feb-17,22495597-14764187,-950.2,Florida Avenue (Voyage),Care Establishment,2 - Operations - Learning Disability,LDP Huntingdonshire Locality - Care,Supported Living
Cambridgeshire County Council,02-Feb-17,22495398-14764191,-950.2,Florida Avenue (Voyage),Care Establishment,2 - Operations - Learning Disability,LDP Huntingdonshire Locality - Care,Supported Living
Cambridgeshire County Council,02-Feb-17,22495442-14764196,-950.2,Florida Avenue (Voyage),Care Establishment,2 - Operations - Learning Disability,LDP Huntingdonshire Locality - Care,Supported Living
Cambridgeshire County Council,02-Feb-17,22495518-14764178,-950.2,Florida Avenue (Voyage),Care Establishment,2 - Operations - Learning Disability,LDP Huntingdonshire Locality - Care,Supported Living
Cambridgeshire County Council,23-Feb-17,21730491-14874876,-929.36,Hilton Park Care Centre,Care Establishment,2 - Operations - Learning Disability,LDP City Locality - Care,Nursing Independent Sector
Cambridgeshire County Council,23-Feb-17,21730497-14874882,-929.36,Hilton Park Care Centre,Care Establishment,2 - Operations - Learning Disability,LDP City Locality - Care,Nursing Independent Sector
Cambridgeshire County Council,23-Feb-17,21730498-14874883,-929.36,Hilton Park Care Centre,Care Establishment,2 - Operations - Learning Disability,LDP City Locality - Care,Nursing Independent Sector
Cambridgeshire County Council,23-Feb-17,21730502-14874887,-929.36,Hilton Park Care Centre,Care Establishment,2 - Operations - Learning Disability,LDP City Locality - Care,Nursing Independent Sector
Cambridgeshire County Council,23-Feb-17,21730503-14874888,-929.36,Hilton Park Care Centre,Care Establishment,2 - Operations - Learning Disability,LDP City Locality - Care,Nursing Independent Sector
Cambridgeshire County Council,23-Feb-17,21730505-14874890,-929.36,Hilton Park Care Centre,Care Establishment,2 - Operations - Learning Disability,LDP City Locality - Care,Nursing Independent Sector
Cambridgeshire County Council,16-Feb-17,22585962-14844539,-926.11,Making Space#1,Care Establishment,3 - Operations - Countywide Services,Countywide PD Service - Care,Nursing Independent Sector
Cambridgeshire County Council,16-Feb-17,22585965-14844542,-926.11,Making Space#1,Care Establishment,3 - Operations - Countywide Services,Countywide PD Service - Care,Nursing Independent Sector
Cambridgeshire County Council,16-Feb-17,22585966-14844543,-926.11,Making Space#1,Care Establishment,3 - Operations - Countywide Services,Countywide PD Service - Care,Nursing Independent Sector
Cambridgeshire County Council,16-Feb-17,22585969-14844546,-926.11,Making Space#1,Care Establishment,3 - Operations - Countywide Services,Countywide PD Service - Care,Nursing Independent Sector
Cambridgeshire County Council,16-Feb-17,22585970-14844547,-926.11,Making Space#1,Care Establishment,3 - Operations - Countywide Services,Countywide PD Service - Care,Nursing Independent Sector
Cambridgeshire County Council,16-Feb-17,22585971-14844548,-926.11,Making Space#1,Care Establishment,3 - Operations - Countywide Services,Countywide PD Service - Care,Nursing Independent Sector
Cambridgeshire County Council,16-Feb-17,22585975-14844552,-926.11,Making Space#1,Care Establishment,3 - Operations - Countywide Services,Countywide PD Service - Care,Nursing Independent Sector
Cambridgeshire County Council,16-Feb-17,22585977-14844554,-926.11,Making Space#1,Care Establishment,3 - Operations - Countywide Services,Countywide PD Service - Care,Nursing Independent Sector
Cambridgeshire County Council,16-Feb-17,22585978-14844555,-926.11,Making Space#1,Care Establishment,3 - Operations - Countywide Services,Countywide PD Service - Care,Nursing Independent Sector
Cambridgeshire County Council,16-Feb-17,22585979-14844556,-926.11,Making Space#1,Care Establishment,3 - Operations - Countywide Services,Countywide PD Service - Care,Nursing Independent Sector
Cambridgeshire County Council,16-Feb-17,22585981-14844558,-926.11,Making Space#1,Care Establishment,3 - Operations - Countywide Services,Countywide PD Service - Care,Nursing Independent Sector
Cambridgeshire County Council,16-Feb-17,22585983-14844560,-926.11,Making Space#1,Care Establishment,3 - Operations - Countywide Services,Countywide PD Service - Care,Nursing Independent Sector
Cambridgeshire County Council,16-Feb-17,22585984-14844561,-926.11,Making Space#1,Care Establishment,3 - Operations - Countywide Services,Countywide PD Service - Care,Nursing Independent Sector
Cambridgeshire County Council,16-Feb-17,22585986-14844563,-926.11,Making Space#1,Care Establishment,3 - Operations - Countywide Services,Countywide PD Service - Care,Nursing Independent Sector
Cambridgeshire County Council,16-Feb-17,22585990-14844567,-926.11,Making Space#1,Care Establishment,3 - Operations - Countywide Services,Countywide PD Service - Care,Nursing Independent Sector
Cambridgeshire County Council,16-Feb-17,22585994-14844571,-926.11,Making Space#1,Care Establishment,3 - Operations - Countywide Services,Countywide PD Service - Care,Nursing Independent Sector
Cambridgeshire County Council,16-Feb-17,22585996-14844573,-926.11,Making Space#1,Care Establishment,3 - Operations - Countywide Services,Countywide PD Service - Care,Nursing Independent Sector
Cambridgeshire County Council,16-Feb-17,22585997-14844574,-926.11,Making Space#1,Care Establishment,3 - Operations - Countywide Services,Countywide PD Service - Care,Nursing Independent Sector
Cambridgeshire County Council,16-Feb-17,22586000-14844577,-926.11,Making Space#1,Care Establishment,3 - Operations - Countywide Services,Countywide PD Service - Care,Nursing Independent Sector
Cambridgeshire County Council,16-Feb-17,22586002-14844579,-926.11,Making Space#1,Care Establishment,3 - Operations - Countywide Services,Countywide PD Service - Care,Nursing Independent Sector
Cambridgeshire County Council,16-Feb-17,22586004-14844581,-926.11,Making Space#1,Care Establishment,3 - Operations - Countywide Services,Countywide PD Service - Care,Nursing Independent Sector
Cambridgeshire County Council,16-Feb-17,22586005-14844582,-926.11,Making Space#1,Care Establishment,3 - Operations - Countywide Services,Countywide PD Service - Care,Nursing Independent Sector
Cambridgeshire County Council,16-Feb-17,22586008-14844585,-926.11,Making Space#1,Care Establishment,3 - Operations - Countywide Services,Countywide PD Service - Care,Nursing Independent Sector
Cambridgeshire County Council,16-Feb-17,22586010-14844587,-926.11,Making Space#1,Care Establishment,3 - Operations - Countywide Services,Countywide PD Service - Care,Nursing Independent Sector
Cambridgeshire County Council,16-Feb-17,22586011-14844588,-926.11,Making Space#1,Care Establishment,3 - Operations - Countywide Services,Countywide PD Service - Care,Nursing Independent Sector
Cambridgeshire County Council,16-Feb-17,22585014-14844606,-926.11,Making Space#1,Care Establishment,3 - Operations - Countywide Services,Countywide PD Service - Care,Nursing Independent Sector
Cambridgeshire County Council,16-Feb-17,22585015-14844607,-926.11,Making Space#1,Care Establishment,3 - Operations - Countywide Services,Countywide PD Service - Care,Nursing Independent Sector
Cambridgeshire County Council,16-Feb-17,22585016-14844608,-926.11,Making Space#1,Care Establishment,3 - Operations - Countywide Services,Countywide PD Service - Care,Nursing Independent Sector
Cambridgeshire County Council,16-Feb-17,22585018-14844610,-926.11,Making Space#1,Care Establishment,3 - Operations - Countywide Services,Countywide PD Service - Care,Nursing Independent Sector
Cambridgeshire County Council,16-Feb-17,22585020-14844612,-926.11,Making Space#1,Care Establishment,3 - Operations - Countywide Services,Countywide PD Service - Care,Nursing Independent Sector
Cambridgeshire County Council,16-Feb-17,22585024-14844616,-926.11,Making Space#1,Care Establishment,3 - Operations - Countywide Services,Countywide PD Service - Care,Nursing Independent Sector
Cambridgeshire County Council,16-Feb-17,22585028-14844620,-926.11,Making Space#1,Care Establishment,3 - Operations - Countywide Services,Countywide PD Service - Care,Nursing Independent Sector
Cambridgeshire County Council,24-Feb-17,22647822-14879533,-926.11,Making Space#1,Care Establishment,3 - Operations - Countywide Services,Countywide PD Service - Care,Nursing Independent Sector
Cambridgeshire County Council,24-Feb-17,22647824-14879535,-926.11,Making Space#1,Care Establishment,3 - Operations - Countywide Services,Countywide PD Service - Care,Nursing Independent Sector
Cambridgeshire County Council,24-Feb-17,22647827-14879538,-926.11,Making Space#1,Care Establishment,3 - Operations - Countywide Services,Countywide PD Service - Care,Nursing Independent Sector
Cambridgeshire County Council,24-Feb-17,22647828-14879539,-926.11,Making Space#1,Care Establishment,3 - Operations - Countywide Services,Countywide PD Service - Care,Nursing Independent Sector
Cambridgeshire County Council,24-Feb-17,22647829-14879540,-926.11,Making Space#1,Care Establishment,3 - Operations - Countywide Services,Countywide PD Service - Care,Nursing Independent Sector
Cambridgeshire County Council,24-Feb-17,22647831-14879542,-926.11,Making Space#1,Care Establishment,3 - Operations - Countywide Services,Countywide PD Service - Care,Nursing Independent Sector
Cambridgeshire County Council,24-Feb-17,22647837-14879548,-926.11,Making Space#1,Care Establishment,3 - Operations - Countywide Services,Countywide PD Service - Care,Nursing Independent Sector
Cambridgeshire County Council,24-Feb-17,22647838-14879549,-926.11,Making Space#1,Care Establishment,3 - Operations - Countywide Services,Countywide PD Service - Care,Nursing Independent Sector
Cambridgeshire County Council,24-Feb-17,22647875-14879551,-926.11,Making Space#1,Care Establishment,3 - Operations - Countywide Services,Countywide PD Service - Care,Nursing Independent Sector
Cambridgeshire County Council,24-Feb-17,22647840-14879552,-926.11,Making Space#1,Care Establishment,3 - Operations - Countywide Services,Countywide PD Service - Care,Nursing Independent Sector
Cambridgeshire County Council,24-Feb-17,22647847-14879559,-926.11,Making Space#1,Care Establishment,3 - Operations - Countywide Services,Countywide PD Service - Care,Nursing Independent Sector
Cambridgeshire County Council,24-Feb-17,22647849-14879561,-926.11,Making Space#1,Care Establishment,3 - Operations - Countywide Services,Countywide PD Service - Care,Nursing Independent Sector
Cambridgeshire County Council,24-Feb-17,22647851-14879563,-926.11,Making Space#1,Care Establishment,3 - Operations - Countywide Services,Countywide PD Service - Care,Nursing Independent Sector
Cambridgeshire County Council,24-Feb-17,22647853-14879565,-926.11,Making Space#1,Care Establishment,3 - Operations - Countywide Services,Countywide PD Service - Care,Nursing Independent Sector
Cambridgeshire County Council,24-Feb-17,22647856-14879568,-926.11,Making Space#1,Care Establishment,3 - Operations - Countywide Services,Countywide PD Service - Care,Nursing Independent Sector
Cambridgeshire County Council,24-Feb-17,22647859-14879571,-926.11,Making Space#1,Care Establishment,3 - Operations - Countywide Services,Countywide PD Service - Care,Nursing Independent Sector
Cambridgeshire County Council,24-Feb-17,22647861-14879573,-926.11,Making Space#1,Care Establishment,3 - Operations - Countywide Services,Countywide PD Service - Care,Nursing Independent Sector
Cambridgeshire County Council,24-Feb-17,22647864-14879576,-926.11,Making Space#1,Care Establishment,3 - Operations - Countywide Services,Countywide PD Service - Care,Nursing Independent Sector
Cambridgeshire County Council,24-Feb-17,22647868-14879580,-926.11,Making Space#1,Care Establishment,3 - Operations - Countywide Services,Countywide PD Service - Care,Nursing Independent Sector
Cambridgeshire County Council,24-Feb-17,22647870-14879582,-926.11,Making Space#1,Care Establishment,3 - Operations - Countywide Services,Countywide PD Service - Care,Nursing Independent Sector
Cambridgeshire County Council,24-Feb-17,22647871-14879583,-926.11,Making Space#1,Care Establishment,3 - Operations - Countywide Services,Countywide PD Service - Care,Nursing Independent Sector
Cambridgeshire County Council,24-Feb-17,22647872-14879584,-926.11,Making Space#1,Care Establishment,3 - Operations - Countywide Services,Countywide PD Service - Care,Nursing Independent Sector
Cambridgeshire County Council,24-Feb-17,22647873-14879585,-926.11,Making Space#1,Care Establishment,3 - Operations - Countywide Services,Countywide PD Service - Care,Nursing Independent Sector
Cambridgeshire County Council,24-Feb-17,22647874-14879586,-926.11,Making Space#1,Care Establishment,3 - Operations - Countywide Services,Countywide PD Service - Care,Nursing Independent Sector
Cambridgeshire County Council,24-Feb-17,22647809-14879587,-926.11,Making Space#1,Care Establishment,3 - Operations - Countywide Services,Countywide PD Service - Care,Nursing Independent Sector
Cambridgeshire County Council,24-Feb-17,22647811-14879589,-926.11,Making Space#1,Care Establishment,3 - Operations - Countywide Services,Countywide PD Service - Care,Nursing Independent Sector
Cambridgeshire County Council,24-Feb-17,22647813-14879590,-926.11,Making Space#1,Care Establishment,3 - Operations - Countywide Services,Countywide PD Service - Care,Nursing Independent Sector
Cambridgeshire County Council,24-Feb-17,22647814-14879591,-926.11,Making Space#1,Care Establishment,3 - Operations - Countywide Services,Countywide PD Service - Care,Nursing Independent Sector
Cambridgeshire County Council,24-Feb-17,22647815-14879592,-926.11,Making Space#1,Care Establishment,3 - Operations - Countywide Services,Countywide PD Service - Care,Nursing Independent Sector
Cambridgeshire County Council,24-Feb-17,22647816-14879593,-926.11,Making Space#1,Care Establishment,3 - Operations - Countywide Services,Countywide PD Service - Care,Nursing Independent Sector
Cambridgeshire County Council,24-Feb-17,22647819-14879596,-926.11,Making Space#1,Care Establishment,3 - Operations - Countywide Services,Countywide PD Service - Care,Nursing Independent Sector
Cambridgeshire County Council,24-Feb-17,22647820-14879597,-926.11,Making Space#1,Care Establishment,3 - Operations - Countywide Services,Countywide PD Service - Care,Nursing Independent Sector
Cambridgeshire County Council,22-Feb-17,22623125-14866182,-917.48,Sense,Care Establishment,CSC,Community Support Service ECF,Grants to Voluntary Bodies
Cambridgeshire County Council,23-Feb-17,20869906-14874851,-885.11,Hilton Park Care Centre,Care Establishment,2 - Operations - Learning Disability,LDP City Locality - Care,Nursing Independent Sector
Cambridgeshire County Council,23-Feb-17,20871037-14874853,-885.11,Hilton Park Care Centre,Care Establishment,2 - Operations - Learning Disability,LDP City Locality - Care,Nursing Independent Sector
Cambridgeshire County Council,23-Feb-17,20871039-14874855,-885.11,Hilton Park Care Centre,Care Establishment,2 - Operations - Learning Disability,LDP City Locality - Care,Nursing Independent Sector
Cambridgeshire County Council,23-Feb-17,20871042-14874858,-885.11,Hilton Park Care Centre,Care Establishment,2 - Operations - Learning Disability,LDP City Locality - Care,Nursing Independent Sector
Cambridgeshire County Council,23-Feb-17,21572060-14874863,-885.11,Hilton Park Care Centre,Care Establishment,2 - Operations - Learning Disability,LDP City Locality - Care,Nursing Independent Sector
Cambridgeshire County Council,23-Feb-17,21572061-14874864,-885.11,Hilton Park Care Centre,Care Establishment,2 - Operations - Learning Disability,LDP City Locality - Care,Nursing Independent Sector
Cambridgeshire County Council,23-Feb-17,21572063-14874866,-885.11,Hilton Park Care Centre,Care Establishment,2 - Operations - Learning Disability,LDP City Locality - Care,Nursing Independent Sector
Cambridgeshire County Council,23-Feb-17,21572066-14874869,-885.11,Hilton Park Care Centre,Care Establishment,2 - Operations - Learning Disability,LDP City Locality - Care,Nursing Independent Sector
Cambridgeshire County Council,23-Feb-17,21572068-14874871,-885.11,Hilton Park Care Centre,Care Establishment,2 - Operations - Learning Disability,LDP City Locality - Care,Nursing Independent Sector
Cambridgeshire County Council,23-Feb-17,21572070-14874873,-885.11,Hilton Park Care Centre,Care Establishment,2 - Operations - Learning Disability,LDP City Locality - Care,Nursing Independent Sector
Cambridgeshire County Council,23-Feb-17,21572072-14874875,-885.11,Hilton Park Care Centre,Care Establishment,2 - Operations - Learning Disability,LDP City Locality - Care,Nursing Independent Sector
Cambridgeshire County Council,16-Feb-17,22537574-14843978,-876.67,The Gables (Nursing Care Only),Care Establishment,2 - Commissioning - Older people Pool,Older People - City & South,Nursing Independent Sector
Cambridgeshire County Council,16-Feb-17,22537578-14843980,-876.67,The Gables (Nursing Care Only),Care Establishment,2 - Commissioning - Older people Pool,Older People - City & South,Nursing Independent Sector
Cambridgeshire County Council,02-Feb-17,22504141-14772401,-868.76,Renton Court (Voyage),Care Establishment,2 - Operations - Learning Disability,LDP Huntingdonshire Locality - Care,Supported Living
Cambridgeshire County Council,02-Feb-17,22504142-14772402,-868.76,Renton Court (Voyage),Care Establishment,2 - Operations - Learning Disability,LDP Huntingdonshire Locality - Care,Supported Living
Cambridgeshire County Council,02-Feb-17,22504144-14772404,-868.76,Renton Court (Voyage),Care Establishment,2 - Operations - Learning Disability,LDP Huntingdonshire Locality - Care,Supported Living
Cambridgeshire County Council,02-Feb-17,22504146-14772406,-868.76,Renton Court (Voyage),Care Establishment,2 - Operations - Learning Disability,LDP Huntingdonshire Locality - Care,Supported Living
Cambridgeshire County Council,02-Feb-17,22504148-14772408,-868.76,Renton Court (Voyage),Care Establishment,2 - Operations - Learning Disability,LDP Huntingdonshire Locality - Care,Supported Living
Cambridgeshire County Council,16-Feb-17,22584752-14846161,-854.25,Woodlands Care Centre,Care Establishment,2 - Commissioning - Older people Pool,Older People - City & South,Residential Independent Sector
Cambridgeshire County Council,16-Feb-17,22584753-14846162,-854.25,Woodlands Care Centre,Care Establishment,2 - Commissioning - Older people Pool,Older People - City & South,Residential Independent Sector
Cambridgeshire County Council,16-Feb-17,22584703-14846112,-854.25,Woodlands Care Centre,Care Establishment,2 - Commissioning - Older people Pool,Older People - City & South,Residential Independent Sector
Cambridgeshire County Council,16-Feb-17,22584704-14846113,-854.25,Woodlands Care Centre,Care Establishment,2 - Commissioning - Older people Pool,Older People - City & South,Residential Independent Sector
Cambridgeshire County Council,16-Feb-17,22584707-14846116,-854.25,Woodlands Care Centre,Care Establishment,2 - Commissioning - Older people Pool,Older People - City & South,Residential Independent Sector
Cambridgeshire County Council,16-Feb-17,22584708-14846117,-854.25,Woodlands Care Centre,Care Establishment,2 - Commissioning - Older people Pool,Older People - City & South,Residential Independent Sector
Cambridgeshire County Council,16-Feb-17,22584709-14846118,-854.25,Woodlands Care Centre,Care Establishment,2 - Commissioning - Older people Pool,Older People - City & South,Residential Independent Sector
Cambridgeshire County Council,16-Feb-17,22584710-14846119,-854.25,Woodlands Care Centre,Care Establishment,2 - Commissioning - Older people Pool,Older People - City & South,Residential Independent Sector
Cambridgeshire County Council,16-Feb-17,22584713-14846122,-854.25,Woodlands Care Centre,Care Establishment,2 - Commissioning - Older people Pool,Older People - City & South,Residential Independent Sector
Cambridgeshire County Council,16-Feb-17,22584721-14846130,-854.25,Woodlands Care Centre,Care Establishment,2 - Commissioning - Older people Pool,Older People - City & South,Residential Independent Sector
Cambridgeshire County Council,16-Feb-17,22584722-14846131,-854.25,Woodlands Care Centre,Care Establishment,2 - Commissioning - Older people Pool,Older People - City & South,Residential Independent Sector
Cambridgeshire County Council,16-Feb-17,22584727-14846136,-854.25,Woodlands Care Centre,Care Establishment,2 - Commissioning - Older people Pool,Older People - City & South,Residential Independent Sector
Cambridgeshire County Council,16-Feb-17,22584728-14846137,-854.25,Woodlands Care Centre,Care Establishment,2 - Commissioning - Older people Pool,Older People - City & South,Residential Independent Sector
Cambridgeshire County Council,16-Feb-17,22584731-14846140,-854.25,Woodlands Care Centre,Care Establishment,2 - Commissioning - Older people Pool,Older People - City & South,Residential Independent Sector
Cambridgeshire County Council,16-Feb-17,22584732-14846141,-854.25,Woodlands Care Centre,Care Establishment,2 - Commissioning - Older people Pool,Older People - City & South,Residential Independent Sector
Cambridgeshire County Council,16-Feb-17,22584733-14846142,-854.25,Woodlands Care Centre,Care Establishment,2 - Commissioning - Older people Pool,Older People - City & South,Residential Independent Sector
Cambridgeshire County Council,16-Feb-17,22584738-14846147,-854.25,Woodlands Care Centre,Care Establishment,2 - Commissioning - Older people Pool,Older People - City & South,Residential Independent Sector
Cambridgeshire County Council,16-Feb-17,22584739-14846148,-854.25,Woodlands Care Centre,Care Establishment,2 - Commissioning - Older people Pool,Older People - City & South,Residential Independent Sector
Cambridgeshire County Council,16-Feb-17,22584740-14846149,-854.25,Woodlands Care Centre,Care Establishment,2 - Commissioning - Older people Pool,Older People - City & South,Residential Independent Sector
Cambridgeshire County Council,16-Feb-17,22584742-14846151,-854.25,Woodlands Care Centre,Care Establishment,2 - Commissioning - Older people Pool,Older People - City & South,Residential Independent Sector
Cambridgeshire County Council,16-Feb-17,22584744-14846153,-854.25,Woodlands Care Centre,Care Establishment,2 - Commissioning - Older people Pool,Older People - City & South,Residential Independent Sector
Cambridgeshire County Council,16-Feb-17,22584745-14846154,-854.25,Woodlands Care Centre,Care Establishment,2 - Commissioning - Older people Pool,Older People - City & South,Residential Independent Sector
Cambridgeshire County Council,16-Feb-17,22584746-14846155,-854.25,Woodlands Care Centre,Care Establishment,2 - Commissioning - Older people Pool,Older People - City & South,Residential Independent Sector
Cambridgeshire County Council,16-Feb-17,22584749-14846158,-854.25,Woodlands Care Centre,Care Establishment,2 - Commissioning - Older people Pool,Older People - City & South,Residential Independent Sector
Cambridgeshire County Council,06-Feb-17,22416845-14789540,-848.58,Chs Group,Care Establishment,S&C,Placements - Social Care,Agency Placements - In Cambs
Cambridgeshire County Council,20-Feb-17,22550612-14856052,-848.57,Chs Group,Care Establishment,S&C,Placements - Social Care,Agency Placements - In Cambs
Cambridgeshire County Council,02-Feb-17,22492932-14772372,-823.04,Renton Court (Voyage),Care Establishment,2 - Operations - Learning Disability,LDP Huntingdonshire Locality - Care,Supported Living
Cambridgeshire County Council,02-Feb-17,22492936-14772376,-823.04,Renton Court (Voyage),Care Establishment,2 - Operations - Learning Disability,LDP Huntingdonshire Locality - Care,Supported Living
Cambridgeshire County Council,02-Feb-17,22492940-14772380,-823.04,Renton Court (Voyage),Care Establishment,2 - Operations - Learning Disability,LDP Huntingdonshire Locality - Care,Supported Living
Cambridgeshire County Council,02-Feb-17,22503907-14772417,-823.04,Renton Court (Voyage),Care Establishment,2 - Operations - Learning Disability,LDP Huntingdonshire Locality - Care,Supported Living
Cambridgeshire County Council,02-Feb-17,22503909-14772419,-823.04,Renton Court (Voyage),Care Establishment,2 - Operations - Learning Disability,LDP Huntingdonshire Locality - Care,Supported Living
Cambridgeshire County Council,02-Feb-17,22491517-14764383,-815,Redacted Personal Data,Individual,3 - Operations - Countywide Services,Countywide PD Service - Care,Direct Payments - Social Services
Cambridgeshire County Council,02-Feb-17,22491522-14764386,-815,Redacted Personal Data,Individual,3 - Operations - Countywide Services,Countywide PD Service - Care,Direct Payments - Social Services
Cambridgeshire County Council,02-Feb-17,22497044-14764391,-815,Redacted Personal Data,Individual,3 - Operations - Countywide Services,Countywide PD Service - Care,Direct Payments - Social Services
Cambridgeshire County Council,02-Feb-17,22497046-14764393,-815,Redacted Personal Data,Individual,3 - Operations - Countywide Services,Countywide PD Service - Care,Direct Payments - Social Services
Cambridgeshire County Council,02-Feb-17,22497050-14764396,-815,Redacted Personal Data,Individual,3 - Operations - Countywide Services,Countywide PD Service - Care,Direct Payments - Social Services
Cambridgeshire County Council,02-Feb-17,22497052-14764397,-815,Redacted Personal Data,Individual,3 - Operations - Countywide Services,Countywide PD Service - Care,Direct Payments - Social Services
Cambridgeshire County Council,02-Feb-17,22497053-14764398,-815,Redacted Personal Data,Individual,3 - Operations - Countywide Services,Countywide PD Service - Care,Direct Payments - Social Services
Cambridgeshire County Council,02-Feb-17,22497059-14764402,-815,Redacted Personal Data,Individual,3 - Operations - Countywide Services,Countywide PD Service - Care,Direct Payments - Social Services
Cambridgeshire County Council,02-Feb-17,22497063-14764405,-815,Redacted Personal Data,Individual,3 - Operations - Countywide Services,Countywide PD Service - Care,Direct Payments - Social Services
Cambridgeshire County Council,16-Feb-17,22582239-14845137,-814.53,The Avenues Trust Ltd,Trust (Other),2 - Operations - Learning Disability,LDP South Cambs Locality - Care,Residential Independent Sector
Cambridgeshire County Council,16-Feb-17,22583014-14845089,-814.53,The Avenues Trust Ltd,Trust (Other),2 - Operations - Learning Disability,LDP South Cambs Locality - Care,Residential Independent Sector
Cambridgeshire County Council,16-Feb-17,22585010-14844602,-793.81,Making Space#1,Care Establishment,3 - Operations - Countywide Services,Countywide PD Service - Care,Nursing Independent Sector
Cambridgeshire County Council,24-Feb-17,22647850-14879562,-793.81,Making Space#1,Care Establishment,3 - Operations - Countywide Services,Countywide PD Service - Care,Nursing Independent Sector
Cambridgeshire County Council,02-Feb-17,22491340-14770519,-777.25,St George'S Court,Care Establishment,2 - Commissioning - Older people Pool,Older People - City & South,Nursing Independent Sector
Cambridgeshire County Council,02-Feb-17,22491341-14770520,-777.25,St George'S Court,Care Establishment,2 - Commissioning - Older people Pool,Older People - City & South,Nursing Independent Sector
Cambridgeshire County Council,02-Feb-17,22491347-14770524,-777.25,St George'S Court,Care Establishment,2 - Commissioning - Older people Pool,Older People - City & South,Nursing Independent Sector
Cambridgeshire County Council,02-Feb-17,22491355-14770526,-777.25,St George'S Court,Care Establishment,2 - Commissioning - Older people Pool,Older People - City & South,Nursing Independent Sector
Cambridgeshire County Council,02-Feb-17,22491371-14770532,-777.25,St George'S Court,Care Establishment,2 - Commissioning - Older people Pool,Older People - City & South,Nursing Independent Sector
Cambridgeshire County Council,02-Feb-17,22491372-14770533,-777.25,St George'S Court,Care Establishment,2 - Commissioning - Older people Pool,Older People - City & South,Nursing Independent Sector
Cambridgeshire County Council,16-Feb-17,22585567-14842365,-773.76,Royal Mencap Society,Care Establishment,2 - Operations - Learning Disability,LDP South Cambs Locality - Care,Residential Independent Sector
Cambridgeshire County Council,16-Feb-17,22585568-14842366,-773.76,Royal Mencap Society,Care Establishment,2 - Operations - Learning Disability,LDP South Cambs Locality - Care,Residential Independent Sector
Cambridgeshire County Council,16-Feb-17,22585571-14842369,-773.76,Royal Mencap Society,Care Establishment,2 - Operations - Learning Disability,LDP South Cambs Locality - Care,Residential Independent Sector
Cambridgeshire County Council,16-Feb-17,22585576-14842374,-773.76,Royal Mencap Society,Care Establishment,2 - Operations - Learning Disability,LDP South Cambs Locality - Care,Residential Independent Sector
Cambridgeshire County Council,16-Feb-17,22585579-14842377,-773.76,Royal Mencap Society,Care Establishment,2 - Operations - Learning Disability,LDP South Cambs Locality - Care,Residential Independent Sector
Cambridgeshire County Council,16-Feb-17,22585580-14842378,-773.76,Royal Mencap Society,Care Establishment,2 - Operations - Learning Disability,LDP South Cambs Locality - Care,Residential Independent Sector
Cambridgeshire County Council,16-Feb-17,22585581-14842379,-773.76,Royal Mencap Society,Care Establishment,2 - Operations - Learning Disability,LDP South Cambs Locality - Care,Residential Independent Sector
Cambridgeshire County Council,16-Feb-17,22585585-14842383,-773.76,Royal Mencap Society,Care Establishment,2 - Operations - Learning Disability,LDP South Cambs Locality - Care,Residential Independent Sector
Cambridgeshire County Council,16-Feb-17,22585586-14842384,-773.76,Royal Mencap Society,Care Establishment,2 - Operations - Learning Disability,LDP South Cambs Locality - Care,Residential Independent Sector
Cambridgeshire County Council,16-Feb-17,22584845-14842393,-773.76,Royal Mencap Society,Care Establishment,2 - Operations - Learning Disability,LDP South Cambs Locality - Care,Residential Independent Sector
Cambridgeshire County Council,16-Feb-17,22584849-14842397,-773.76,Royal Mencap Society,Care Establishment,2 - Operations - Learning Disability,LDP South Cambs Locality - Care,Residential Independent Sector
Cambridgeshire County Council,16-Feb-17,22584850-14842398,-773.76,Royal Mencap Society,Care Establishment,2 - Operations - Learning Disability,LDP South Cambs Locality - Care,Residential Independent Sector
Cambridgeshire County Council,16-Feb-17,22584855-14842403,-773.76,Royal Mencap Society,Care Establishment,2 - Operations - Learning Disability,LDP South Cambs Locality - Care,Residential Independent Sector
Cambridgeshire County Council,16-Feb-17,22584857-14842405,-773.76,Royal Mencap Society,Care Establishment,2 - Operations - Learning Disability,LDP South Cambs Locality - Care,Residential Independent Sector
Cambridgeshire County Council,16-Feb-17,22584869-14842416,-773.76,Royal Mencap Society,Care Establishment,2 - Operations - Learning Disability,LDP South Cambs Locality - Care,Residential Independent Sector
Cambridgeshire County Council,02-Feb-17,22410877-14758144,-765.73,Caerus Care Ltd,Care Establishment,2 - Operations - Learning Disability,LDP Fenland Locality - Care,Supported Living
Cambridgeshire County Council,02-Feb-17,22410879-14758146,-765.73,Caerus Care Ltd,Care Establishment,2 - Operations - Learning Disability,LDP Fenland Locality - Care,Supported Living
Cambridgeshire County Council,02-Feb-17,22410880-14758147,-765.73,Caerus Care Ltd,Care Establishment,2 - Operations - Learning Disability,LDP Fenland Locality - Care,Supported Living
Cambridgeshire County Council,02-Feb-17,22410882-14758149,-765.73,Caerus Care Ltd,Care Establishment,2 - Operations - Learning Disability,LDP Fenland Locality - Care,Supported Living
Cambridgeshire County Council,02-Feb-17,22410883-14758150,-765.73,Caerus Care Ltd,Care Establishment,2 - Operations - Learning Disability,LDP Fenland Locality - Care,Supported Living
Cambridgeshire County Council,02-Feb-17,22410888-14758155,-765.73,Caerus Care Ltd,Care Establishment,2 - Operations - Learning Disability,LDP Fenland Locality - Care,Supported Living
Cambridgeshire County Council,02-Feb-17,22410890-14758157,-765.73,Caerus Care Ltd,Care Establishment,2 - Operations - Learning Disability,LDP Fenland Locality - Care,Supported Living
Cambridgeshire County Council,02-Feb-17,22410891-14758158,-765.73,Caerus Care Ltd,Care Establishment,2 - Operations - Learning Disability,LDP Fenland Locality - Care,Supported Living
Cambridgeshire County Council,02-Feb-17,22410893-14758160,-765.73,Caerus Care Ltd,Care Establishment,2 - Operations - Learning Disability,LDP Fenland Locality - Care,Supported Living
Cambridgeshire County Council,02-Feb-17,22410894-14758161,-765.73,Caerus Care Ltd,Care Establishment,2 - Operations - Learning Disability,LDP Fenland Locality - Care,Supported Living
Cambridgeshire County Council,02-Feb-17,22410895-14758162,-765.73,Caerus Care Ltd,Care Establishment,2 - Operations - Learning Disability,LDP Fenland Locality - Care,Supported Living
Cambridgeshire County Council,02-Feb-17,22410896-14758163,-765.73,Caerus Care Ltd,Care Establishment,2 - Operations - Learning Disability,LDP Fenland Locality - Care,Supported Living
Cambridgeshire County Council,02-Feb-17,22410902-14758169,-765.73,Caerus Care Ltd,Care Establishment,2 - Operations - Learning Disability,LDP Fenland Locality - Care,Supported Living
Cambridgeshire County Council,02-Feb-17,22410904-14758171,-765.73,Caerus Care Ltd,Care Establishment,2 - Operations - Learning Disability,LDP Fenland Locality - Care,Supported Living
Cambridgeshire County Council,02-Feb-17,22410907-14758174,-765.73,Caerus Care Ltd,Care Establishment,2 - Operations - Learning Disability,LDP Fenland Locality - Care,Supported Living
Cambridgeshire County Council,02-Feb-17,22410910-14758177,-765.73,Caerus Care Ltd,Care Establishment,2 - Operations - Learning Disability,LDP Fenland Locality - Care,Supported Living
Cambridgeshire County Council,02-Feb-17,22410911-14758178,-765.73,Caerus Care Ltd,Care Establishment,2 - Operations - Learning Disability,LDP Fenland Locality - Care,Supported Living
Cambridgeshire County Council,02-Feb-17,22410913-14758180,-765.73,Caerus Care Ltd,Care Establishment,2 - Operations - Learning Disability,LDP Fenland Locality - Care,Supported Living
Cambridgeshire County Council,02-Feb-17,22410914-14758181,-765.73,Caerus Care Ltd,Care Establishment,2 - Operations - Learning Disability,LDP Fenland Locality - Care,Supported Living
Cambridgeshire County Council,02-Feb-17,22410916-14758183,-765.73,Caerus Care Ltd,Care Establishment,2 - Operations - Learning Disability,LDP Fenland Locality - Care,Supported Living
Cambridgeshire County Council,02-Feb-17,22411733-14758189,-765.73,Caerus Care Ltd,Care Establishment,2 - Operations - Learning Disability,LDP Fenland Locality - Care,Supported Living
Cambridgeshire County Council,02-Feb-17,22409740-14758194,-765.73,Caerus Care Ltd,Care Establishment,2 - Operations - Learning Disability,LDP Fenland Locality - Care,Supported Living
Cambridgeshire County Council,02-Feb-17,22409744-14758198,-765.73,Caerus Care Ltd,Care Establishment,2 - Operations - Learning Disability,LDP Fenland Locality - Care,Supported Living
Cambridgeshire County Council,02-Feb-17,22409745-14758199,-765.73,Caerus Care Ltd,Care Establishment,2 - Operations - Learning Disability,LDP Fenland Locality - Care,Supported Living
Cambridgeshire County Council,02-Feb-17,22409746-14758200,-765.73,Caerus Care Ltd,Care Establishment,2 - Operations - Learning Disability,LDP Fenland Locality - Care,Supported Living
Cambridgeshire County Council,02-Feb-17,22409749-14758203,-765.73,Caerus Care Ltd,Care Establishment,2 - Operations - Learning Disability,LDP Fenland Locality - Care,Supported Living
Cambridgeshire County Council,02-Feb-17,22409751-14758205,-765.73,Caerus Care Ltd,Care Establishment,2 - Operations - Learning Disability,LDP Fenland Locality - Care,Supported Living
Cambridgeshire County Council,02-Feb-17,22409752-14758206,-765.73,Caerus Care Ltd,Care Establishment,2 - Operations - Learning Disability,LDP Fenland Locality - Care,Supported Living
Cambridgeshire County Council,02-Feb-17,22409753-14758207,-765.73,Caerus Care Ltd,Care Establishment,2 - Operations - Learning Disability,LDP Fenland Locality - Care,Supported Living
Cambridgeshire County Council,02-Feb-17,22409757-14758211,-765.73,Caerus Care Ltd,Care Establishment,2 - Operations - Learning Disability,LDP Fenland Locality - Care,Supported Living
Cambridgeshire County Council,02-Feb-17,22409758-14758212,-765.73,Caerus Care Ltd,Care Establishment,2 - Operations - Learning Disability,LDP Fenland Locality - Care,Supported Living
Cambridgeshire County Council,02-Feb-17,22409761-14758215,-765.73,Caerus Care Ltd,Care Establishment,2 - Operations - Learning Disability,LDP Fenland Locality - Care,Supported Living
Cambridgeshire County Council,02-Feb-17,22411738-14758082,-765.73,Caerus Care Ltd,Care Establishment,2 - Operations - Learning Disability,LDP Fenland Locality - Care,Supported Living
Cambridgeshire County Council,02-Feb-17,22411741-14758085,-765.73,Caerus Care Ltd,Care Establishment,2 - Operations - Learning Disability,LDP Fenland Locality - Care,Supported Living
Cambridgeshire County Council,02-Feb-17,22411745-14758089,-765.73,Caerus Care Ltd,Care Establishment,2 - Operations - Learning Disability,LDP Fenland Locality - Care,Supported Living
Cambridgeshire County Council,02-Feb-17,22411746-14758090,-765.73,Caerus Care Ltd,Care Establishment,2 - Operations - Learning Disability,LDP Fenland Locality - Care,Supported Living
Cambridgeshire County Council,02-Feb-17,22411747-14758091,-765.73,Caerus Care Ltd,Care Establishment,2 - Operations - Learning Disability,LDP Fenland Locality - Care,Supported Living
Cambridgeshire County Council,02-Feb-17,22411753-14758097,-765.73,Caerus Care Ltd,Care Establishment,2 - Operations - Learning Disability,LDP Fenland Locality - Care,Supported Living
Cambridgeshire County Council,02-Feb-17,22411755-14758099,-765.73,Caerus Care Ltd,Care Establishment,2 - Operations - Learning Disability,LDP Fenland Locality - Care,Supported Living
Cambridgeshire County Council,02-Feb-17,22411756-14758100,-765.73,Caerus Care Ltd,Care Establishment,2 - Operations - Learning Disability,LDP Fenland Locality - Care,Supported Living
Cambridgeshire County Council,02-Feb-17,22411758-14758102,-765.73,Caerus Care Ltd,Care Establishment,2 - Operations - Learning Disability,LDP Fenland Locality - Care,Supported Living
Cambridgeshire County Council,02-Feb-17,22411759-14758103,-765.73,Caerus Care Ltd,Care Establishment,2 - Operations - Learning Disability,LDP Fenland Locality - Care,Supported Living
Cambridgeshire County Council,02-Feb-17,22411761-14758105,-765.73,Caerus Care Ltd,Care Establishment,2 - Operations - Learning Disability,LDP Fenland Locality - Care,Supported Living
Cambridgeshire County Council,02-Feb-17,22411762-14758106,-765.73,Caerus Care Ltd,Care Establishment,2 - Operations - Learning Disability,LDP Fenland Locality - Care,Supported Living
Cambridgeshire County Council,02-Feb-17,22410841-14758108,-765.73,Caerus Care Ltd,Care Establishment,2 - Operations - Learning Disability,LDP Fenland Locality - Care,Supported Living
Cambridgeshire County Council,02-Feb-17,22410842-14758109,-765.73,Caerus Care Ltd,Care Establishment,2 - Operations - Learning Disability,LDP Fenland Locality - Care,Supported Living
Cambridgeshire County Council,02-Feb-17,22410847-14758114,-765.73,Caerus Care Ltd,Care Establishment,2 - Operations - Learning Disability,LDP Fenland Locality - Care,Supported Living
Cambridgeshire County Council,02-Feb-17,22410848-14758115,-765.73,Caerus Care Ltd,Care Establishment,2 - Operations - Learning Disability,LDP Fenland Locality - Care,Supported Living
Cambridgeshire County Council,02-Feb-17,22410854-14758121,-765.73,Caerus Care Ltd,Care Establishment,2 - Operations - Learning Disability,LDP Fenland Locality - Care,Supported Living
Cambridgeshire County Council,02-Feb-17,22410855-14758122,-765.73,Caerus Care Ltd,Care Establishment,2 - Operations - Learning Disability,LDP Fenland Locality - Care,Supported Living
Cambridgeshire County Council,02-Feb-17,22410856-14758123,-765.73,Caerus Care Ltd,Care Establishment,2 - Operations - Learning Disability,LDP Fenland Locality - Care,Supported Living
Cambridgeshire County Council,02-Feb-17,22410858-14758125,-765.73,Caerus Care Ltd,Care Establishment,2 - Operations - Learning Disability,LDP Fenland Locality - Care,Supported Living
Cambridgeshire County Council,02-Feb-17,22410860-14758127,-765.73,Caerus Care Ltd,Care Establishment,2 - Operations - Learning Disability,LDP Fenland Locality - Care,Supported Living
Cambridgeshire County Council,02-Feb-17,22410861-14758128,-765.73,Caerus Care Ltd,Care Establishment,2 - Operations - Learning Disability,LDP Fenland Locality - Care,Supported Living
Cambridgeshire County Council,02-Feb-17,22410864-14758131,-765.73,Caerus Care Ltd,Care Establishment,2 - Operations - Learning Disability,LDP Fenland Locality - Care,Supported Living
Cambridgeshire County Council,02-Feb-17,22410867-14758134,-765.73,Caerus Care Ltd,Care Establishment,2 - Operations - Learning Disability,LDP Fenland Locality - Care,Supported Living
Cambridgeshire County Council,02-Feb-17,22410870-14758137,-765.73,Caerus Care Ltd,Care Establishment,2 - Operations - Learning Disability,LDP Fenland Locality - Care,Supported Living
Cambridgeshire County Council,02-Feb-17,22410871-14758138,-765.73,Caerus Care Ltd,Care Establishment,2 - Operations - Learning Disability,LDP Fenland Locality - Care,Supported Living
Cambridgeshire County Council,02-Feb-17,22410874-14758141,-765.73,Caerus Care Ltd,Care Establishment,2 - Operations - Learning Disability,LDP Fenland Locality - Care,Supported Living
Cambridgeshire County Council,23-Feb-17,20869907-14874852,-758.67,Hilton Park Care Centre,Care Establishment,2 - Operations - Learning Disability,LDP City Locality - Care,Nursing Independent Sector
Cambridgeshire County Council,16-Feb-17,22537577-14843979,-751.43,The Gables (Nursing Care Only),Care Establishment,2 - Commissioning - Older people Pool,Older People - City & South,Nursing Independent Sector
Cambridgeshire County Council,07-Feb-17,22418101-14793118,-751.21,Alphabet (Uk) Fleet Management Limited,Trade Supplier,LGSS Managed,LGSS Property Trading Recharges,Leased Vehicle Costs
Cambridgeshire County Council,09-Feb-17,22458641-14819869,-750,Maycroft Care Home Ltd,Care Establishment,2 - Commissioning - Older people Pool,Older People Mental Health City & South,Residential Independent Sector
Cambridgeshire County Council,09-Feb-17,22458642-14819870,-750,Maycroft Care Home Ltd,Care Establishment,2 - Commissioning - Older people Pool,Older People Mental Health City & South,Residential Independent Sector
Cambridgeshire County Council,09-Feb-17,22458643-14819871,-750,Maycroft Care Home Ltd,Care Establishment,2 - Commissioning - Older people Pool,Older People Mental Health City & South,Residential Independent Sector
Cambridgeshire County Council,23-Feb-17,22646490-14875115,-750,Redacted Personal Data,Individual,3 - Operations - Countywide Services,Countywide PD Service - Care,Direct Payments - Social Services
Cambridgeshire County Council,23-Feb-17,22646491-14875116,-750,Redacted Personal Data,Individual,3 - Operations - Countywide Services,Countywide PD Service - Care,Direct Payments - Social Services
Cambridgeshire County Council,23-Feb-17,22646492-14875117,-750,Redacted Personal Data,Individual,3 - Operations - Countywide Services,Countywide PD Service - Care,Direct Payments - Social Services
Cambridgeshire County Council,23-Feb-17,22646495-14875120,-750,Redacted Personal Data,Individual,3 - Operations - Countywide Services,Countywide PD Service - Care,Direct Payments - Social Services
Cambridgeshire County Council,23-Feb-17,22646501-14875126,-750,Redacted Personal Data,Individual,3 - Operations - Countywide Services,Countywide PD Service - Care,Direct Payments - Social Services
Cambridgeshire County Council,23-Feb-17,22646507-14875131,-750,Redacted Personal Data,Individual,3 - Operations - Countywide Services,Countywide PD Service - Care,Direct Payments - Social Services
Cambridgeshire County Council,23-Feb-17,22646515-14875137,-750,Redacted Personal Data,Individual,3 - Operations - Countywide Services,Countywide PD Service - Care,Direct Payments - Social Services
Cambridgeshire County Council,23-Feb-17,22646517-14875138,-750,Redacted Personal Data,Individual,3 - Operations - Countywide Services,Countywide PD Service - Care,Direct Payments - Social Services
Cambridgeshire County Council,23-Feb-17,22646518-14875139,-750,Redacted Personal Data,Individual,3 - Operations - Countywide Services,Countywide PD Service - Care,Direct Payments - Social Services
Cambridgeshire County Council,23-Feb-17,22036714-14874920,-747.6,Redacted Personal Data,Individual,3 - Operations - Countywide Services,Countywide PD Service - Care,Direct Payments - Social Services
Cambridgeshire County Council,23-Feb-17,22036715-14874921,-747.6,Redacted Personal Data,Individual,3 - Operations - Countywide Services,Countywide PD Service - Care,Direct Payments - Social Services
Cambridgeshire County Council,23-Feb-17,22036716-14874922,-747.6,Redacted Personal Data,Individual,3 - Operations - Countywide Services,Countywide PD Service - Care,Direct Payments - Social Services
Cambridgeshire County Council,16-Feb-17,22585240-14842096,-744.25,The Cambridge Nursing Centre,Care Establishment,5 - Commissioning - Mental Health & Supporting People,OP Blocks - Care Placements,Nursing Independent Sector
Cambridgeshire County Council,16-Feb-17,22585253-14842101,-744.25,The Cambridge Nursing Centre,Care Establishment,5 - Commissioning - Mental Health & Supporting People,OP Blocks - Care Placements,Nursing Independent Sector
Cambridgeshire County Council,16-Feb-17,22585254-14842102,-744.25,The Cambridge Nursing Centre,Care Establishment,5 - Commissioning - Mental Health & Supporting People,OP Blocks - Care Placements,Nursing Independent Sector
Cambridgeshire County Council,16-Feb-17,22585263-14842104,-744.25,The Cambridge Nursing Centre,Care Establishment,5 - Commissioning - Mental Health & Supporting People,OP Blocks - Care Placements,Nursing Independent Sector
Cambridgeshire County Council,16-Feb-17,22584215-14842114,-744.25,The Cambridge Nursing Centre,Care Establishment,5 - Commissioning - Mental Health & Supporting People,OP Blocks - Care Placements,Nursing Independent Sector
Cambridgeshire County Council,16-Feb-17,22584217-14842116,-744.25,The Cambridge Nursing Centre,Care Establishment,5 - Commissioning - Mental Health & Supporting People,OP Blocks - Care Placements,Nursing Independent Sector
Cambridgeshire County Council,16-Feb-17,22584252-14842131,-744.25,The Cambridge Nursing Centre,Care Establishment,5 - Commissioning - Mental Health & Supporting People,OP Blocks - Care Placements,Nursing Independent Sector
Cambridgeshire County Council,16-Feb-17,22584255-14842134,-744.25,The Cambridge Nursing Centre,Care Establishment,5 - Commissioning - Mental Health & Supporting People,OP Blocks - Care Placements,Nursing Independent Sector
Cambridgeshire County Council,16-Feb-17,22584259-14842137,-744.25,The Cambridge Nursing Centre,Care Establishment,5 - Commissioning - Mental Health & Supporting People,OP Blocks - Care Placements,Nursing Independent Sector
Cambridgeshire County Council,16-Feb-17,22584275-14842143,-744.25,The Cambridge Nursing Centre,Care Establishment,5 - Commissioning - Mental Health & Supporting People,OP Blocks - Care Placements,Nursing Independent Sector
Cambridgeshire County Council,16-Feb-17,22584280-14842144,-744.25,The Cambridge Nursing Centre,Care Establishment,5 - Commissioning - Mental Health & Supporting People,OP Blocks - Care Placements,Nursing Independent Sector
Cambridgeshire County Council,16-Feb-17,22584285-14842145,-744.25,The Cambridge Nursing Centre,Care Establishment,5 - Commissioning - Mental Health & Supporting People,OP Blocks - Care Placements,Nursing Independent Sector
Cambridgeshire County Council,16-Feb-17,22584210-14842154,-744.25,The Cambridge Nursing Centre,Care Establishment,5 - Commissioning - Mental Health & Supporting People,OP Blocks - Care Placements,Nursing Independent Sector
Cambridgeshire County Council,16-Feb-17,22583135-14842059,-744.25,The Cambridge Nursing Centre,Care Establishment,5 - Commissioning - Mental Health & Supporting People,OP Blocks - Care Placements,Nursing Independent Sector
Cambridgeshire County Council,16-Feb-17,22583143-14842062,-744.25,The Cambridge Nursing Centre,Care Establishment,5 - Commissioning - Mental Health & Supporting People,OP Blocks - Care Placements,Nursing Independent Sector
Cambridgeshire County Council,24-Feb-17,22623552-14880045,-724.03,Whippet Coaches Limited,Trade Supplier,S&C,H to S Transport - Secondary,Home to School - Public Transport
Cambridgeshire County Council,24-Feb-17,22645230-14881063,-708.08,The Cambridge Nursing Centre,Care Establishment,2 - Commissioning - Older people Pool,Older People Mental Health City & South,Nursing Independent Sector
Cambridgeshire County Council,24-Feb-17,22645232-14881065,-708.08,The Cambridge Nursing Centre,Care Establishment,2 - Commissioning - Older people Pool,Older People Mental Health City & South,Nursing Independent Sector
Cambridgeshire County Council,24-Feb-17,22645233-14881066,-708.08,The Cambridge Nursing Centre,Care Establishment,2 - Commissioning - Older people Pool,Older People Mental Health City & South,Nursing Independent Sector
Cambridgeshire County Council,24-Feb-17,22645234-14881067,-708.08,The Cambridge Nursing Centre,Care Establishment,2 - Commissioning - Older people Pool,Older People Mental Health City & South,Nursing Independent Sector
Cambridgeshire County Council,02-Feb-17,22499867-14777471,-700,The Cambridge Nursing Centre,Care Establishment,2 - Commissioning - Older people Pool,Older People - City & South,Nursing Independent Sector
Cambridgeshire County Council,02-Feb-17,22499870-14777472,-700,The Cambridge Nursing Centre,Care Establishment,2 - Commissioning - Older people Pool,Older People - City & South,Nursing Independent Sector
Cambridgeshire County Council,02-Feb-17,22499871-14777473,-700,The Cambridge Nursing Centre,Care Establishment,2 - Commissioning - Older people Pool,Older People - City & South,Nursing Independent Sector
Cambridgeshire County Council,02-Feb-17,22499872-14777474,-700,The Cambridge Nursing Centre,Care Establishment,2 - Commissioning - Older people Pool,Older People - City & South,Nursing Independent Sector
Cambridgeshire County Council,02-Feb-17,22499873-14777475,-700,The Cambridge Nursing Centre,Care Establishment,2 - Commissioning - Older people Pool,Older People - City & South,Nursing Independent Sector
Cambridgeshire County Council,02-Feb-17,22499874-14777476,-700,The Cambridge Nursing Centre,Care Establishment,2 - Commissioning - Older people Pool,Older People - City & South,Nursing Independent Sector
Cambridgeshire County Council,02-Feb-17,22499876-14777477,-700,The Cambridge Nursing Centre,Care Establishment,2 - Commissioning - Older people Pool,Older People - City & South,Nursing Independent Sector
Cambridgeshire County Council,02-Feb-17,22499877-14777478,-700,The Cambridge Nursing Centre,Care Establishment,2 - Commissioning - Older people Pool,Older People - City & South,Nursing Independent Sector
Cambridgeshire County Council,02-Feb-17,22499878-14777479,-700,The Cambridge Nursing Centre,Care Establishment,2 - Commissioning - Older people Pool,Older People - City & South,Nursing Independent Sector
Cambridgeshire County Council,02-Feb-17,22499879-14777480,-700,The Cambridge Nursing Centre,Care Establishment,2 - Commissioning - Older people Pool,Older People - City & South,Nursing Independent Sector
Cambridgeshire County Council,02-Feb-17,22499880-14777481,-700,The Cambridge Nursing Centre,Care Establishment,2 - Commissioning - Older people Pool,Older People - City & South,Nursing Independent Sector
Cambridgeshire County Council,02-Feb-17,22499881-14777482,-700,The Cambridge Nursing Centre,Care Establishment,2 - Commissioning - Older people Pool,Older People - City & South,Nursing Independent Sector
Cambridgeshire County Council,02-Feb-17,22499882-14777483,-700,The Cambridge Nursing Centre,Care Establishment,2 - Commissioning - Older people Pool,Older People - City & South,Nursing Independent Sector
Cambridgeshire County Council,02-Feb-17,22499883-14777484,-700,The Cambridge Nursing Centre,Care Establishment,2 - Commissioning - Older people Pool,Older People - City & South,Nursing Independent Sector
Cambridgeshire County Council,02-Feb-17,22499888-14777485,-700,The Cambridge Nursing Centre,Care Establishment,2 - Commissioning - Older people Pool,Older People - City & South,Nursing Independent Sector
Cambridgeshire County Council,02-Feb-17,22499889-14777486,-700,The Cambridge Nursing Centre,Care Establishment,2 - Commissioning - Older people Pool,Older People - City & South,Nursing Independent Sector
Cambridgeshire County Council,02-Feb-17,22499890-14777487,-700,The Cambridge Nursing Centre,Care Establishment,2 - Commissioning - Older people Pool,Older People - City & South,Nursing Independent Sector
Cambridgeshire County Council,02-Feb-17,22499891-14777488,-700,The Cambridge Nursing Centre,Care Establishment,2 - Commissioning - Older people Pool,Older People - City & South,Nursing Independent Sector
Cambridgeshire County Council,02-Feb-17,22499892-14777489,-700,The Cambridge Nursing Centre,Care Establishment,2 - Commissioning - Older people Pool,Older People - City & South,Nursing Independent Sector
Cambridgeshire County Council,02-Feb-17,22499893-14777490,-700,The Cambridge Nursing Centre,Care Establishment,2 - Commissioning - Older people Pool,Older People - City & South,Nursing Independent Sector
Cambridgeshire County Council,02-Feb-17,22499894-14777491,-700,The Cambridge Nursing Centre,Care Establishment,2 - Commissioning - Older people Pool,Older People - City & South,Nursing Independent Sector
Cambridgeshire County Council,02-Feb-17,22499895-14777492,-700,The Cambridge Nursing Centre,Care Establishment,2 - Commissioning - Older people Pool,Older People - City & South,Nursing Independent Sector
Cambridgeshire County Council,02-Feb-17,22499896-14777493,-700,The Cambridge Nursing Centre,Care Establishment,2 - Commissioning - Older people Pool,Older People - City & South,Nursing Independent Sector
Cambridgeshire County Council,02-Feb-17,22499897-14777494,-700,The Cambridge Nursing Centre,Care Establishment,2 - Commissioning - Older people Pool,Older People - City & South,Nursing Independent Sector
Cambridgeshire County Council,02-Feb-17,22499899-14777496,-700,The Cambridge Nursing Centre,Care Establishment,2 - Commissioning - Older people Pool,Older People - City & South,Nursing Independent Sector
Cambridgeshire County Council,02-Feb-17,22499900-14777497,-700,The Cambridge Nursing Centre,Care Establishment,2 - Commissioning - Older people Pool,Older People - City & South,Nursing Independent Sector
Cambridgeshire County Council,02-Feb-17,22499901-14777498,-700,The Cambridge Nursing Centre,Care Establishment,2 - Commissioning - Older people Pool,Older People - City & South,Nursing Independent Sector
Cambridgeshire County Council,02-Feb-17,22499902-14777499,-700,The Cambridge Nursing Centre,Care Establishment,2 - Commissioning - Older people Pool,Older People - City & South,Nursing Independent Sector
Cambridgeshire County Council,02-Feb-17,22499903-14777500,-700,The Cambridge Nursing Centre,Care Establishment,2 - Commissioning - Older people Pool,Older People - City & South,Nursing Independent Sector
Cambridgeshire County Council,16-Feb-17,22584454-14846004,-697.29,Midfield Lodge Care Centre,Care Establishment,2 - Commissioning - Older people Pool,Older People - City & South,Nursing Independent Sector
Cambridgeshire County Council,16-Feb-17,22584455-14846005,-697.29,Midfield Lodge Care Centre,Care Establishment,2 - Commissioning - Older people Pool,Older People - City & South,Nursing Independent Sector
Cambridgeshire County Council,16-Feb-17,22584459-14846006,-697.29,Midfield Lodge Care Centre,Care Establishment,2 - Commissioning - Older people Pool,Older People - City & South,Nursing Independent Sector
Cambridgeshire County Council,16-Feb-17,22584127-14843800,-670.86,Redacted Personal Data,Individual,3 - Operations - Countywide Services,Countywide PD Service - Care,Direct Payments - Social Services
Cambridgeshire County Council,16-Feb-17,22584129-14843802,-670.86,Redacted Personal Data,Individual,3 - Operations - Countywide Services,Countywide PD Service - Care,Direct Payments - Social Services
Cambridgeshire County Council,16-Feb-17,22584131-14843804,-670.86,Redacted Personal Data,Individual,3 - Operations - Countywide Services,Countywide PD Service - Care,Direct Payments - Social Services
Cambridgeshire County Council,16-Feb-17,22584134-14843807,-670.86,Redacted Personal Data,Individual,3 - Operations - Countywide Services,Countywide PD Service - Care,Direct Payments - Social Services
Cambridgeshire County Council,16-Feb-17,22584135-14843808,-670.86,Redacted Personal Data,Individual,3 - Operations - Countywide Services,Countywide PD Service - Care,Direct Payments - Social Services
Cambridgeshire County Council,16-Feb-17,22584140-14843813,-670.86,Redacted Personal Data,Individual,3 - Operations - Countywide Services,Countywide PD Service - Care,Direct Payments - Social Services
Cambridgeshire County Council,16-Feb-17,22584141-14843814,-670.86,Redacted Personal Data,Individual,3 - Operations - Countywide Services,Countywide PD Service - Care,Direct Payments - Social Services
Cambridgeshire County Council,16-Feb-17,22581962-14843774,-670.86,Redacted Personal Data,Individual,3 - Operations - Countywide Services,Countywide PD Service - Care,Direct Payments - Social Services
Cambridgeshire County Council,16-Feb-17,22581964-14843776,-670.86,Redacted Personal Data,Individual,3 - Operations - Countywide Services,Countywide PD Service - Care,Direct Payments - Social Services
Cambridgeshire County Council,16-Feb-17,22581967-14843779,-670.86,Redacted Personal Data,Individual,3 - Operations - Countywide Services,Countywide PD Service - Care,Direct Payments - Social Services
Cambridgeshire County Council,16-Feb-17,22581968-14843780,-670.86,Redacted Personal Data,Individual,3 - Operations - Countywide Services,Countywide PD Service - Care,Direct Payments - Social Services
Cambridgeshire County Council,16-Feb-17,22581970-14843782,-670.86,Redacted Personal Data,Individual,3 - Operations - Countywide Services,Countywide PD Service - Care,Direct Payments - Social Services
Cambridgeshire County Council,16-Feb-17,22584111-14843784,-670.86,Redacted Personal Data,Individual,3 - Operations - Countywide Services,Countywide PD Service - Care,Direct Payments - Social Services
Cambridgeshire County Council,16-Feb-17,22584114-14843787,-670.86,Redacted Personal Data,Individual,3 - Operations - Countywide Services,Countywide PD Service - Care,Direct Payments - Social Services
Cambridgeshire County Council,16-Feb-17,22584117-14843790,-670.86,Redacted Personal Data,Individual,3 - Operations - Countywide Services,Countywide PD Service - Care,Direct Payments - Social Services
Cambridgeshire County Council,16-Feb-17,22584118-14843791,-670.86,Redacted Personal Data,Individual,3 - Operations - Countywide Services,Countywide PD Service - Care,Direct Payments - Social Services
Cambridgeshire County Council,16-Feb-17,22584119-14843792,-670.86,Redacted Personal Data,Individual,3 - Operations - Countywide Services,Countywide PD Service - Care,Direct Payments - Social Services
Cambridgeshire County Council,02-Feb-17,22412166-14756577,-667.8,Dimensions (Uk) Ltd,Care Establishment,2 - Operations - Learning Disability,LDP South Cambs - Special Needs,Supported Living
Cambridgeshire County Council,02-Feb-17,22388513-14756617,-667.8,Dimensions (Uk) Ltd,Care Establishment,2 - Operations - Learning Disability,LDP South Cambs - Special Needs,Supported Living
Cambridgeshire County Council,02-Feb-17,22457984-14756535,-667.8,Dimensions (Uk) Ltd,Care Establishment,2 - Operations - Learning Disability,LDP Cambs City - Special Needs,Supported Living
Cambridgeshire County Council,02-Feb-17,22499574-14756443,-667.8,Dimensions (Uk) Ltd,Care Establishment,2 - Operations - Learning Disability,LDP South Cambs - Special Needs,Supported Living
Cambridgeshire County Council,16-Feb-17,22584842-14842390,-663.22,Royal Mencap Society,Care Establishment,2 - Operations - Learning Disability,LDP South Cambs Locality - Care,Residential Independent Sector
Cambridgeshire County Council,16-Feb-17,22581718-14845714,-663,Redacted Personal Data,Individual,3 - Operations - Countywide Services,Countywide PD Service - Care,Direct Payments - Social Services
Cambridgeshire County Council,16-Feb-17,22581719-14845715,-663,Redacted Personal Data,Individual,3 - Operations - Countywide Services,Countywide PD Service - Care,Direct Payments - Social Services
Cambridgeshire County Council,16-Feb-17,22581724-14845720,-663,Redacted Personal Data,Individual,3 - Operations - Countywide Services,Countywide PD Service - Care,Direct Payments - Social Services
Cambridgeshire County Council,16-Feb-17,22581727-14845723,-663,Redacted Personal Data,Individual,3 - Operations - Countywide Services,Countywide PD Service - Care,Direct Payments - Social Services
Cambridgeshire County Council,16-Feb-17,22581731-14845727,-663,Redacted Personal Data,Individual,3 - Operations - Countywide Services,Countywide PD Service - Care,Direct Payments - Social Services
Cambridgeshire County Council,16-Feb-17,22581733-14845729,-663,Redacted Personal Data,Individual,3 - Operations - Countywide Services,Countywide PD Service - Care,Direct Payments - Social Services
Cambridgeshire County Council,16-Feb-17,22581734-14845730,-663,Redacted Personal Data,Individual,3 - Operations - Countywide Services,Countywide PD Service - Care,Direct Payments - Social Services
Cambridgeshire County Council,16-Feb-17,22581736-14845732,-663,Redacted Personal Data,Individual,3 - Operations - Countywide Services,Countywide PD Service - Care,Direct Payments - Social Services
Cambridgeshire County Council,16-Feb-17,22581737-14845733,-663,Redacted Personal Data,Individual,3 - Operations - Countywide Services,Countywide PD Service - Care,Direct Payments - Social Services
Cambridgeshire County Council,16-Feb-17,22581739-14845735,-663,Redacted Personal Data,Individual,3 - Operations - Countywide Services,Countywide PD Service - Care,Direct Payments - Social Services
Cambridgeshire County Council,16-Feb-17,22581741-14845737,-663,Redacted Personal Data,Individual,3 - Operations - Countywide Services,Countywide PD Service - Care,Direct Payments - Social Services
Cambridgeshire County Council,16-Feb-17,22581744-14845740,-663,Redacted Personal Data,Individual,3 - Operations - Countywide Services,Countywide PD Service - Care,Direct Payments - Social Services
Cambridgeshire County Council,16-Feb-17,22581746-14845742,-663,Redacted Personal Data,Individual,3 - Operations - Countywide Services,Countywide PD Service - Care,Direct Payments - Social Services
Cambridgeshire County Council,16-Feb-17,22581748-14845744,-663,Redacted Personal Data,Individual,3 - Operations - Countywide Services,Countywide PD Service - Care,Direct Payments - Social Services
Cambridgeshire County Council,16-Feb-17,22581750-14845746,-663,Redacted Personal Data,Individual,3 - Operations - Countywide Services,Countywide PD Service - Care,Direct Payments - Social Services
Cambridgeshire County Council,16-Feb-17,22581753-14845749,-663,Redacted Personal Data,Individual,3 - Operations - Countywide Services,Countywide PD Service - Care,Direct Payments - Social Services
Cambridgeshire County Council,16-Feb-17,22581754-14845750,-663,Redacted Personal Data,Individual,3 - Operations - Countywide Services,Countywide PD Service - Care,Direct Payments - Social Services
Cambridgeshire County Council,16-Feb-17,22581755-14845751,-663,Redacted Personal Data,Individual,3 - Operations - Countywide Services,Countywide PD Service - Care,Direct Payments - Social Services
Cambridgeshire County Council,16-Feb-17,22581756-14845752,-663,Redacted Personal Data,Individual,3 - Operations - Countywide Services,Countywide PD Service - Care,Direct Payments - Social Services
Cambridgeshire County Council,02-Feb-17,22409742-14758196,-656.34,Caerus Care Ltd,Care Establishment,2 - Operations - Learning Disability,LDP Fenland Locality - Care,Supported Living
Cambridgeshire County Council,02-Feb-17,22498559-14765098,-655.62,23 Lions Cross (Voyage),Care Establishment,2 - Operations - Learning Disability,LDP Huntingdonshire Locality - Care,Supported Living
Cambridgeshire County Council,09-Feb-17,22540409-14820263,-645.41,The Cambridge Nursing Centre,Care Establishment,2 - Commissioning - Older people Pool,Older People - City & South,Nursing Independent Sector
Cambridgeshire County Council,09-Feb-17,22540412-14820265,-645.41,The Cambridge Nursing Centre,Care Establishment,2 - Commissioning - Older people Pool,Older People - City & South,Nursing Independent Sector
Cambridgeshire County Council,09-Feb-17,22540416-14820266,-645.41,The Cambridge Nursing Centre,Care Establishment,2 - Commissioning - Older people Pool,Older People - City & South,Nursing Independent Sector
Cambridgeshire County Council,02-Feb-17,22492660-14764157,-638.78,Florida Avenue (Voyage),Care Establishment,2 - Operations - Learning Disability,LDP Huntingdonshire Locality - Care,Supported Living
Cambridgeshire County Council,02-Feb-17,22492661-14764158,-638.78,Florida Avenue (Voyage),Care Establishment,2 - Operations - Learning Disability,LDP Huntingdonshire Locality - Care,Supported Living
Cambridgeshire County Council,02-Feb-17,22492674-14764166,-638.78,Florida Avenue (Voyage),Care Establishment,2 - Operations - Learning Disability,LDP Huntingdonshire Locality - Care,Supported Living
Cambridgeshire County Council,02-Feb-17,22492678-14764167,-638.78,Florida Avenue (Voyage),Care Establishment,2 - Operations - Learning Disability,LDP Huntingdonshire Locality - Care,Supported Living
Cambridgeshire County Council,02-Feb-17,22492684-14764171,-638.78,Florida Avenue (Voyage),Care Establishment,2 - Operations - Learning Disability,LDP Huntingdonshire Locality - Care,Supported Living
Cambridgeshire County Council,16-Feb-17,22584251-14842130,-637.93,The Cambridge Nursing Centre,Care Establishment,5 - Commissioning - Mental Health & Supporting People,OP Blocks - Care Placements,Nursing Independent Sector
Cambridgeshire County Council,02-Feb-17,22497111-14759506,-627.44,Voyage (Lichfield),Care Establishment,2 - Operations - Learning Disability,LDP Huntingdonshire Locality - Care,Supported Living
Cambridgeshire County Council,02-Feb-17,22491819-14759422,-627.44,Voyage (Lichfield),Care Establishment,2 - Operations - Learning Disability,LDP Huntingdonshire Locality - Care,Supported Living
Cambridgeshire County Council,02-Feb-17,22491820-14759423,-627.44,Voyage (Lichfield),Care Establishment,2 - Operations - Learning Disability,LDP Huntingdonshire Locality - Care,Supported Living
Cambridgeshire County Council,02-Feb-17,22491823-14759426,-627.44,Voyage (Lichfield),Care Establishment,2 - Operations - Learning Disability,LDP Huntingdonshire Locality - Care,Supported Living
Cambridgeshire County Council,02-Feb-17,22491827-14759430,-627.44,Voyage (Lichfield),Care Establishment,2 - Operations - Learning Disability,LDP Huntingdonshire Locality - Care,Supported Living
Cambridgeshire County Council,02-Feb-17,22494241-14761104,-627.01,The Edmund Trust,Care Establishment,2 - Operations - Learning Disability,LDP South Cambs - Special Needs,Supported Living
Cambridgeshire County Council,02-Feb-17,22494245-14761105,-627.01,The Edmund Trust,Care Establishment,2 - Operations - Learning Disability,LDP Cambs City - Special Needs,Supported Living
Cambridgeshire County Council,02-Feb-17,22494249-14761108,-627.01,The Edmund Trust,Care Establishment,2 - Operations - Learning Disability,LDP South Cambs - Special Needs,Supported Living
Cambridgeshire County Council,02-Feb-17,22459638-14760978,-627.01,The Edmund Trust,Care Establishment,2 - Operations - Learning Disability,LDP Cambs City - Special Needs,Supported Living
Cambridgeshire County Council,02-Feb-17,22459643-14760983,-627.01,The Edmund Trust,Care Establishment,2 - Operations - Learning Disability,LDP Cambs City - Special Needs,Supported Living
Cambridgeshire County Council,02-Feb-17,22459645-14760985,-627.01,The Edmund Trust,Care Establishment,2 - Operations - Learning Disability,LDP Cambs City - Special Needs,Supported Living
Cambridgeshire County Council,02-Feb-17,22459646-14760986,-627.01,The Edmund Trust,Care Establishment,2 - Operations - Learning Disability,LDP Cambs City - Special Needs,Supported Living
Cambridgeshire County Council,02-Feb-17,22459648-14760987,-627.01,The Edmund Trust,Care Establishment,2 - Operations - Learning Disability,LDP South Cambs - Special Needs,Supported Living
Cambridgeshire County Council,02-Feb-17,22459651-14760989,-627.01,The Edmund Trust,Care Establishment,2 - Operations - Learning Disability,LDP Cambs City - Special Needs,Supported Living
Cambridgeshire County Council,02-Feb-17,22459655-14760992,-627.01,The Edmund Trust,Care Establishment,2 - Operations - Learning Disability,LDP South Cambs - Special Needs,Supported Living
Cambridgeshire County Council,02-Feb-17,22459657-14760994,-627.01,The Edmund Trust,Care Establishment,2 - Operations - Learning Disability,LDP Cambs City - Special Needs,Supported Living
Cambridgeshire County Council,02-Feb-17,22505132-14760858,-627.01,The Edmund Trust,Care Establishment,2 - Operations - Learning Disability,LDP Cambs City - Special Needs,Supported Living
Cambridgeshire County Council,02-Feb-17,22505134-14760860,-627.01,The Edmund Trust,Care Establishment,2 - Operations - Learning Disability,LDP South Cambs - Special Needs,Supported Living
Cambridgeshire County Council,02-Feb-17,22505139-14760863,-627.01,The Edmund Trust,Care Establishment,2 - Operations - Learning Disability,LDP South Cambs - Special Needs,Supported Living
Cambridgeshire County Council,02-Feb-17,22505149-14760868,-627.01,The Edmund Trust,Care Establishment,2 - Operations - Learning Disability,LDP Cambs City - Special Needs,Supported Living
Cambridgeshire County Council,02-Feb-17,22505150-14760869,-627.01,The Edmund Trust,Care Establishment,2 - Operations - Learning Disability,LDP Cambs City - Special Needs,Supported Living
Cambridgeshire County Council,09-Feb-17,22534427-14815022,-627.01,The Edmund Trust,Care Establishment,2 - Operations - Learning Disability,LDP Cambs City - Special Needs,Supported Living
Cambridgeshire County Council,09-Feb-17,22534433-14815028,-627.01,The Edmund Trust,Care Establishment,2 - Operations - Learning Disability,LDP Cambs City - Special Needs,Supported Living
Cambridgeshire County Council,09-Feb-17,22534434-14815029,-627.01,The Edmund Trust,Care Establishment,2 - Operations - Learning Disability,LDP Cambs City - Special Needs,Supported Living
Cambridgeshire County Council,09-Feb-17,22534435-14815030,-627.01,The Edmund Trust,Care Establishment,2 - Operations - Learning Disability,LDP Cambs City - Special Needs,Supported Living
Cambridgeshire County Council,09-Feb-17,22534437-14815032,-627.01,The Edmund Trust,Care Establishment,2 - Operations - Learning Disability,LDP Cambs City - Special Needs,Supported Living
Cambridgeshire County Council,09-Feb-17,22534439-14815034,-627.01,The Edmund Trust,Care Establishment,2 - Operations - Learning Disability,LDP Cambs City - Special Needs,Supported Living
Cambridgeshire County Council,09-Feb-17,22534441-14815036,-627.01,The Edmund Trust,Care Establishment,2 - Operations - Learning Disability,LDP Cambs City - Special Needs,Supported Living
Cambridgeshire County Council,09-Feb-17,22534442-14815037,-627.01,The Edmund Trust,Care Establishment,2 - Operations - Learning Disability,LDP Cambs City - Special Needs,Supported Living
Cambridgeshire County Council,16-Feb-17,22583348-14844274,-627.01,The Edmund Trust,Care Establishment,2 - Operations - Learning Disability,LDP Cambs City - Special Needs,Supported Living
Cambridgeshire County Council,16-Feb-17,22583351-14844276,-627.01,The Edmund Trust,Care Establishment,2 - Operations - Learning Disability,LDP South Cambs - Special Needs,Supported Living
Cambridgeshire County Council,16-Feb-17,22583354-14844277,-627.01,The Edmund Trust,Care Establishment,2 - Operations - Learning Disability,LDP South Cambs - Special Needs,Supported Living
Cambridgeshire County Council,16-Feb-17,22583355-14844278,-627.01,The Edmund Trust,Care Establishment,2 - Operations - Learning Disability,LDP South Cambs - Special Needs,Supported Living
Cambridgeshire County Council,16-Feb-17,22583361-14844282,-627.01,The Edmund Trust,Care Establishment,2 - Operations - Learning Disability,LDP Cambs City - Special Needs,Supported Living
Cambridgeshire County Council,16-Feb-17,22583362-14844283,-627.01,The Edmund Trust,Care Establishment,2 - Operations - Learning Disability,LDP Cambs City - Special Needs,Supported Living
Cambridgeshire County Council,16-Feb-17,22583363-14844284,-627.01,The Edmund Trust,Care Establishment,2 - Operations - Learning Disability,LDP South Cambs - Special Needs,Supported Living
Cambridgeshire County Council,16-Feb-17,22583347-14844273,-627.01,The Edmund Trust,Care Establishment,2 - Operations - Learning Disability,LDP Cambs City - Special Needs,Supported Living
Cambridgeshire County Council,23-Feb-17,22616661-14870082,-625.92,Ccs Media Limited,Trade Supplier,Corporate Services,Volunteer Co-ordinator,Computer hardware
Cambridgeshire County Council,09-Feb-17,21672592-14819763,-625.76,Boxtree Cottage Cambridge Limited T/A Boxtree Cottage Residential Home,Care Establishment,2 - Commissioning - Older people Pool,Older People Mental Health City & South,Residential Independent Sector
Cambridgeshire County Council,09-Feb-17,21672593-14819764,-625.76,Boxtree Cottage Cambridge Limited T/A Boxtree Cottage Residential Home,Care Establishment,2 - Commissioning - Older people Pool,Older People Mental Health City & South,Residential Independent Sector
Cambridgeshire County Council,09-Feb-17,21672594-14819765,-625.76,Boxtree Cottage Cambridge Limited T/A Boxtree Cottage Residential Home,Care Establishment,2 - Commissioning - Older people Pool,Older People Mental Health City & South,Residential Independent Sector
Cambridgeshire County Council,09-Feb-17,21672595-14819766,-625.76,Boxtree Cottage Cambridge Limited T/A Boxtree Cottage Residential Home,Care Establishment,2 - Commissioning - Older people Pool,Older People Mental Health City & South,Residential Independent Sector
Cambridgeshire County Council,09-Feb-17,21672596-14819767,-625.76,Boxtree Cottage Cambridge Limited T/A Boxtree Cottage Residential Home,Care Establishment,2 - Commissioning - Older people Pool,Older People Mental Health City & South,Residential Independent Sector
Cambridgeshire County Council,02-Feb-17,22410816-14772156,-610.99,The Gables Specialist Nursing Home,Care Establishment,2 - Commissioning - Older people Pool,Older People Mental Health City & South,Nursing Independent Sector
Cambridgeshire County Council,24-Feb-17,22647312-14880094,-610.64,Millfield Lodge Care Home Ltd,Care Establishment,2 - Commissioning - Older people Pool,Older People - City & South,Nursing Independent Sector
Cambridgeshire County Council,24-Feb-17,22647313-14880095,-610.64,Millfield Lodge Care Home Ltd,Care Establishment,2 - Commissioning - Older people Pool,Older People - City & South,Nursing Independent Sector
Cambridgeshire County Council,24-Feb-17,22647314-14880096,-610.64,Millfield Lodge Care Home Ltd,Care Establishment,2 - Commissioning - Older people Pool,Older People - City & South,Nursing Independent Sector
Cambridgeshire County Council,24-Feb-17,22647315-14880097,-610.64,Millfield Lodge Care Home Ltd,Care Establishment,2 - Commissioning - Older people Pool,Older People - City & South,Nursing Independent Sector
Cambridgeshire County Council,27-Feb-17,22417565-14886470,-610.39,Nexus Fostering Ltd,Care Establishment,S&C,Placements - Social Care,Agency Placements - In Cambs
Cambridgeshire County Council,02-Feb-17,22409982-14770557,-610,St George'S Court,Care Establishment,2 - Commissioning - Older people Pool,Older People - City & South,Residential Independent Sector
Cambridgeshire County Council,02-Feb-17,22494813-14768671,-609.25,Papworth Trust#1,Trust (Other),2 - Commissioning - Older people Pool,Hunts O P  Team,Day and Domicillary Care Independent Sector
Cambridgeshire County Council,24-Feb-17,22646278-14880668,-607.25,Barchester Healthcare Homes Ltd,Care Establishment,2 - Commissioning - Older people Pool,Older People - City & South,Nursing Independent Sector
Cambridgeshire County Council,24-Feb-17,22646279-14880669,-607.25,Barchester Healthcare Homes Ltd,Care Establishment,2 - Commissioning - Older people Pool,Older People - City & South,Nursing Independent Sector
Cambridgeshire County Council,24-Feb-17,22646281-14880670,-607.25,Barchester Healthcare Homes Ltd,Care Establishment,2 - Commissioning - Older people Pool,Older People - City & South,Nursing Independent Sector
Cambridgeshire County Council,24-Feb-17,22646282-14880671,-607.25,Barchester Healthcare Homes Ltd,Care Establishment,2 - Commissioning - Older people Pool,Older People - City & South,Nursing Independent Sector
Cambridgeshire County Council,24-Feb-17,22646283-14880672,-607.25,Barchester Healthcare Homes Ltd,Care Establishment,2 - Commissioning - Older people Pool,Older People - City & South,Nursing Independent Sector
Cambridgeshire County Council,24-Feb-17,22646284-14880673,-607.25,Barchester Healthcare Homes Ltd,Care Establishment,2 - Commissioning - Older people Pool,Older People - City & South,Nursing Independent Sector
Cambridgeshire County Council,24-Feb-17,22646285-14880674,-607.25,Barchester Healthcare Homes Ltd,Care Establishment,2 - Commissioning - Older people Pool,Older People - City & South,Nursing Independent Sector
Cambridgeshire County Council,02-Feb-17,22458948-14777946,-600,The Firs (Only Care Plc),Care Establishment,2 - Commissioning - Older people Pool,East Cambs - O P Team,Residential Independent Sector
Cambridgeshire County Council,02-Feb-17,22458949-14777947,-600,The Firs (Only Care Plc),Care Establishment,2 - Commissioning - Older people Pool,East Cambs - O P Team,Residential Independent Sector
Cambridgeshire County Council,02-Feb-17,22458941-14777951,-600,The Firs (Only Care Plc),Care Establishment,2 - Commissioning - Older people Pool,East Cambs - O P Team,Residential Independent Sector
Cambridgeshire County Council,02-Feb-17,22458942-14777952,-600,The Firs (Only Care Plc),Care Establishment,2 - Commissioning - Older people Pool,East Cambs - O P Team,Residential Independent Sector
Cambridgeshire County Council,02-Feb-17,22500375-14772511,-597.69,Renton Court (Voyage),Care Establishment,2 - Operations - Learning Disability,LDP Huntingdonshire Locality - Care,Supported Living
Cambridgeshire County Council,02-Feb-17,22500515-14765160,-592.59,23 Lions Cross (Voyage),Care Establishment,2 - Operations - Learning Disability,LDP Huntingdonshire Locality - Care,Supported Living
Cambridgeshire County Council,02-Feb-17,22494026-14772506,-591.81,Renton Court (Voyage),Care Establishment,2 - Operations - Learning Disability,LDP Hunts special needs,Supported Living
Cambridgeshire County Council,02-Feb-17,22498965-14765068,-590.27,23 Lions Cross (Voyage),Care Establishment,2 - Operations - Learning Disability,LDP Huntingdonshire Locality - Care,Supported Living
Cambridgeshire County Council,02-Feb-17,22509241-14772446,-587.89,Renton Court (Voyage),Care Establishment,2 - Operations - Learning Disability,LDP Huntingdonshire Locality - Care,Supported Living
Cambridgeshire County Council,02-Feb-17,22499955-14772521,-587.89,Renton Court (Voyage),Care Establishment,2 - Operations - Learning Disability,LDP Huntingdonshire Locality - Care,Supported Living
Cambridgeshire County Council,02-Feb-17,22494345-14765135,-587.18,23 Lions Cross (Voyage),Care Establishment,2 - Operations - Learning Disability,LDP Huntingdonshire Locality - Care,Supported Living
Cambridgeshire County Council,02-Feb-17,22496698-14772590,-585.97,2 Cheveril Lane (Voyage),Care Establishment,2 - Operations - Learning Disability,LDP Huntingdonshire Locality - Care,Supported Living
Cambridgeshire County Council,09-Feb-17,22537850-14818162,-585.63,Manor House Residential And Nursing,Care Establishment,2 - Commissioning - Older people Pool,Hunts O P  Team,Nursing Independent Sector
Cambridgeshire County Council,09-Feb-17,22537858-14818163,-585.63,Manor House Residential And Nursing,Care Establishment,2 - Commissioning - Older people Pool,Hunts O P  Team,Nursing Independent Sector
Cambridgeshire County Council,09-Feb-17,22537873-14818165,-585.63,Manor House Residential And Nursing,Care Establishment,2 - Commissioning - Older people Pool,Hunts O P  Team,Nursing Independent Sector
Cambridgeshire County Council,02-Feb-17,22496603-14772610,-575.51,2 Cheveril Lane (Voyage),Care Establishment,2 - Operations - Learning Disability,LDP Huntingdonshire Locality - Care,Supported Living
Cambridgeshire County Council,02-Feb-17,22387704-14767076,-572.53,Cottenham Court Nursing Home,Care Establishment,2 - Commissioning - Older people Pool,Older People - City & South,Nursing Independent Sector
Cambridgeshire County Council,02-Feb-17,22387705-14767077,-572.53,Cottenham Court Nursing Home,Care Establishment,2 - Commissioning - Older people Pool,Older People - City & South,Nursing Independent Sector
Cambridgeshire County Council,02-Feb-17,22387706-14767078,-572.53,Cottenham Court Nursing Home,Care Establishment,2 - Commissioning - Older people Pool,Older People - City & South,Nursing Independent Sector
Cambridgeshire County Council,02-Feb-17,22387707-14767079,-572.53,Cottenham Court Nursing Home,Care Establishment,2 - Commissioning - Older people Pool,Older People - City & South,Nursing Independent Sector
Cambridgeshire County Council,02-Feb-17,22387708-14767080,-572.53,Cottenham Court Nursing Home,Care Establishment,2 - Commissioning - Older people Pool,Older People - City & South,Nursing Independent Sector
Cambridgeshire County Council,02-Feb-17,22387709-14767081,-572.53,Cottenham Court Nursing Home,Care Establishment,2 - Commissioning - Older people Pool,Older People - City & South,Nursing Independent Sector
Cambridgeshire County Council,02-Feb-17,22387710-14767082,-572.53,Cottenham Court Nursing Home,Care Establishment,2 - Commissioning - Older people Pool,Older People - City & South,Nursing Independent Sector
Cambridgeshire County Council,02-Feb-17,22387711-14767083,-572.53,Cottenham Court Nursing Home,Care Establishment,2 - Commissioning - Older people Pool,Older People - City & South,Nursing Independent Sector
Cambridgeshire County Council,02-Feb-17,22387712-14767084,-572.53,Cottenham Court Nursing Home,Care Establishment,2 - Commissioning - Older people Pool,Older People - City & South,Nursing Independent Sector
Cambridgeshire County Council,02-Feb-17,22387713-14767085,-572.53,Cottenham Court Nursing Home,Care Establishment,2 - Commissioning - Older people Pool,Older People - City & South,Nursing Independent Sector
Cambridgeshire County Council,02-Feb-17,22387714-14767086,-572.53,Cottenham Court Nursing Home,Care Establishment,2 - Commissioning - Older people Pool,Older People - City & South,Nursing Independent Sector
Cambridgeshire County Council,02-Feb-17,22387715-14767087,-572.53,Cottenham Court Nursing Home,Care Establishment,2 - Commissioning - Older people Pool,Older People - City & South,Nursing Independent Sector
Cambridgeshire County Council,02-Feb-17,22387716-14767088,-572.53,Cottenham Court Nursing Home,Care Establishment,2 - Commissioning - Older people Pool,Older People - City & South,Nursing Independent Sector
Cambridgeshire County Council,02-Feb-17,22387717-14767089,-572.53,Cottenham Court Nursing Home,Care Establishment,2 - Commissioning - Older people Pool,Older People - City & South,Nursing Independent Sector
Cambridgeshire County Council,02-Feb-17,22387671-14767090,-572.53,Cottenham Court Nursing Home,Care Establishment,2 - Commissioning - Older people Pool,Older People - City & South,Nursing Independent Sector
Cambridgeshire County Council,02-Feb-17,22387672-14767091,-572.53,Cottenham Court Nursing Home,Care Establishment,2 - Commissioning - Older people Pool,Older People - City & South,Nursing Independent Sector
Cambridgeshire County Council,02-Feb-17,22387673-14767092,-572.53,Cottenham Court Nursing Home,Care Establishment,2 - Commissioning - Older people Pool,Older People - City & South,Nursing Independent Sector
Cambridgeshire County Council,02-Feb-17,22387674-14767093,-572.53,Cottenham Court Nursing Home,Care Establishment,2 - Commissioning - Older people Pool,Older People - City & South,Nursing Independent Sector
Cambridgeshire County Council,02-Feb-17,22387675-14767094,-572.53,Cottenham Court Nursing Home,Care Establishment,2 - Commissioning - Older people Pool,Older People - City & South,Nursing Independent Sector
Cambridgeshire County Council,02-Feb-17,22387676-14767095,-572.53,Cottenham Court Nursing Home,Care Establishment,2 - Commissioning - Older people Pool,Older People - City & South,Nursing Independent Sector
Cambridgeshire County Council,02-Feb-17,22387677-14767096,-572.53,Cottenham Court Nursing Home,Care Establishment,2 - Commissioning - Older people Pool,Older People - City & South,Nursing Independent Sector
Cambridgeshire County Council,02-Feb-17,22387678-14767097,-572.53,Cottenham Court Nursing Home,Care Establishment,2 - Commissioning - Older people Pool,Older People - City & South,Nursing Independent Sector
Cambridgeshire County Council,02-Feb-17,22387679-14767098,-572.53,Cottenham Court Nursing Home,Care Establishment,2 - Commissioning - Older people Pool,Older People - City & South,Nursing Independent Sector
Cambridgeshire County Council,02-Feb-17,22387680-14767099,-572.53,Cottenham Court Nursing Home,Care Establishment,2 - Commissioning - Older people Pool,Older People - City & South,Nursing Independent Sector
Cambridgeshire County Council,02-Feb-17,22387681-14767100,-572.53,Cottenham Court Nursing Home,Care Establishment,2 - Commissioning - Older people Pool,Older People - City & South,Nursing Independent Sector
Cambridgeshire County Council,02-Feb-17,22387682-14767101,-572.53,Cottenham Court Nursing Home,Care Establishment,2 - Commissioning - Older people Pool,Older People - City & South,Nursing Independent Sector
Cambridgeshire County Council,02-Feb-17,22387683-14767102,-572.53,Cottenham Court Nursing Home,Care Establishment,2 - Commissioning - Older people Pool,Older People - City & South,Nursing Independent Sector
Cambridgeshire County Council,02-Feb-17,22387684-14767103,-572.53,Cottenham Court Nursing Home,Care Establishment,2 - Commissioning - Older people Pool,Older People - City & South,Nursing Independent Sector
Cambridgeshire County Council,02-Feb-17,22387685-14767104,-572.53,Cottenham Court Nursing Home,Care Establishment,2 - Commissioning - Older people Pool,Older People - City & South,Nursing Independent Sector
Cambridgeshire County Council,02-Feb-17,22387686-14767105,-572.53,Cottenham Court Nursing Home,Care Establishment,2 - Commissioning - Older people Pool,Older People - City & South,Nursing Independent Sector
Cambridgeshire County Council,02-Feb-17,22387687-14767106,-572.53,Cottenham Court Nursing Home,Care Establishment,2 - Commissioning - Older people Pool,Older People - City & South,Nursing Independent Sector
Cambridgeshire County Council,02-Feb-17,22387688-14767107,-572.53,Cottenham Court Nursing Home,Care Establishment,2 - Commissioning - Older people Pool,Older People - City & South,Nursing Independent Sector
Cambridgeshire County Council,02-Feb-17,22387689-14767108,-572.53,Cottenham Court Nursing Home,Care Establishment,2 - Commissioning - Older people Pool,Older People - City & South,Nursing Independent Sector
Cambridgeshire County Council,02-Feb-17,22387690-14767109,-572.53,Cottenham Court Nursing Home,Care Establishment,2 - Commissioning - Older people Pool,Older People - City & South,Nursing Independent Sector
Cambridgeshire County Council,02-Feb-17,22387691-14767110,-572.53,Cottenham Court Nursing Home,Care Establishment,2 - Commissioning - Older people Pool,Older People - City & South,Nursing Independent Sector
Cambridgeshire County Council,02-Feb-17,22387692-14767111,-572.53,Cottenham Court Nursing Home,Care Establishment,2 - Commissioning - Older people Pool,Older People - City & South,Nursing Independent Sector
Cambridgeshire County Council,02-Feb-17,22387693-14767112,-572.53,Cottenham Court Nursing Home,Care Establishment,2 - Commissioning - Older people Pool,Older People - City & South,Nursing Independent Sector
Cambridgeshire County Council,02-Feb-17,22387695-14767114,-572.53,Cottenham Court Nursing Home,Care Establishment,2 - Commissioning - Older people Pool,Older People - City & South,Nursing Independent Sector
Cambridgeshire County Council,02-Feb-17,22387696-14767115,-572.53,Cottenham Court Nursing Home,Care Establishment,2 - Commissioning - Older people Pool,Older People - City & South,Nursing Independent Sector
Cambridgeshire County Council,02-Feb-17,22387698-14767117,-572.53,Cottenham Court Nursing Home,Care Establishment,2 - Commissioning - Older people Pool,Older People - City & South,Nursing Independent Sector
Cambridgeshire County Council,02-Feb-17,22387699-14767118,-572.53,Cottenham Court Nursing Home,Care Establishment,2 - Commissioning - Older people Pool,Older People - City & South,Nursing Independent Sector
Cambridgeshire County Council,02-Feb-17,22387700-14767119,-572.53,Cottenham Court Nursing Home,Care Establishment,2 - Commissioning - Older people Pool,Older People - City & South,Nursing Independent Sector
Cambridgeshire County Council,02-Feb-17,22387701-14767120,-572.53,Cottenham Court Nursing Home,Care Establishment,2 - Commissioning - Older people Pool,Older People - City & South,Nursing Independent Sector
Cambridgeshire County Council,02-Feb-17,22387702-14767121,-572.53,Cottenham Court Nursing Home,Care Establishment,2 - Commissioning - Older people Pool,Older People - City & South,Nursing Independent Sector
Cambridgeshire County Council,02-Feb-17,22387703-14767122,-572.53,Cottenham Court Nursing Home,Care Establishment,2 - Commissioning - Older people Pool,Older People - City & South,Nursing Independent Sector
